﻿Department Family,Entity,Date,Expense Type,Expense Area,Supplier,Transaction Number,Amount,Item Description
BEIS,UKRI - AHRC,01/07/2020,T&S UK - Other Charges,Skills Strategy,Unspecified,98775573,150.48,T&S UK - Other Charges
BEIS,UKRI - AHRC,02/07/2020,Unspecified,Public and Stakeholder Engagement,Unspecified,98772126,2500.00,Legal & Professional Services
BEIS,UKRI - AHRC,03/07/2020,Unspecified,Digital Arts and Humanities and Creative Industries,Zeff Associates Ltd,98775920,600.00,Legal & Professional Services
BEIS,UKRI - AHRC,03/07/2020,Unspecified,Digital Arts and Humanities and Creative Industries,Zeff Associates Ltd,98775923,600.00,Legal & Professional Services
BEIS,UKRI - AHRC,03/07/2020,Non-staff travel and subsistance,FIC- US,Unspecified,98776078,51.90,Non-staff travel and subsistance
BEIS,UKRI - AHRC,03/07/2020,Fees (Including College Members),FIC- US,Unspecified,98776079,230.00,Fees (Including College Members)
BEIS,UKRI - AHRC,03/07/2020,Non-staff travel and subsistance,FIC- US,Unspecified,98776080,79.03,Non-staff travel and subsistance
BEIS,UKRI - AHRC,03/07/2020,Fees (Including College Members),FIC- US,Unspecified,98776081,230.00,Fees (Including College Members)
BEIS,UKRI - AHRC,03/07/2020,T&S UK - Other Charges,Digital Arts and Humanities and Creative Industries,Unspecified,98776485,121.86,T&S UK - Other Charges
BEIS,UKRI - AHRC,03/07/2020,T&S UK - Mileage,Digital Arts and Humanities and Creative Industries,Unspecified,98776486,40.50,T&S UK - Mileage
BEIS,UKRI - AHRC,03/07/2020,T&S UK - Other Charges,Digital Arts and Humanities and Creative Industries,Unspecified,98776486,213.78,T&S UK - Other Charges
BEIS,UKRI - AHRC,03/07/2020,T&S UK - Parking Tolls Congestion Charges,Digital Arts and Humanities and Creative Industries,Unspecified,98776486,4.40,T&S UK - Parking Tolls Congestion Charges
BEIS,UKRI - AHRC,06/07/2020,T&S UK - Other Charges,Skills Strategy,Unspecified,98776853,212.98,T&S UK - Other Charges
BEIS,UKRI - AHRC,06/07/2020,UK - Professional Memberships & Subscriptions,Executive Office,Unspecified,98776854,125.00,UK - Professional Memberships & Subscriptions
BEIS,UKRI - AHRC,07/07/2020,Recharges From Councils - General,PSU Project Office,UKRI - Engineering & Physical Sciences Research Council,98774549,16390.15,Recharges From Councils - General
BEIS,UKRI - AHRC,07/07/2020,T&S Overseas - Accommodation,IS,Corporate Travel Management (North) Ltd,98776872,0.80,T&S Overseas - Accommodation
BEIS,UKRI - AHRC,07/07/2020,T&S Overseas - Accommodation,IS,Corporate Travel Management (North) Ltd,98776872,174.07,T&S Overseas - Accommodation
BEIS,UKRI - AHRC,07/07/2020,T&S Overseas - Accommodation,IS,Corporate Travel Management (North) Ltd,98776872,0.16,T&S Overseas - Accommodation
BEIS,UKRI - AHRC,07/07/2020,T&S UK - Accommodation,"History, Heritage, Languages and Literature",Corporate Travel Management (North) Ltd,98776872,0.80,T&S UK - Accommodation
BEIS,UKRI - AHRC,07/07/2020,T&S UK - Accommodation,"History, Heritage, Languages and Literature",Corporate Travel Management (North) Ltd,98776872,0.16,T&S UK - Accommodation
BEIS,UKRI - AHRC,07/07/2020,T&S UK - Accommodation,Operations,Corporate Travel Management (North) Ltd,98776872,69.00,T&S UK - Accommodation
BEIS,UKRI - AHRC,07/07/2020,T&S UK - Accommodation,SMT,Corporate Travel Management (North) Ltd,98776872,1.00,T&S UK - Accommodation
BEIS,UKRI - AHRC,07/07/2020,T&S UK - Accommodation,SMT,Corporate Travel Management (North) Ltd,98776872,77.08,T&S UK - Accommodation
BEIS,UKRI - AHRC,07/07/2020,T&S UK - Accommodation,SMT,Corporate Travel Management (North) Ltd,98776872,0.20,T&S UK - Accommodation
BEIS,UKRI - AHRC,07/07/2020,T&S UK - Public Transport,Industrial Strategy Challenge Fund (ISCF) - Creative Clusters,Corporate Travel Management (North) Ltd,98776872,0.60,T&S UK - Public Transport
BEIS,UKRI - AHRC,07/07/2020,Fees (Including College Members),FIC- US,Unspecified,98777740,170.00,Fees (Including College Members)
BEIS,UKRI - AHRC,07/07/2020,Health & Safety (inc. Medicals & Opticians),HR,Swindon Occupational Medical Services Ltd,98778303,525.00,Health & Safety (inc. Medicals & Opticians)
BEIS,UKRI - AHRC,08/07/2020,Fees (Including College Members),FIC- US,Unspecified,98777743,170.20,Fees (Including College Members)
BEIS,UKRI - AHRC,09/07/2020,Financial Services,Corporate Services,CCI Credit Management Ltd,98775513,1.32,Financial Services
BEIS,UKRI - AHRC,09/07/2020,Financial Services,Corporate Services,CCI Credit Management Ltd,98775632,1.32,Financial Services
BEIS,UKRI - AHRC,09/07/2020,Recruitment Costs,Corporate Services,Onefix Recruitment Ltd,98778362,150.00,Recruitment Costs
BEIS,UKRI - AHRC,09/07/2020,Recruitment Costs,Corporate Services,Onefix Recruitment Ltd,98778363,150.00,Recruitment Costs
BEIS,UKRI - AHRC,09/07/2020,Other Staff Benefits,HR,EDENRED (UK GROUP) LTD,98779780,76.25,Other Staff Benefits
BEIS,UKRI - AHRC,13/07/2020,Recruitment Costs,Corporate Services,Onefix Recruitment Ltd,98779705,83.26,Recruitment Costs
BEIS,UKRI - AHRC,13/07/2020,T&S UK - Other Charges,Operations,Unspecified,98780936,145.99,T&S UK - Other Charges
BEIS,UKRI - AHRC,14/07/2020,Research Grant Expenditure,GCRF - Programme Delivery,UKRI - Economic & Social Research Council,98778669,31567.00,Research Grant Expenditure
BEIS,UKRI - AHRC,14/07/2020,Unspecified,Balance Sheet,HM Revenue & Customs,98780370,56569.04,NI Payable Salaries
BEIS,UKRI - AHRC,14/07/2020,Unspecified,Balance Sheet,HM Revenue & Customs,98780371,38243.87,PAYE Payable Salaries
BEIS,UKRI - AHRC,14/07/2020,Unspecified,Balance Sheet,HM Revenue & Customs,98780372,4920.00,Student Loans
BEIS,UKRI - AHRC,14/07/2020,Unspecified,Corporate Services,HM Revenue & Customs,98780373,1448.00,Apprenticeship Levy
BEIS,UKRI - AHRC,14/07/2020,Fees (Including College Members),Executive Office,Unspecified,98781520,170.00,Fees (Including College Members)
BEIS,UKRI - AHRC,15/07/2020,Voluntary Deductions,Balance Sheet,Chargive,98780374,570.83,Voluntary Deductions
BEIS,UKRI - AHRC,15/07/2020,Union Deductions,Balance Sheet,PCS Union,98780376,67.32,Union Deductions
BEIS,UKRI - AHRC,15/07/2020,Unspecified,Balance Sheet,Unspecified,98780377,10478.21,Ees Pension Deductions - JSS
BEIS,UKRI - AHRC,15/07/2020,Unspecified,Balance Sheet,Unspecified,98780378,46203.81,Ers Pension Deductions - JSS
BEIS,UKRI - AHRC,15/07/2020,Unspecified,Balance Sheet,Scottish Widows,98780379,369.68,Partnership Pension Deductions
BEIS,UKRI - AHRC,15/07/2020,Unspecified,Balance Sheet,Cabinet Office RM Shared Services,98780380,12.83,Ers Pension Deductions - JSS
BEIS,UKRI - AHRC,15/07/2020,Unspecified,Balance Sheet,Cabinet Office RM Shared Services,98780381,6375.74,Ees Pension Deductions - MyCSP
BEIS,UKRI - AHRC,15/07/2020,Unspecified,Balance Sheet,Cabinet Office RM Shared Services,98780382,32067.16,Ers Pension Deductions - MyCSP
BEIS,UKRI - AHRC,15/07/2020,Ees Pension Deductions - MRC,Balance Sheet,UKRI - Medical Research Council,98780383,134.32,Ees Pension Deductions - MRC
BEIS,UKRI - AHRC,15/07/2020,Ers Pension Deductions - MRC,Balance Sheet,UKRI - Medical Research Council,98780384,309.96,Ers Pension Deductions - MRC
BEIS,UKRI - AHRC,16/07/2020,Hospitality,Operations,Calder Conference Ltd,98781959,364.00,Hospitality
BEIS,UKRI - AHRC,16/07/2020,Hospitality,Operations,Calder Conference Ltd,98781959,720.00,Hospitality
BEIS,UKRI - AHRC,16/07/2020,Conferences & Seminars,Public Policy Research,Professional Development Group TA Government Events,98781986,466.80,Conferences & Seminars
BEIS,UKRI - AHRC,16/07/2020,Hospitality,Operations,University of Bristol,98782016,1708.80,Hospitality
BEIS,UKRI - AHRC,20/07/2020,Financial Services,Corporate Services,CCI Credit Management Ltd,98783519,1.32,Financial Services
BEIS,UKRI - AHRC,21/07/2020,Unspecified,Finance,Hays Specialist Recruitment Ltd,98563762,-1725.67,Agency Staff
BEIS,UKRI - AHRC,21/07/2020,Training Awards - Postgraduates,BGP Award,"Royal Holloway, University of London",98779084,410991.25,Training Awards - Postgraduates
BEIS,UKRI - AHRC,21/07/2020,Training Awards - Postgraduates,BGP Award,University of the West of England,98779085,67246.73,Training Awards - Postgraduates
BEIS,UKRI - AHRC,21/07/2020,Training Awards - Postgraduates,BGP Award,University of Hull,98779086,61396.25,Training Awards - Postgraduates
BEIS,UKRI - AHRC,21/07/2020,Training Awards - Postgraduates,BGP Award,University College London,98779087,74876.55,Training Awards - Postgraduates
BEIS,UKRI - AHRC,21/07/2020,Training Awards - Postgraduates,BGP Award,University College London,98779088,590497.20,Training Awards - Postgraduates
BEIS,UKRI - AHRC,21/07/2020,Training Awards - Postgraduates,BGP Award,University of Oxford,98779089,17684.23,Training Awards - Postgraduates
BEIS,UKRI - AHRC,21/07/2020,Training Awards - Postgraduates,BGP Award,University of Oxford,98779089,433162.00,Training Awards - Postgraduates
BEIS,UKRI - AHRC,21/07/2020,Training Awards - Postgraduates,BGP Award,University of Glasgow,98779090,423494.00,Training Awards - Postgraduates
BEIS,UKRI - AHRC,21/07/2020,Training Awards - Postgraduates,BGP Award,University of Newcastle Upon Tyne,98779091,383557.14,Training Awards - Postgraduates
BEIS,UKRI - AHRC,21/07/2020,Training Awards - Postgraduates,BGP Award,University of Bristol GRANT,98779092,476667.99,Training Awards - Postgraduates
BEIS,UKRI - AHRC,21/07/2020,Training Awards - Postgraduates,BGP Award,University of Glasgow,98779093,56562.25,Training Awards - Postgraduates
BEIS,UKRI - AHRC,21/07/2020,Training Awards - Postgraduates,BGP Award,Northumbria University,98779094,31036.95,Training Awards - Postgraduates
BEIS,UKRI - AHRC,21/07/2020,Training Awards - Postgraduates,BGP Award,The University of Manchester,98779095,437996.00,Training Awards - Postgraduates
BEIS,UKRI - AHRC,21/07/2020,Training Awards - Postgraduates,BGP Award,University of Cambridge,98779096,442829.99,Training Awards - Postgraduates
BEIS,UKRI - AHRC,21/07/2020,Training Awards - Postgraduates,BGP Award,University of Reading,98779097,78035.40,Training Awards - Postgraduates
BEIS,UKRI - AHRC,21/07/2020,Training Awards - Postgraduates,BGP Award,University of Sussex,98779098,586208.88,Training Awards - Postgraduates
BEIS,UKRI - AHRC,21/07/2020,Training Awards - Postgraduates,BGP Award,University of Nottingham,98779099,14107.98,Training Awards - Postgraduates
BEIS,UKRI - AHRC,21/07/2020,Training Awards - Postgraduates,BGP Award,University of Nottingham,98779099,448341.65,Training Awards - Postgraduates
BEIS,UKRI - AHRC,21/07/2020,Training Awards - Postgraduates,BGP Award,University of York,98779100,578001.10,Training Awards - Postgraduates
BEIS,UKRI - AHRC,21/07/2020,Training Awards - Postgraduates,BGP Award,Royal College of Art,98779101,78041.90,Training Awards - Postgraduates
BEIS,UKRI - AHRC,21/07/2020,Training Awards - Postgraduates,Collabrative Doctoral Grants - Block Payment,University of Liverpool,98779102,5040.25,Training Awards - Postgraduates
BEIS,UKRI - AHRC,21/07/2020,Training Awards - Postgraduates,Collabrative Doctoral Grants - Block Payment,The British Museum,98779103,17700.00,Training Awards - Postgraduates
BEIS,UKRI - AHRC,21/07/2020,Training Awards - Postgraduates,Collabrative Doctoral Grants - Block Payment,The British Museum,98779103,17700.00,Training Awards - Postgraduates
BEIS,UKRI - AHRC,21/07/2020,Training Awards - Postgraduates,Collabrative Doctoral Grants - Block Payment,University of Central Lancashire,98779104,5064.00,Training Awards - Postgraduates
BEIS,UKRI - AHRC,21/07/2020,Training Awards - Postgraduates,Collabrative Doctoral Grants - Block Payment,University of St Andrews,98779105,2532.47,Training Awards - Postgraduates
BEIS,UKRI - AHRC,21/07/2020,Training Awards - Postgraduates,Collabrative Doctoral Grants - Block Payment,University of Glasgow,98779106,7365.97,Training Awards - Postgraduates
BEIS,UKRI - AHRC,21/07/2020,Training Awards - Postgraduates,Collabrative Doctoral Grants - Block Payment,University of Glasgow,98779107,2531.97,Training Awards - Postgraduates
BEIS,UKRI - AHRC,21/07/2020,Training Awards - Postgraduates,Collabrative Doctoral Grants - Block Payment,University of Liverpool,98779108,9898.00,Training Awards - Postgraduates
BEIS,UKRI - AHRC,21/07/2020,Training Awards - Postgraduates,Collabrative Doctoral Grants - Block Payment,University of Sheffield,98779109,7365.97,Training Awards - Postgraduates
BEIS,UKRI - AHRC,21/07/2020,Training Awards - Postgraduates,Collabrative Doctoral Grants - Block Payment,University of Huddersfield,98779110,2531.97,Training Awards - Postgraduates
BEIS,UKRI - AHRC,21/07/2020,Training Awards - Postgraduates,Collabrative Doctoral Grants - Block Payment,University College London,98779111,2781.97,Training Awards - Postgraduates
BEIS,UKRI - AHRC,21/07/2020,Training Awards - Postgraduates,Collabrative Doctoral Grants - Block Payment,University of York,98779112,5064.00,Training Awards - Postgraduates
BEIS,UKRI - AHRC,21/07/2020,Training Awards - Postgraduates,Collabrative Doctoral Grants - Block Payment,Coventry University,98779113,2532.01,Training Awards - Postgraduates
BEIS,UKRI - AHRC,21/07/2020,Training Awards - Postgraduates,Collabrative Doctoral Grants - Block Payment,University of Liverpool,98779114,5064.00,Training Awards - Postgraduates
BEIS,UKRI - AHRC,21/07/2020,Training Awards - Postgraduates,Collabrative Doctoral Grants - Block Payment,University of Nottingham,98779115,2531.97,Training Awards - Postgraduates
BEIS,UKRI - AHRC,21/07/2020,Training Awards - Postgraduates,Collabrative Doctoral Grants - Block Payment,University of the Highlands and Islands,98779116,2531.97,Training Awards - Postgraduates
BEIS,UKRI - AHRC,21/07/2020,Training Awards - Postgraduates,Collabrative Doctoral Grants - Block Payment,University College London,98779117,2781.97,Training Awards - Postgraduates
BEIS,UKRI - AHRC,21/07/2020,Training Awards - Postgraduates,Collabrative Doctoral Grants - Block Payment,University of Durham,98779118,2531.97,Training Awards - Postgraduates
BEIS,UKRI - AHRC,21/07/2020,Training Awards - Postgraduates,Collabrative Doctoral Grants - Block Payment,University of Liverpool,98779119,7596.01,Training Awards - Postgraduates
BEIS,UKRI - AHRC,21/07/2020,Training Awards - Postgraduates,Collabrative Doctoral Grants - Block Payment,London South Bank University,98779120,2781.97,Training Awards - Postgraduates
BEIS,UKRI - AHRC,21/07/2020,Training Awards - Postgraduates,Collabrative Doctoral Grants - Block Payment,University of Nottingham,98779121,2531.97,Training Awards - Postgraduates
BEIS,UKRI - AHRC,21/07/2020,Training Awards - Postgraduates,Collabrative Doctoral Grants - Block Payment,Queen Mary University of London,98779122,2781.97,Training Awards - Postgraduates
BEIS,UKRI - AHRC,21/07/2020,Training Awards - Postgraduates,Collabrative Doctoral Grants - Block Payment,Cardiff University,98779123,2531.97,Training Awards - Postgraduates
BEIS,UKRI - AHRC,21/07/2020,Training Awards - Postgraduates,Collabrative Doctoral Grants - Block Payment,"Royal Holloway, University of London",98779124,7615.97,Training Awards - Postgraduates
BEIS,UKRI - AHRC,21/07/2020,Training Awards - Postgraduates,Collabrative Doctoral Grants - Block Payment,Queen Mary University of London,98779125,2781.97,Training Awards - Postgraduates
BEIS,UKRI - AHRC,21/07/2020,Training Awards - Postgraduates,Collabrative Doctoral Grants - Block Payment,"Royal Holloway, University of London",98779126,7615.96,Training Awards - Postgraduates
BEIS,UKRI - AHRC,21/07/2020,Training Awards - Postgraduates,Collabrative Doctoral Grants - Block Payment,University of York,98779127,7365.97,Training Awards - Postgraduates
BEIS,UKRI - AHRC,21/07/2020,Training Awards - Postgraduates,Collabrative Doctoral Grants - Block Payment,University of Warwick,98779128,2531.97,Training Awards - Postgraduates
BEIS,UKRI - AHRC,21/07/2020,Training Awards - Postgraduates,Collabrative Doctoral Grants - Block Payment,Birkbeck College,98779129,7615.97,Training Awards - Postgraduates
BEIS,UKRI - AHRC,21/07/2020,Training Awards - Postgraduates,Collabrative Doctoral Grants - Block Payment,University of Cambridge,98779130,2531.97,Training Awards - Postgraduates
BEIS,UKRI - AHRC,21/07/2020,Training Awards - Postgraduates,Collabrative Doctoral Grants - Block Payment,University of Kent,98779131,7365.97,Training Awards - Postgraduates
BEIS,UKRI - AHRC,21/07/2020,Training Awards - Postgraduates,Collabrative Doctoral Grants - Block Payment,University of Lincoln,98779132,2665.48,Training Awards - Postgraduates
BEIS,UKRI - AHRC,21/07/2020,Training Awards - Postgraduates,Collabrative Doctoral Grants - Block Payment,University of Brighton,98779133,2531.97,Training Awards - Postgraduates
BEIS,UKRI - AHRC,21/07/2020,Training Awards - Postgraduates,Collabrative Doctoral Grants - Block Payment,Swansea University,98779134,7365.97,Training Awards - Postgraduates
BEIS,UKRI - AHRC,21/07/2020,Training Awards - Postgraduates,Collabrative Doctoral Grants - Block Payment,Bath Spa University,98779135,2531.98,Training Awards - Postgraduates
BEIS,UKRI - AHRC,21/07/2020,Training Awards - Postgraduates,Collabrative Doctoral Grants - Block Payment,University of Leeds,98779136,2531.96,Training Awards - Postgraduates
BEIS,UKRI - AHRC,21/07/2020,Training Awards - Postgraduates,Collabrative Doctoral Grants - Block Payment,University of Brighton,98779137,2531.97,Training Awards - Postgraduates
BEIS,UKRI - AHRC,21/07/2020,Training Awards - Postgraduates,Collabrative Doctoral Grants - Block Payment,University of Leeds,98779138,7365.97,Training Awards - Postgraduates
BEIS,UKRI - AHRC,21/07/2020,Training Awards - Postgraduates,Collabrative Doctoral Grants - Block Payment,University of Durham,98779139,2531.98,Training Awards - Postgraduates
BEIS,UKRI - AHRC,21/07/2020,Training Awards - Postgraduates,Collabrative Doctoral Grants - Block Payment,Manchester Metropolitan University,98779140,2531.97,Training Awards - Postgraduates
BEIS,UKRI - AHRC,21/07/2020,Training Awards - Postgraduates,Collabrative Doctoral Grants - Block Payment,University of Durham,98779141,7366.02,Training Awards - Postgraduates
BEIS,UKRI - AHRC,21/07/2020,Training Awards - Postgraduates,Collabrative Doctoral Grants - Block Payment,Courtauld Institute of Art,98779142,2782.01,Training Awards - Postgraduates
BEIS,UKRI - AHRC,21/07/2020,Training Awards - Postgraduates,Collabrative Doctoral Grants - Block Payment,University of Reading,98779143,2531.97,Training Awards - Postgraduates
BEIS,UKRI - AHRC,21/07/2020,Training Awards - Postgraduates,Collabrative Doctoral Grants - Block Payment,University of Bristol GRANT,98779144,2531.97,Training Awards - Postgraduates
BEIS,UKRI - AHRC,21/07/2020,Training Awards - Postgraduates,Collabrative Doctoral Grants - Block Payment,Royal College of Art,98779145,2781.97,Training Awards - Postgraduates
BEIS,UKRI - AHRC,21/07/2020,Training Awards - Postgraduates,Collabrative Doctoral Grants - Block Payment,University of Newcastle Upon Tyne,98779146,2531.97,Training Awards - Postgraduates
BEIS,UKRI - AHRC,21/07/2020,Training Awards - Postgraduates,Collabrative Doctoral Grants - Block Payment,University of Bedfordshire,98779147,2531.97,Training Awards - Postgraduates
BEIS,UKRI - AHRC,21/07/2020,Training Awards - Postgraduates,Collabrative Doctoral Grants - Block Payment,Guildhall School of Music & Drama,98779148,2781.97,Training Awards - Postgraduates
BEIS,UKRI - AHRC,21/07/2020,Training Awards - Postgraduates,Collabrative Doctoral Grants - Block Payment,The University of Manchester,98779149,2531.97,Training Awards - Postgraduates
BEIS,UKRI - AHRC,21/07/2020,Training Awards - Postgraduates,Collabrative Doctoral Grants - Block Payment,University of Glasgow,98779150,7365.97,Training Awards - Postgraduates
BEIS,UKRI - AHRC,21/07/2020,Training Awards - Postgraduates,Collabrative Doctoral Grants - Block Payment,University College London,98779151,2781.97,Training Awards - Postgraduates
BEIS,UKRI - AHRC,21/07/2020,Training Awards - Postgraduates,Collabrative Doctoral Grants - Block Payment,University of Leicester,98779152,7365.97,Training Awards - Postgraduates
BEIS,UKRI - AHRC,21/07/2020,Training Awards - Postgraduates,Collabrative Doctoral Grants - Block Payment,The University of Manchester,98779153,7365.97,Training Awards - Postgraduates
BEIS,UKRI - AHRC,21/07/2020,Training Awards - Postgraduates,Collabrative Doctoral Grants - Block Payment,Heriot Watt University,98779154,7365.97,Training Awards - Postgraduates
BEIS,UKRI - AHRC,21/07/2020,Training Awards - Postgraduates,Collabrative Doctoral Grants - Block Payment,University of Cambridge,98779155,2531.97,Training Awards - Postgraduates
BEIS,UKRI - AHRC,21/07/2020,Training Awards - Postgraduates,Collabrative Doctoral Grants - Block Payment,University of Northampton,98779156,7365.98,Training Awards - Postgraduates
BEIS,UKRI - AHRC,21/07/2020,Training Awards - Postgraduates,Collabrative Doctoral Grants - Block Payment,Queen Mary University of London,98779157,2781.97,Training Awards - Postgraduates
BEIS,UKRI - AHRC,21/07/2020,Training Awards - Postgraduates,Collabrative Doctoral Grants - Block Payment,University of York,98779158,2531.97,Training Awards - Postgraduates
BEIS,UKRI - AHRC,21/07/2020,Training Awards - Postgraduates,Collabrative Doctoral Grants - Block Payment,University of Leeds,98779159,2531.97,Training Awards - Postgraduates
BEIS,UKRI - AHRC,21/07/2020,Training Awards - Postgraduates,Collabrative Doctoral Grants - Block Payment,"City, University of London",98779160,2781.97,Training Awards - Postgraduates
BEIS,UKRI - AHRC,21/07/2020,Training Awards - Postgraduates,Collabrative Doctoral Grants - Block Payment,University of Bradford,98779161,2532.01,Training Awards - Postgraduates
BEIS,UKRI - AHRC,21/07/2020,Training Awards - Postgraduates,Collabrative Doctoral Grants - Block Payment,Birkbeck College,98779162,7615.97,Training Awards - Postgraduates
BEIS,UKRI - AHRC,21/07/2020,Training Awards - Postgraduates,Collabrative Doctoral Grants - Block Payment,University of Bristol GRANT,98779163,2531.97,Training Awards - Postgraduates
BEIS,UKRI - AHRC,21/07/2020,Training Awards - Postgraduates,Collabrative Doctoral Grants - Block Payment,Queen Mary University of London,98779164,2781.97,Training Awards - Postgraduates
BEIS,UKRI - AHRC,21/07/2020,Training Awards - Postgraduates,Collabrative Doctoral Grants - Block Payment,University of Edinburgh,98779165,2531.97,Training Awards - Postgraduates
BEIS,UKRI - AHRC,21/07/2020,Training Awards - Postgraduates,Collabrative Doctoral Grants - Block Payment,"SOAS, University of London",98779166,2782.01,Training Awards - Postgraduates
BEIS,UKRI - AHRC,21/07/2020,Training Awards - Postgraduates,Collabrative Doctoral Grants - Block Payment,"SOAS, University of London",98779166,7615.97,Training Awards - Postgraduates
BEIS,UKRI - AHRC,21/07/2020,Training Awards - Postgraduates,Collabrative Doctoral Grants - Block Payment,University College London,98779167,2781.97,Training Awards - Postgraduates
BEIS,UKRI - AHRC,21/07/2020,Training Awards - Postgraduates,Collabrative Doctoral Grants - Block Payment,University of Edinburgh,98779168,5057.75,Training Awards - Postgraduates
BEIS,UKRI - AHRC,21/07/2020,Training Awards - Postgraduates,Collabrative Doctoral Grants - Block Payment,University of Oxford,98779169,5064.00,Training Awards - Postgraduates
BEIS,UKRI - AHRC,21/07/2020,Training Awards - Postgraduates,Collabrative Doctoral Grants - Block Payment,Nottingham Trent University,98779170,5064.00,Training Awards - Postgraduates
BEIS,UKRI - AHRC,21/07/2020,Training Awards - Postgraduates,Collabrative Doctoral Grants - Block Payment,"Royal Holloway, University of London",98779171,5564.00,Training Awards - Postgraduates
BEIS,UKRI - AHRC,21/07/2020,Training Awards - Postgraduates,Collabrative Doctoral Grants - Block Payment,Nottingham Trent University,98779172,5064.00,Training Awards - Postgraduates
BEIS,UKRI - AHRC,21/07/2020,Training Awards - Postgraduates,Collabrative Doctoral Grants - Block Payment,University of Sheffield,98779173,5064.00,Training Awards - Postgraduates
BEIS,UKRI - AHRC,21/07/2020,Training Awards - Postgraduates,Collabrative Doctoral Grants - Block Payment,University of Kent,98779174,5064.00,Training Awards - Postgraduates
BEIS,UKRI - AHRC,21/07/2020,Training Awards - Postgraduates,Collabrative Doctoral Grants - Block Payment,Birkbeck College,98779175,5564.00,Training Awards - Postgraduates
BEIS,UKRI - AHRC,21/07/2020,Training Awards - Postgraduates,Collabrative Doctoral Grants - Block Payment,University of Wolverhampton,98779176,5064.00,Training Awards - Postgraduates
BEIS,UKRI - AHRC,21/07/2020,Training Awards - Postgraduates,Collabrative Doctoral Grants - Block Payment,University of Edinburgh,98779177,5064.00,Training Awards - Postgraduates
BEIS,UKRI - AHRC,21/07/2020,Training Awards - Postgraduates,Collabrative Doctoral Grants - Block Payment,University of Bristol GRANT,98779178,5064.00,Training Awards - Postgraduates
BEIS,UKRI - AHRC,21/07/2020,Training Awards - Postgraduates,Collabrative Doctoral Grants - Block Payment,University of Edinburgh,98779179,5064.00,Training Awards - Postgraduates
BEIS,UKRI - AHRC,21/07/2020,Training Awards - Postgraduates,Collabrative Doctoral Grants - Block Payment,University of Durham,98779180,5064.00,Training Awards - Postgraduates
BEIS,UKRI - AHRC,21/07/2020,Training Awards - Postgraduates,Collabrative Doctoral Grants - Block Payment,University of Leeds,98779181,5064.00,Training Awards - Postgraduates
BEIS,UKRI - AHRC,21/07/2020,Training Awards - Postgraduates,Collabrative Doctoral Grants - Block Payment,University of Leicester,98779182,5064.00,Training Awards - Postgraduates
BEIS,UKRI - AHRC,21/07/2020,Training Awards - Postgraduates,Collabrative Doctoral Grants - Block Payment,University of Stirling,98779183,5064.00,Training Awards - Postgraduates
BEIS,UKRI - AHRC,21/07/2020,Training Awards - Postgraduates,Collabrative Doctoral Grants - Block Payment,University of Leeds,98779184,5064.00,Training Awards - Postgraduates
BEIS,UKRI - AHRC,21/07/2020,Training Awards - Postgraduates,Collabrative Doctoral Grants - Block Payment,University of St Andrews,98779185,5064.00,Training Awards - Postgraduates
BEIS,UKRI - AHRC,21/07/2020,Training Awards - Postgraduates,Collabrative Doctoral Grants - Block Payment,University of Leicester,98779186,5064.00,Training Awards - Postgraduates
BEIS,UKRI - AHRC,21/07/2020,Training Awards - Postgraduates,Collabrative Doctoral Grants - Block Payment,University of Central Lancashire,98779187,5064.00,Training Awards - Postgraduates
BEIS,UKRI - AHRC,21/07/2020,Training Awards - Postgraduates,Collabrative Doctoral Grants - Block Payment,University of Sussex,98779188,5064.00,Training Awards - Postgraduates
BEIS,UKRI - AHRC,21/07/2020,Training Awards - Postgraduates,Collabrative Doctoral Grants - Block Payment,University of Exeter,98779189,5064.00,Training Awards - Postgraduates
BEIS,UKRI - AHRC,21/07/2020,Training Awards - Postgraduates,Collabrative Doctoral Grants - Block Payment,University of Edinburgh,98779190,5064.00,Training Awards - Postgraduates
BEIS,UKRI - AHRC,21/07/2020,Training Awards - Postgraduates,Collabrative Doctoral Grants - Block Payment,University of Nottingham,98779191,5064.00,Training Awards - Postgraduates
BEIS,UKRI - AHRC,21/07/2020,Training Awards - Postgraduates,Collabrative Doctoral Grants - Block Payment,University of Glasgow,98779192,5064.00,Training Awards - Postgraduates
BEIS,UKRI - AHRC,21/07/2020,Training Awards - Postgraduates,Collabrative Doctoral Grants - Block Payment,University College London,98779193,5564.00,Training Awards - Postgraduates
BEIS,UKRI - AHRC,21/07/2020,Training Awards - Postgraduates,Collabrative Doctoral Grants - Block Payment,University of Birmingham GRANT,98779194,5064.00,Training Awards - Postgraduates
BEIS,UKRI - AHRC,21/07/2020,Training Awards - Postgraduates,Collabrative Doctoral Grants - Block Payment,Birkbeck College,98779195,5564.00,Training Awards - Postgraduates
BEIS,UKRI - AHRC,21/07/2020,Training Awards - Postgraduates,Collabrative Doctoral Grants - Block Payment,University of Oxford,98779196,5064.00,Training Awards - Postgraduates
BEIS,UKRI - AHRC,21/07/2020,Training Awards - Postgraduates,Collabrative Doctoral Grants - Block Payment,University of London,98779197,5564.00,Training Awards - Postgraduates
BEIS,UKRI - AHRC,21/07/2020,Training Awards - Postgraduates,Collabrative Doctoral Grants - Block Payment,University of Leicester,98779198,5064.00,Training Awards - Postgraduates
BEIS,UKRI - AHRC,21/07/2020,Training Awards - Postgraduates,Collabrative Doctoral Grants - Block Payment,King's College London,98779199,5564.00,Training Awards - Postgraduates
BEIS,UKRI - AHRC,21/07/2020,Training Awards - Postgraduates,Collabrative Doctoral Grants - Block Payment,University of Leeds,98779200,5117.72,Training Awards - Postgraduates
BEIS,UKRI - AHRC,21/07/2020,Training Awards - Postgraduates,Collabrative Doctoral Grants - Block Payment,De Montfort University,98779201,5064.00,Training Awards - Postgraduates
BEIS,UKRI - AHRC,21/07/2020,Training Awards - Postgraduates,Collabrative Doctoral Grants - Block Payment,University of Leicester,98779202,5064.00,Training Awards - Postgraduates
BEIS,UKRI - AHRC,21/07/2020,Training Awards - Postgraduates,Collabrative Doctoral Grants - Block Payment,Birkbeck College,98779203,5564.00,Training Awards - Postgraduates
BEIS,UKRI - AHRC,21/07/2020,Training Awards - Postgraduates,Collabrative Doctoral Grants - Block Payment,University of Reading,98779204,5064.00,Training Awards - Postgraduates
BEIS,UKRI - AHRC,21/07/2020,Training Awards - Postgraduates,Collabrative Doctoral Grants - Block Payment,University of York,98779205,5064.00,Training Awards - Postgraduates
BEIS,UKRI - AHRC,21/07/2020,Training Awards - Postgraduates,Collabrative Doctoral Grants - Block Payment,Courtauld Institute of Art,98779206,5564.00,Training Awards - Postgraduates
BEIS,UKRI - AHRC,21/07/2020,Training Awards - Postgraduates,Collabrative Doctoral Grants - Block Payment,University of York,98779207,5064.00,Training Awards - Postgraduates
BEIS,UKRI - AHRC,21/07/2020,Training Awards - Postgraduates,Collabrative Doctoral Grants - Block Payment,The University of Manchester,98779208,5064.00,Training Awards - Postgraduates
BEIS,UKRI - AHRC,21/07/2020,Training Awards - Postgraduates,Collabrative Doctoral Grants - Block Payment,Cardiff University,98779209,5064.00,Training Awards - Postgraduates
BEIS,UKRI - AHRC,21/07/2020,Training Awards - Postgraduates,Collabrative Doctoral Grants - Block Payment,University of Reading,98779210,5064.00,Training Awards - Postgraduates
BEIS,UKRI - AHRC,21/07/2020,Training Awards - Postgraduates,Collabrative Doctoral Grants - Block Payment,De Montfort University,98779211,5064.00,Training Awards - Postgraduates
BEIS,UKRI - AHRC,21/07/2020,Training Awards - Postgraduates,Collabrative Doctoral Grants - Block Payment,University of Westminster,98779212,2830.75,Training Awards - Postgraduates
BEIS,UKRI - AHRC,21/07/2020,Training Awards - Postgraduates,Collabrative Doctoral Grants - Block Payment,The University of Manchester,98779213,5064.00,Training Awards - Postgraduates
BEIS,UKRI - AHRC,21/07/2020,Training Awards - Postgraduates,Collabrative Doctoral Grants - Block Payment,Royal College of Art,98779214,5564.00,Training Awards - Postgraduates
BEIS,UKRI - AHRC,21/07/2020,Training Awards - Postgraduates,Collabrative Doctoral Grants - Block Payment,Northumbria University,98779215,5064.00,Training Awards - Postgraduates
BEIS,UKRI - AHRC,21/07/2020,Training Awards - Postgraduates,Collabrative Doctoral Grants - Block Payment,Glasgow School of Art,98779216,5064.00,Training Awards - Postgraduates
BEIS,UKRI - AHRC,21/07/2020,Training Awards - Postgraduates,Collabrative Doctoral Grants - Block Payment,Royal College of Art,98779217,4489.96,Training Awards - Postgraduates
BEIS,UKRI - AHRC,21/07/2020,Training Awards - Postgraduates,BGP Award,University of Glasgow,98779218,63723.90,Training Awards - Postgraduates
BEIS,UKRI - AHRC,21/07/2020,Training Awards - Postgraduates,BGP Award,University of Newcastle Upon Tyne,98779219,63723.90,Training Awards - Postgraduates
BEIS,UKRI - AHRC,21/07/2020,Training Awards - Postgraduates,BGP Award,The University of Manchester,98779220,63724.00,Training Awards - Postgraduates
BEIS,UKRI - AHRC,21/07/2020,Training Awards - Postgraduates,BGP Award,University of the West of England,98779221,63723.90,Training Awards - Postgraduates
BEIS,UKRI - AHRC,21/07/2020,Training Awards - Postgraduates,BGP Award,University of Nottingham,98779222,53104.25,Training Awards - Postgraduates
BEIS,UKRI - AHRC,21/07/2020,Training Awards - Postgraduates,BGP Award,"Royal Holloway, University of London",98779223,68973.80,Training Awards - Postgraduates
BEIS,UKRI - AHRC,21/07/2020,Training Awards - Postgraduates,Collabrative Doctoral Grants - Block Payment,University of London,98779224,5523.25,Training Awards - Postgraduates
BEIS,UKRI - AHRC,21/07/2020,Training Awards - Postgraduates,Collabrative Doctoral Grants - Block Payment,University of Sheffield,98779225,5023.25,Training Awards - Postgraduates
BEIS,UKRI - AHRC,21/07/2020,Training Awards - Postgraduates,Collabrative Doctoral Grants - Block Payment,University College London,98779226,5500.75,Training Awards - Postgraduates
BEIS,UKRI - AHRC,21/07/2020,Training Awards - Postgraduates,Collabrative Doctoral Grants - Block Payment,University of Sheffield,98779227,5023.25,Training Awards - Postgraduates
BEIS,UKRI - AHRC,21/07/2020,Training Awards - Postgraduates,Collabrative Doctoral Grants - Block Payment,"SOAS, University of London",98779228,5523.25,Training Awards - Postgraduates
BEIS,UKRI - AHRC,21/07/2020,Training Awards - Postgraduates,Collabrative Doctoral Grants - Block Payment,"SOAS, University of London",98779228,5523.25,Training Awards - Postgraduates
BEIS,UKRI - AHRC,21/07/2020,Training Awards - Postgraduates,Collabrative Doctoral Grants - Block Payment,Northumbria University,98779229,5023.25,Training Awards - Postgraduates
BEIS,UKRI - AHRC,21/07/2020,Training Awards - Postgraduates,Collabrative Doctoral Grants - Block Payment,King's College London,98779230,5523.25,Training Awards - Postgraduates
BEIS,UKRI - AHRC,21/07/2020,Training Awards - Postgraduates,Collabrative Doctoral Grants - Block Payment,University of Brighton,98779231,5023.25,Training Awards - Postgraduates
BEIS,UKRI - AHRC,21/07/2020,Training Awards - Postgraduates,Collabrative Doctoral Grants - Block Payment,University of Stirling,98779232,5023.25,Training Awards - Postgraduates
BEIS,UKRI - AHRC,21/07/2020,Training Awards - Postgraduates,Collabrative Doctoral Grants - Block Payment,University of Liverpool,98779233,5023.25,Training Awards - Postgraduates
BEIS,UKRI - AHRC,21/07/2020,Training Awards - Postgraduates,Collabrative Doctoral Grants - Block Payment,Robert Gordon University,98779234,5023.25,Training Awards - Postgraduates
BEIS,UKRI - AHRC,21/07/2020,Training Awards - Postgraduates,Collabrative Doctoral Grants - Block Payment,University of Exeter,98779235,5023.25,Training Awards - Postgraduates
BEIS,UKRI - AHRC,21/07/2020,Training Awards - Postgraduates,Collabrative Doctoral Grants - Block Payment,University of Edinburgh,98779236,5023.25,Training Awards - Postgraduates
BEIS,UKRI - AHRC,21/07/2020,Training Awards - Postgraduates,Collabrative Doctoral Grants - Block Payment,University of Durham,98779237,5023.25,Training Awards - Postgraduates
BEIS,UKRI - AHRC,21/07/2020,Training Awards - Postgraduates,Collabrative Doctoral Grants - Block Payment,"City, University of London",98779238,5523.25,Training Awards - Postgraduates
BEIS,UKRI - AHRC,21/07/2020,Training Awards - Postgraduates,Collabrative Doctoral Grants - Block Payment,University of Strathclyde,98779239,4492.70,Training Awards - Postgraduates
BEIS,UKRI - AHRC,21/07/2020,Training Awards - Postgraduates,Collabrative Doctoral Grants - Block Payment,University College London,98779240,5523.25,Training Awards - Postgraduates
BEIS,UKRI - AHRC,21/07/2020,Training Awards - Postgraduates,Collabrative Doctoral Grants - Block Payment,University of Leeds,98779241,5023.25,Training Awards - Postgraduates
BEIS,UKRI - AHRC,21/07/2020,Training Awards - Postgraduates,Collabrative Doctoral Grants - Block Payment,University College London,98779242,5523.25,Training Awards - Postgraduates
BEIS,UKRI - AHRC,21/07/2020,Training Awards - Postgraduates,Collabrative Doctoral Grants - Block Payment,King's College London,98779243,5523.25,Training Awards - Postgraduates
BEIS,UKRI - AHRC,21/07/2020,Training Awards - Postgraduates,Collabrative Doctoral Grants - Block Payment,University of Southampton GRANT,98779244,5023.25,Training Awards - Postgraduates
BEIS,UKRI - AHRC,21/07/2020,Training Awards - Postgraduates,Collabrative Doctoral Grants - Block Payment,University of Central Lancashire,98779245,5023.25,Training Awards - Postgraduates
BEIS,UKRI - AHRC,21/07/2020,Training Awards - Postgraduates,Collabrative Doctoral Grants - Block Payment,Birkbeck College,98779246,5523.25,Training Awards - Postgraduates
BEIS,UKRI - AHRC,21/07/2020,Training Awards - Postgraduates,Collabrative Doctoral Grants - Block Payment,University of Glasgow,98779247,5023.25,Training Awards - Postgraduates
BEIS,UKRI - AHRC,21/07/2020,Training Awards - Postgraduates,Collabrative Doctoral Grants - Block Payment,University of Stirling,98779248,5023.25,Training Awards - Postgraduates
BEIS,UKRI - AHRC,21/07/2020,Training Awards - Postgraduates,Collabrative Doctoral Grants - Block Payment,University of Newcastle Upon Tyne,98779249,5023.25,Training Awards - Postgraduates
BEIS,UKRI - AHRC,21/07/2020,Training Awards - Postgraduates,Collabrative Doctoral Grants - Block Payment,University of Leeds,98779250,5023.25,Training Awards - Postgraduates
BEIS,UKRI - AHRC,21/07/2020,Training Awards - Postgraduates,Collabrative Doctoral Grants - Block Payment,University of Oxford,98779251,5023.25,Training Awards - Postgraduates
BEIS,UKRI - AHRC,21/07/2020,Training Awards - Postgraduates,Collabrative Doctoral Grants - Block Payment,University of York,98779252,5023.25,Training Awards - Postgraduates
BEIS,UKRI - AHRC,21/07/2020,Training Awards - Postgraduates,Collabrative Doctoral Grants - Block Payment,University of Kent,98779253,5023.25,Training Awards - Postgraduates
BEIS,UKRI - AHRC,21/07/2020,Training Awards - Postgraduates,Collabrative Doctoral Grants - Block Payment,University of Cambridge,98779254,5023.25,Training Awards - Postgraduates
BEIS,UKRI - AHRC,21/07/2020,Training Awards - Postgraduates,Collabrative Doctoral Grants - Block Payment,Courtauld Institute of Art,98779255,5523.25,Training Awards - Postgraduates
BEIS,UKRI - AHRC,21/07/2020,Training Awards - Postgraduates,Collabrative Doctoral Grants - Block Payment,Queen Mary University of London,98779256,5523.25,Training Awards - Postgraduates
BEIS,UKRI - AHRC,21/07/2020,Training Awards - Postgraduates,Collabrative Doctoral Grants - Block Payment,University of Aberdeen,98779257,5023.25,Training Awards - Postgraduates
BEIS,UKRI - AHRC,21/07/2020,Training Awards - Postgraduates,Collabrative Doctoral Grants - Block Payment,University of Durham,98779258,5023.25,Training Awards - Postgraduates
BEIS,UKRI - AHRC,21/07/2020,Training Awards - Postgraduates,Collabrative Doctoral Grants - Block Payment,University College London,98779259,5523.25,Training Awards - Postgraduates
BEIS,UKRI - AHRC,21/07/2020,Training Awards - Postgraduates,Collabrative Doctoral Grants - Block Payment,University of Kent,98779260,5023.25,Training Awards - Postgraduates
BEIS,UKRI - AHRC,21/07/2020,Training Awards - Postgraduates,Collabrative Doctoral Grants - Block Payment,University of Cambridge,98779261,5023.25,Training Awards - Postgraduates
BEIS,UKRI - AHRC,21/07/2020,Training Awards - Postgraduates,Collabrative Doctoral Grants - Block Payment,University of Cambridge,98779262,5023.25,Training Awards - Postgraduates
BEIS,UKRI - AHRC,21/07/2020,Training Awards - Postgraduates,Collabrative Doctoral Grants - Block Payment,University of Leeds,98779263,5023.25,Training Awards - Postgraduates
BEIS,UKRI - AHRC,21/07/2020,Training Awards - Postgraduates,Collabrative Doctoral Grants - Block Payment,University of Leeds,98779264,5023.25,Training Awards - Postgraduates
BEIS,UKRI - AHRC,21/07/2020,Training Awards - Postgraduates,Collabrative Doctoral Grants - Block Payment,University of Strathclyde,98779265,5023.25,Training Awards - Postgraduates
BEIS,UKRI - AHRC,21/07/2020,Training Awards - Postgraduates,Collabrative Doctoral Grants - Block Payment,University of London,98779266,4342.97,Training Awards - Postgraduates
BEIS,UKRI - AHRC,21/07/2020,Training Awards - Postgraduates,Collabrative Doctoral Grants - Block Payment,Keele University,98779267,5023.25,Training Awards - Postgraduates
BEIS,UKRI - AHRC,21/07/2020,Training Awards - Postgraduates,Collabrative Doctoral Grants - Block Payment,Goldsmiths College University of London,98779268,5523.25,Training Awards - Postgraduates
BEIS,UKRI - AHRC,21/07/2020,Training Awards - Postgraduates,Collabrative Doctoral Grants - Block Payment,De Montfort University,98779269,5023.25,Training Awards - Postgraduates
BEIS,UKRI - AHRC,21/07/2020,Training Awards - Postgraduates,Collabrative Doctoral Grants - Block Payment,Sheffield Hallam University,98779270,5023.25,Training Awards - Postgraduates
BEIS,UKRI - AHRC,21/07/2020,Training Awards - Postgraduates,Collabrative Doctoral Grants - Block Payment,De Montfort University,98779271,5023.25,Training Awards - Postgraduates
BEIS,UKRI - AHRC,21/07/2020,Training Awards - Postgraduates,Collabrative Doctoral Grants - Block Payment,University of the Arts London,98779272,5523.25,Training Awards - Postgraduates
BEIS,UKRI - AHRC,21/07/2020,Training Awards - Postgraduates,Collabrative Doctoral Grants - Block Payment,Royal College of Art,98779273,5523.25,Training Awards - Postgraduates
BEIS,UKRI - AHRC,21/07/2020,Training Awards - Postgraduates,Industrial Strategy Challenge Fund (ISCF) - Skills,The University of Manchester,98779274,19666.12,Training Awards - Postgraduates
BEIS,UKRI - AHRC,21/07/2020,Training Awards - Postgraduates,Industrial Strategy Challenge Fund (ISCF) - Skills,University of Glasgow,98779275,19666.12,Training Awards - Postgraduates
BEIS,UKRI - AHRC,21/07/2020,Training Awards - Postgraduates,Industrial Strategy Challenge Fund (ISCF) - Skills,University of Newcastle Upon Tyne,98779276,19666.12,Training Awards - Postgraduates
BEIS,UKRI - AHRC,21/07/2020,Training Awards - Postgraduates,Industrial Strategy Challenge Fund (ISCF) - Skills,"Royal Holloway, University of London",98779277,21606.87,Training Awards - Postgraduates
BEIS,UKRI - AHRC,21/07/2020,Training Awards - Postgraduates,Industrial Strategy Challenge Fund (ISCF) - Skills,University of Nottingham,98779278,19666.12,Training Awards - Postgraduates
BEIS,UKRI - AHRC,21/07/2020,Training Awards - Postgraduates,Industrial Strategy Challenge Fund (ISCF) - Skills,University of the West of England,98779279,19665.67,Training Awards - Postgraduates
BEIS,UKRI - AHRC,21/07/2020,Training Awards - Postgraduates,BGP Award,University of Nottingham,98779280,240095.68,Training Awards - Postgraduates
BEIS,UKRI - AHRC,21/07/2020,Training Awards - Postgraduates,BGP Award,University of York,98779281,167374.20,Training Awards - Postgraduates
BEIS,UKRI - AHRC,21/07/2020,Training Awards - Postgraduates,BGP Award,University College London,98779282,258670.13,Training Awards - Postgraduates
BEIS,UKRI - AHRC,21/07/2020,Training Awards - Postgraduates,BGP Award,University of Newcastle Upon Tyne,98779283,199031.18,Training Awards - Postgraduates
BEIS,UKRI - AHRC,21/07/2020,Training Awards - Postgraduates,BGP Award,The University of Manchester,98779284,157129.88,Training Awards - Postgraduates
BEIS,UKRI - AHRC,21/07/2020,Training Awards - Postgraduates,BGP Award,University of Oxford,98779285,266752.63,Training Awards - Postgraduates
BEIS,UKRI - AHRC,21/07/2020,Training Awards - Postgraduates,BGP Award,University of Bristol GRANT,98779286,104464.50,Training Awards - Postgraduates
BEIS,UKRI - AHRC,21/07/2020,Training Awards - Postgraduates,BGP Award,University of Glasgow,98779287,199031.18,Training Awards - Postgraduates
BEIS,UKRI - AHRC,21/07/2020,Training Awards - Postgraduates,BGP Award,"Royal Holloway, University of London",98779288,214991.18,Training Awards - Postgraduates
BEIS,UKRI - AHRC,21/07/2020,Training Awards - Postgraduates,BGP Award,University of Sussex,98779289,202971.83,Training Awards - Postgraduates
BEIS,UKRI - AHRC,21/07/2020,Training Awards - Postgraduates,Collabrative Doctoral Grants - Block Payment,Glasgow Caledonian University,98779290,5021.50,Training Awards - Postgraduates
BEIS,UKRI - AHRC,21/07/2020,Training Awards - Postgraduates,Collabrative Doctoral Grants - Block Payment,University of Edinburgh,98779291,5021.50,Training Awards - Postgraduates
BEIS,UKRI - AHRC,21/07/2020,Training Awards - Postgraduates,Collabrative Doctoral Grants - Block Payment,"City, University of London",98779292,5521.50,Training Awards - Postgraduates
BEIS,UKRI - AHRC,21/07/2020,Training Awards - Postgraduates,Collabrative Doctoral Grants - Block Payment,University of York,98779293,5021.50,Training Awards - Postgraduates
BEIS,UKRI - AHRC,21/07/2020,Training Awards - Postgraduates,Collabrative Doctoral Grants - Block Payment,University of Leicester,98779294,5021.50,Training Awards - Postgraduates
BEIS,UKRI - AHRC,21/07/2020,Training Awards - Postgraduates,Collabrative Doctoral Grants - Block Payment,Loughborough University,98779295,5021.50,Training Awards - Postgraduates
BEIS,UKRI - AHRC,21/07/2020,Training Awards - Postgraduates,Collabrative Doctoral Grants - Block Payment,University of Hull,98779296,5021.50,Training Awards - Postgraduates
BEIS,UKRI - AHRC,21/07/2020,Training Awards - Postgraduates,Collabrative Doctoral Grants - Block Payment,University College London,98779297,5521.50,Training Awards - Postgraduates
BEIS,UKRI - AHRC,21/07/2020,Training Awards - Postgraduates,Collabrative Doctoral Grants - Block Payment,University of Brighton,98779298,5021.50,Training Awards - Postgraduates
BEIS,UKRI - AHRC,21/07/2020,Training Awards - Postgraduates,Collabrative Doctoral Grants - Block Payment,University of Glasgow,98779299,5021.50,Training Awards - Postgraduates
BEIS,UKRI - AHRC,21/07/2020,Training Awards - Postgraduates,Collabrative Doctoral Grants - Block Payment,University of East Anglia,98779300,5021.50,Training Awards - Postgraduates
BEIS,UKRI - AHRC,21/07/2020,Training Awards - Postgraduates,Collabrative Doctoral Grants - Block Payment,University of London,98779301,5521.50,Training Awards - Postgraduates
BEIS,UKRI - AHRC,21/07/2020,Training Awards - Postgraduates,Collabrative Doctoral Grants - Block Payment,University of Bristol GRANT,98779302,5021.50,Training Awards - Postgraduates
BEIS,UKRI - AHRC,21/07/2020,Training Awards - Postgraduates,Collabrative Doctoral Grants - Block Payment,Imperial College London,98779303,5521.50,Training Awards - Postgraduates
BEIS,UKRI - AHRC,21/07/2020,Training Awards - Postgraduates,Collabrative Doctoral Grants - Block Payment,University of St Andrews,98779304,5021.50,Training Awards - Postgraduates
BEIS,UKRI - AHRC,21/07/2020,Training Awards - Postgraduates,Collabrative Doctoral Grants - Block Payment,Goldsmiths College University of London,98779305,5521.50,Training Awards - Postgraduates
BEIS,UKRI - AHRC,21/07/2020,Training Awards - Postgraduates,Collabrative Doctoral Grants - Block Payment,University of Leeds,98779306,5021.50,Training Awards - Postgraduates
BEIS,UKRI - AHRC,21/07/2020,Training Awards - Postgraduates,Collabrative Doctoral Grants - Block Payment,University of Hertfordshire,98779307,4487.55,Training Awards - Postgraduates
BEIS,UKRI - AHRC,21/07/2020,Training Awards - Postgraduates,Collabrative Doctoral Grants - Block Payment,De Montfort University,98779308,4487.52,Training Awards - Postgraduates
BEIS,UKRI - AHRC,21/07/2020,Training Awards - Postgraduates,Collabrative Doctoral Grants - Block Payment,University of Edinburgh,98779309,5021.50,Training Awards - Postgraduates
BEIS,UKRI - AHRC,21/07/2020,Training Awards - Postgraduates,Collabrative Doctoral Grants - Block Payment,University of Edinburgh,98779310,5021.50,Training Awards - Postgraduates
BEIS,UKRI - AHRC,21/07/2020,Training Awards - Postgraduates,Collabrative Doctoral Grants - Block Payment,University of Leicester,98779311,5021.50,Training Awards - Postgraduates
BEIS,UKRI - AHRC,21/07/2020,Training Awards - Postgraduates,Collabrative Doctoral Grants - Block Payment,University of York,98779312,5021.50,Training Awards - Postgraduates
BEIS,UKRI - AHRC,21/07/2020,Training Awards - Postgraduates,Collabrative Doctoral Grants - Block Payment,University of Durham,98779313,5021.50,Training Awards - Postgraduates
BEIS,UKRI - AHRC,21/07/2020,Training Awards - Postgraduates,Collabrative Doctoral Grants - Block Payment,University of Warwick,98779314,5021.50,Training Awards - Postgraduates
BEIS,UKRI - AHRC,21/07/2020,Training Awards - Postgraduates,Collabrative Doctoral Grants - Block Payment,University of Brighton,98779315,5021.50,Training Awards - Postgraduates
BEIS,UKRI - AHRC,21/07/2020,Training Awards - Postgraduates,Collabrative Doctoral Grants - Block Payment,University of Southampton GRANT,98779316,5021.50,Training Awards - Postgraduates
BEIS,UKRI - AHRC,21/07/2020,Training Awards - Postgraduates,Collabrative Doctoral Grants - Block Payment,University College London,98779317,5521.50,Training Awards - Postgraduates
BEIS,UKRI - AHRC,21/07/2020,Training Awards - Postgraduates,Collabrative Doctoral Grants - Block Payment,University of East Anglia,98779318,5021.50,Training Awards - Postgraduates
BEIS,UKRI - AHRC,21/07/2020,Training Awards - Postgraduates,Collabrative Doctoral Grants - Block Payment,University of Nottingham,98779319,5021.50,Training Awards - Postgraduates
BEIS,UKRI - AHRC,21/07/2020,Training Awards - Postgraduates,Collabrative Doctoral Grants - Block Payment,University of Leeds,98779320,5021.50,Training Awards - Postgraduates
BEIS,UKRI - AHRC,21/07/2020,Training Awards - Postgraduates,Collabrative Doctoral Grants - Block Payment,University of Bristol GRANT,98779321,5021.50,Training Awards - Postgraduates
BEIS,UKRI - AHRC,21/07/2020,Training Awards - Postgraduates,Collabrative Doctoral Grants - Block Payment,The Open University,98779322,5021.50,Training Awards - Postgraduates
BEIS,UKRI - AHRC,21/07/2020,Training Awards - Postgraduates,Collabrative Doctoral Grants - Block Payment,University of the Arts London,98779323,5521.50,Training Awards - Postgraduates
BEIS,UKRI - AHRC,21/07/2020,Training Awards - Postgraduates,Collabrative Doctoral Grants - Block Payment,University of Strathclyde,98779324,5021.50,Training Awards - Postgraduates
BEIS,UKRI - AHRC,21/07/2020,Training Awards - Postgraduates,Collabrative Doctoral Grants - Block Payment,University of Oxford,98779325,5021.50,Training Awards - Postgraduates
BEIS,UKRI - AHRC,21/07/2020,Training Awards - Postgraduates,Collabrative Doctoral Grants - Block Payment,King's College London,98779326,5521.50,Training Awards - Postgraduates
BEIS,UKRI - AHRC,21/07/2020,Training Awards - Postgraduates,Collabrative Doctoral Grants - Block Payment,Birkbeck College,98779327,5521.50,Training Awards - Postgraduates
BEIS,UKRI - AHRC,21/07/2020,Training Awards - Postgraduates,Collabrative Doctoral Grants - Block Payment,University of Edinburgh,98779328,5021.50,Training Awards - Postgraduates
BEIS,UKRI - AHRC,21/07/2020,Training Awards - Postgraduates,Collabrative Doctoral Grants - Block Payment,University College London,98779329,5521.50,Training Awards - Postgraduates
BEIS,UKRI - AHRC,21/07/2020,Training Awards - Postgraduates,Collabrative Doctoral Grants - Block Payment,University of Leeds,98779330,5021.50,Training Awards - Postgraduates
BEIS,UKRI - AHRC,21/07/2020,Training Awards - Postgraduates,Collabrative Doctoral Grants - Block Payment,University College London,98779331,4987.53,Training Awards - Postgraduates
BEIS,UKRI - AHRC,21/07/2020,Training Awards - Postgraduates,Collabrative Doctoral Grants - Block Payment,Sheffield Hallam University,98779332,5021.50,Training Awards - Postgraduates
BEIS,UKRI - AHRC,21/07/2020,Training Awards - Postgraduates,Collabrative Doctoral Grants - Block Payment,University of Kent,98779333,5021.50,Training Awards - Postgraduates
BEIS,UKRI - AHRC,21/07/2020,Training Awards - Postgraduates,Collabrative Doctoral Grants - Block Payment,University of East Anglia,98779334,5021.50,Training Awards - Postgraduates
BEIS,UKRI - AHRC,21/07/2020,Training Awards - Postgraduates,Collabrative Doctoral Grants - Block Payment,University of the Arts London,98779335,5521.50,Training Awards - Postgraduates
BEIS,UKRI - AHRC,21/07/2020,Training Awards - Postgraduates,Collabrative Doctoral Grants - Block Payment,University College London,98779336,5521.50,Training Awards - Postgraduates
BEIS,UKRI - AHRC,21/07/2020,Training Awards - Postgraduates,Collabrative Doctoral Grants - Block Payment,King's College London,98779337,5521.50,Training Awards - Postgraduates
BEIS,UKRI - AHRC,21/07/2020,Training Awards - Postgraduates,International Placement Scheme,University of Oxford,98779338,5670.00,Training Awards - Postgraduates
BEIS,UKRI - AHRC,21/07/2020,Training Awards - Postgraduates,International Placement Scheme,University of Oxford,98779339,4470.00,Training Awards - Postgraduates
BEIS,UKRI - AHRC,21/07/2020,Training Awards - Postgraduates,Collabrative Doctoral Grants - Block Payment,Cardiff University,98779340,4487.55,Training Awards - Postgraduates
BEIS,UKRI - AHRC,21/07/2020,Training Awards - Postgraduates,Collabrative Doctoral Grants - Block Payment,University of Brighton,98779341,5021.50,Training Awards - Postgraduates
BEIS,UKRI - AHRC,21/07/2020,Training Awards - Postgraduates,Collabrative Doctoral Grants - Block Payment,University of Lincoln,98779342,8330.60,Training Awards - Postgraduates
BEIS,UKRI - AHRC,21/07/2020,Training Awards - Postgraduates,Collabrative Doctoral Grants - Block Payment,University of Lincoln,98779342,8330.60,Training Awards - Postgraduates
BEIS,UKRI - AHRC,21/07/2020,Training Awards - Postgraduates,Collabrative Doctoral Grants - Block Payment,University of Lincoln,98779342,8330.60,Training Awards - Postgraduates
BEIS,UKRI - AHRC,21/07/2020,Training Awards - Postgraduates,Collabrative Doctoral Grants - Block Payment,University of Lincoln,98779342,8330.60,Training Awards - Postgraduates
BEIS,UKRI - AHRC,21/07/2020,Training Awards - Postgraduates,Collabrative Doctoral Grants - Block Payment,University of Lincoln,98779342,8330.55,Training Awards - Postgraduates
BEIS,UKRI - AHRC,21/07/2020,Training Awards - Postgraduates,BGP Award,Birkbeck College,98779343,-41097.29,Training Awards - Postgraduates
BEIS,UKRI - AHRC,21/07/2020,Training Awards - Postgraduates,Collabrative Doctoral Grants - Block Payment,University of Southampton GRANT,98779344,8399.50,Training Awards - Postgraduates
BEIS,UKRI - AHRC,21/07/2020,Training Awards - Postgraduates,Collabrative Doctoral Grants - Block Payment,The Open University,98779345,861.00,Training Awards - Postgraduates
BEIS,UKRI - AHRC,21/07/2020,Training Awards - Postgraduates,Collabrative Doctoral Grants - Block Payment,The Open University,98779346,19470.00,Training Awards - Postgraduates
BEIS,UKRI - AHRC,21/07/2020,Training Awards - Postgraduates,International Placement Scheme,University of Birmingham GRANT,98779347,4446.23,Training Awards - Postgraduates
BEIS,UKRI - AHRC,21/07/2020,Training Awards - Postgraduates,International Placement Scheme,University of Newcastle Upon Tyne,98779348,4470.00,Training Awards - Postgraduates
BEIS,UKRI - AHRC,21/07/2020,Training Awards - Postgraduates,International Placement Scheme,University of Cambridge,98779349,4470.00,Training Awards - Postgraduates
BEIS,UKRI - AHRC,21/07/2020,Training Awards - Postgraduates,Collabrative Doctoral Grants - Block Payment,Birmingham City University,98779827,399.80,Training Awards - Postgraduates
BEIS,UKRI - AHRC,21/07/2020,Recruitment Costs,Corporate Services,Agenda Resource Management Ltd,98782130,153.91,Recruitment Costs
BEIS,UKRI - AHRC,21/07/2020,Recruitment Costs,Corporate Services,Agenda Resource Management Ltd,98782131,153.91,Recruitment Costs
BEIS,UKRI - AHRC,21/07/2020,Recruitment Costs,Corporate Services,Warwick University Services Ltd,98782616,250.00,Recruitment Costs
BEIS,UKRI - AHRC,21/07/2020,Unspecified,Executive Office,Hays Specialist Recruitment Ltd,98784530,2625.92,Agency Staff
BEIS,UKRI - AHRC,22/07/2020,Non-staff travel and subsistance,FIC- US,Unspecified,98784813,18.00,Non-staff travel and subsistance
BEIS,UKRI - AHRC,22/07/2020,Fees (Including College Members),FIC- US,Unspecified,98784814,160.00,Fees (Including College Members)
BEIS,UKRI - AHRC,22/07/2020,Non-staff travel and subsistance,Digital Arts and Humanities and Creative Industries,Unspecified,98784815,390.90,Non-staff travel and subsistance
BEIS,UKRI - AHRC,22/07/2020,Fees (Including College Members),GCRF - Programme Delivery,Unspecified,98784816,340.00,Fees (Including College Members)
BEIS,UKRI - AHRC,22/07/2020,Fees (Including College Members),GCRF - Programme Delivery,Unspecified,98784817,340.00,Fees (Including College Members)
BEIS,UKRI - AHRC,22/07/2020,Fees (Including College Members),GCRF - Programme Delivery,Unspecified,98784818,340.00,Fees (Including College Members)
BEIS,UKRI - AHRC,22/07/2020,Fees (Including College Members),GCRF - Programme Delivery,Unspecified,98784819,460.00,Fees (Including College Members)
BEIS,UKRI - AHRC,22/07/2020,Fees (Including College Members),New Programme Development,Unspecified,98784820,170.00,Fees (Including College Members)
BEIS,UKRI - AHRC,23/07/2020,Recruitment Costs,Executive Office,Onefix Recruitment Ltd,98784028,2421.60,Recruitment Costs
BEIS,UKRI - AHRC,23/07/2020,Fees (Including College Members),GCRF - Programme Delivery,Unspecified,98785077,340.00,Fees (Including College Members)
BEIS,UKRI - AHRC,23/07/2020,Fees (Including College Members),GCRF - Programme Delivery,Unspecified,98785078,340.00,Fees (Including College Members)
BEIS,UKRI - AHRC,23/07/2020,Fees (Including College Members),New Programme Development,Unspecified,98785079,230.00,Fees (Including College Members)
BEIS,UKRI - AHRC,23/07/2020,Fees (Including College Members),New Programme Development,Unspecified,98785080,170.00,Fees (Including College Members)
BEIS,UKRI - AHRC,23/07/2020,Fees (Including College Members),GCRF - Programme Delivery,Unspecified,98785081,340.00,Fees (Including College Members)
BEIS,UKRI - AHRC,23/07/2020,Fees (Including College Members),New Programme Development,Unspecified,98785082,170.00,Fees (Including College Members)
BEIS,UKRI - AHRC,24/07/2020,Unspecified,Industrial Strategy Challenge Fund (ISCF) - Creative Clusters,FRONTIER ECONOMICS LTD,98785263,30000.00,Legal & Professional Services
BEIS,UKRI - AHRC,27/07/2020,Voluntary Deductions,Balance Sheet,Swindon Office Sports and Social Club,98780375,32.00,Voluntary Deductions
BEIS,UKRI - AHRC,27/07/2020,Fees (Including College Members),GCRF - Programme Delivery,Unspecified,98786657,170.00,Fees (Including College Members)
BEIS,UKRI - AHRC,27/07/2020,Fees (Including College Members),GCRF - Programme Delivery,Unspecified,98786658,170.00,Fees (Including College Members)
BEIS,UKRI - AHRC,27/07/2020,Fees (Including College Members),GCRF - Programme Delivery,Unspecified,98786659,170.00,Fees (Including College Members)
BEIS,UKRI - AHRC,27/07/2020,Unspecified,SMT,Unspecified,98786728,49088.17,Secondments
BEIS,UKRI - AHRC,28/07/2020,Recharges From Councils - General,Finance,UKRI - Engineering & Physical Sciences Research Council,98785066,26206.42,Recharges From Councils - General
BEIS,UKRI - AHRC,28/07/2020,Recharges From Councils - General,HR,UKRI - Engineering & Physical Sciences Research Council,98785066,33759.84,Recharges From Councils - General
BEIS,UKRI - AHRC,28/07/2020,Recharges From Councils - General,IS,UKRI - Engineering & Physical Sciences Research Council,98785066,39128.75,Recharges From Councils - General
BEIS,UKRI - AHRC,28/07/2020,T&S UK - Other Charges,Health and Environmental Humanities,Unspecified,98786341,25.49,T&S UK - Other Charges
BEIS,UKRI - AHRC,29/07/2020,Non-staff travel and subsistance,Operations,Unspecified,98787243,101.70,Non-staff travel and subsistance
BEIS,UKRI - AHRC,29/07/2020,Fees (Including College Members),Operations,Unspecified,98787244,230.00,Fees (Including College Members)
BEIS,UKRI - AHRC,29/07/2020,Non-staff travel and subsistance,New Programme Development,Unspecified,98787245,81.30,Non-staff travel and subsistance
BEIS,UKRI - AHRC,29/07/2020,Fees (Including College Members),New Programme Development,Unspecified,98787246,170.00,Fees (Including College Members)
BEIS,UKRI - AHRC,30/07/2020,T&S UK - Subsistence,SMT,Unspecified,98788094,32.09,T&S UK - Subsistence
BEIS,UKRI - AHRC,30/07/2020,T&S UK - Other Charges,SMT,Unspecified,98788095,64.95,T&S UK - Other Charges
BEIS,UKRI - AHRC,31/07/2020,Research Grant Expenditure,Digital Arts and Humanities and Creative Industries,DESIGNSWARM INDUSTRIES LTD,98787745,244.80,Research Grant Expenditure
BEIS,UKRI - BBSRC,01/07/2020,Security Services,FG - Estates,Babraham Institute,98774518,8000.00,Security Services
BEIS,UKRI - BBSRC,01/07/2020,External Audit Fees,European Initiatives,HM Treasury Group,98774523,6300.00,External Audit Fees
BEIS,UKRI - BBSRC,01/07/2020,Conferences & Seminars,Science Group,Calder Conference Ltd,98775508,642.60,Conferences & Seminars
BEIS,UKRI - BBSRC,02/07/2020,Other Programme Costs,FG - Accounts & Business Planning,Unspecified,98775640,204.00,Other Programme Costs
BEIS,UKRI - BBSRC,02/07/2020,T&S UK - Other Charges,CIMG - Programme Office,Unspecified,98775801,71.00,T&S UK - Other Charges
BEIS,UKRI - BBSRC,02/07/2020,T&S UK - Other Charges,Innovation and Skills Group,Unspecified,98775802,40.93,T&S UK - Other Charges
BEIS,UKRI - BBSRC,03/07/2020,Unspecified,FG - Estates,Womble Bond Dickinson LLP,98775682,330.29,Legal & Professional Services
BEIS,UKRI - BBSRC,03/07/2020,Unspecified,FG - Estates,Womble Bond Dickinson LLP,98775683,8003.70,Legal & Professional Services
BEIS,UKRI - BBSRC,03/07/2020,Unspecified,FG - Estates,Womble Bond Dickinson LLP,98775684,1830.34,Legal & Professional Services
BEIS,UKRI - BBSRC,03/07/2020,Research Institutes - Capital Grants: Minor Works,Estates - Projects,Anglia Innovation Partnership LLP,98776463,30268.45,Research Institutes - Capital Grants: Minor Works
BEIS,UKRI - BBSRC,03/07/2020,Research Grant Expenditure,SPF W1 EMBL EBI,EMBL (European Molecular Biology Laboratory),98776478,12980.00,Research Grant Expenditure
BEIS,UKRI - BBSRC,03/07/2020,Research Grant Expenditure,SPF W1 EMBL EBI,EMBL (European Molecular Biology Laboratory),98776479,3481.86,Research Grant Expenditure
BEIS,UKRI - BBSRC,06/07/2020,T&S UK - Other Charges,Science Group,Unspecified,98771610,146.78,T&S UK - Other Charges
BEIS,UKRI - BBSRC,06/07/2020,T&S UK - Vehicle Hire,FG - Estates,Enterprise Rent-A-Car UK Ltd,98776346,43.06,T&S UK - Vehicle Hire
BEIS,UKRI - BBSRC,06/07/2020,T&S UK - Vehicle Hire,FG - Estates,Enterprise Rent-A-Car UK Ltd,98776346,58.79,T&S UK - Vehicle Hire
BEIS,UKRI - BBSRC,06/07/2020,T&S UK - Vehicle Hire,FG - Estates,Enterprise Rent-A-Car UK Ltd,98776346,77.91,T&S UK - Vehicle Hire
BEIS,UKRI - BBSRC,06/07/2020,T&S UK - Vehicle Hire,FG - Estates,Enterprise Rent-A-Car UK Ltd,98776346,78.61,T&S UK - Vehicle Hire
BEIS,UKRI - BBSRC,06/07/2020,T&S UK - Vehicle Hire,FG - RCUK Assurance,Enterprise Rent-A-Car UK Ltd,98776346,13.97,T&S UK - Vehicle Hire
BEIS,UKRI - BBSRC,06/07/2020,T&S UK - Vehicle Hire,FG - RCUK Assurance,Enterprise Rent-A-Car UK Ltd,98776346,69.86,T&S UK - Vehicle Hire
BEIS,UKRI - BBSRC,06/07/2020,T&S UK - Vehicle Hire,CIMG - External Relations,Enterprise Rent-A-Car UK Ltd,98776624,18.19,T&S UK - Vehicle Hire
BEIS,UKRI - BBSRC,06/07/2020,T&S UK - Vehicle Hire,CIMG - External Relations,Enterprise Rent-A-Car UK Ltd,98776624,90.94,T&S UK - Vehicle Hire
BEIS,UKRI - BBSRC,06/07/2020,T&S UK - Vehicle Hire,FG - Estates,Enterprise Rent-A-Car UK Ltd,98776624,48.07,T&S UK - Vehicle Hire
BEIS,UKRI - BBSRC,06/07/2020,T&S UK - Vehicle Hire,FG - Estates,Enterprise Rent-A-Car UK Ltd,98776624,109.59,T&S UK - Vehicle Hire
BEIS,UKRI - BBSRC,06/07/2020,T&S UK - Vehicle Hire,FG - Estates,Enterprise Rent-A-Car UK Ltd,98776624,77.58,T&S UK - Vehicle Hire
BEIS,UKRI - BBSRC,06/07/2020,T&S UK - Vehicle Hire,FG - Estates,Enterprise Rent-A-Car UK Ltd,98776624,53.14,T&S UK - Vehicle Hire
BEIS,UKRI - BBSRC,06/07/2020,T&S UK - Vehicle Hire,Innovation and Skills Group,Enterprise Rent-A-Car UK Ltd,98776624,69.86,T&S UK - Vehicle Hire
BEIS,UKRI - BBSRC,06/07/2020,T&S UK - Vehicle Hire,Innovation and Skills Group,Enterprise Rent-A-Car UK Ltd,98776624,13.97,T&S UK - Vehicle Hire
BEIS,UKRI - BBSRC,06/07/2020,T&S UK - Vehicle Hire,Science Group,Enterprise Rent-A-Car UK Ltd,98776624,13.97,T&S UK - Vehicle Hire
BEIS,UKRI - BBSRC,06/07/2020,T&S UK - Vehicle Hire,Science Group,Enterprise Rent-A-Car UK Ltd,98776624,69.86,T&S UK - Vehicle Hire
BEIS,UKRI - BBSRC,07/07/2020,Other Programme Costs,FG - Estates,Rothamsted Research Ltd,98766356,64212.90,Other Programme Costs
BEIS,UKRI - BBSRC,07/07/2020,Research Grant Expenditure,Science Group,UKRI - Medical Research Council,98773536,35952.84,Research Grant Expenditure
BEIS,UKRI - BBSRC,07/07/2020,Unspecified,FG - Estates,UHY Hacker Young LLP,98773769,9000.00,Legal & Professional Services
BEIS,UKRI - BBSRC,07/07/2020,Compensation Payments,FG - Accounts & Business Planning,Unspecified,98775631,1648.44,Compensation Payments
BEIS,UKRI - BBSRC,07/07/2020,Research Grant Expenditure,Science Group,UKRI - Medical Research Council,98775673,746875.00,Research Grant Expenditure
BEIS,UKRI - BBSRC,07/07/2020,Research Grant Expenditure,Science Group,UKRI - Medical Research Council,98776454,-155559.90,Research Grant Expenditure
BEIS,UKRI - BBSRC,07/07/2020,Research Institutes - Capital Grants: Major Works,Pirbright,The Pirbright Institute,98777032,105061.93,Research Institutes - Capital Grants: Major Works
BEIS,UKRI - BBSRC,07/07/2020,Research Institutes - Capital Grants: Major Works,Pirbright,The Pirbright Institute,98777033,23275.92,Research Institutes - Capital Grants: Major Works
BEIS,UKRI - BBSRC,07/07/2020,T&S Overseas - Accommodation,CE - IRU,Corporate Travel Management (North) Ltd,98777738,0.80,T&S Overseas - Accommodation
BEIS,UKRI - BBSRC,07/07/2020,T&S Overseas - Accommodation,CE - IRU,Corporate Travel Management (North) Ltd,98777738,139.91,T&S Overseas - Accommodation
BEIS,UKRI - BBSRC,07/07/2020,T&S Overseas - Accommodation,CE - IRU,Corporate Travel Management (North) Ltd,98777738,0.80,T&S Overseas - Accommodation
BEIS,UKRI - BBSRC,07/07/2020,T&S Overseas - Accommodation,CE - IRU,Corporate Travel Management (North) Ltd,98777738,94.36,T&S Overseas - Accommodation
BEIS,UKRI - BBSRC,07/07/2020,T&S Overseas - Accommodation,CE - IRU,Corporate Travel Management (North) Ltd,98777738,0.80,T&S Overseas - Accommodation
BEIS,UKRI - BBSRC,07/07/2020,T&S Overseas - Accommodation,CE - IRU,Corporate Travel Management (North) Ltd,98777738,94.36,T&S Overseas - Accommodation
BEIS,UKRI - BBSRC,07/07/2020,T&S Overseas - Accommodation,CE - IRU,Corporate Travel Management (North) Ltd,98777738,0.16,T&S Overseas - Accommodation
BEIS,UKRI - BBSRC,07/07/2020,T&S Overseas - Accommodation,CE - IRU,Corporate Travel Management (North) Ltd,98777738,0.32,T&S Overseas - Accommodation
BEIS,UKRI - BBSRC,07/07/2020,T&S Overseas - Accommodation,Science Group,Corporate Travel Management (North) Ltd,98777738,0.80,T&S Overseas - Accommodation
BEIS,UKRI - BBSRC,07/07/2020,T&S Overseas - Accommodation,Science Group,Corporate Travel Management (North) Ltd,98777738,1150.95,T&S Overseas - Accommodation
BEIS,UKRI - BBSRC,07/07/2020,T&S Overseas - Accommodation,Science Group,Corporate Travel Management (North) Ltd,98777738,0.16,T&S Overseas - Accommodation
BEIS,UKRI - BBSRC,07/07/2020,T&S Overseas - Public Transport,RISD - UKRO,Corporate Travel Management (North) Ltd,98777738,2.50,T&S Overseas - Public Transport
BEIS,UKRI - BBSRC,07/07/2020,T&S Overseas - Public Transport,RISD - UKRO,Corporate Travel Management (North) Ltd,98777738,481.10,T&S Overseas - Public Transport
BEIS,UKRI - BBSRC,07/07/2020,T&S Overseas - Public Transport,RISD - UKRO,Corporate Travel Management (North) Ltd,98777738,4.50,T&S Overseas - Public Transport
BEIS,UKRI - BBSRC,07/07/2020,T&S Overseas - Public Transport,RISD - UKRO,Corporate Travel Management (North) Ltd,98777738,344.00,T&S Overseas - Public Transport
BEIS,UKRI - BBSRC,07/07/2020,T&S UK - Accommodation,Innovation and Skills Group,Corporate Travel Management (North) Ltd,98777738,112.50,T&S UK - Accommodation
BEIS,UKRI - BBSRC,07/07/2020,T&S UK - Accommodation,Innovation and Skills Group,Corporate Travel Management (North) Ltd,98777738,0.80,T&S UK - Accommodation
BEIS,UKRI - BBSRC,07/07/2020,T&S UK - Accommodation,Innovation and Skills Group,Corporate Travel Management (North) Ltd,98777738,0.16,T&S UK - Accommodation
BEIS,UKRI - BBSRC,07/07/2020,Health & Safety (inc. Medicals & Opticians),PDG - Director,Swindon Occupational Medical Services Ltd,98777932,700.00,Health & Safety (inc. Medicals & Opticians)
BEIS,UKRI - BBSRC,07/07/2020,T&S UK - Other Charges,CE - IRU,Unspecified,98778494,23.99,T&S UK - Other Charges
BEIS,UKRI - BBSRC,08/07/2020,Fees (Including College Members),CE - CPS,Unspecified,98778721,170.00,Fees (Including College Members)
BEIS,UKRI - BBSRC,10/07/2020,Training Awards - Postgraduates,FG - Accounts & Business Planning,University of Edinburgh,98774871,2704.18,Training Awards - Postgraduates
BEIS,UKRI - BBSRC,10/07/2020,Training Awards - Postgraduates,FG - Accounts & Business Planning,Royal Veterinary College,98774872,3904.16,Training Awards - Postgraduates
BEIS,UKRI - BBSRC,10/07/2020,Training Awards - Postgraduates,FG - Accounts & Business Planning,University College London,98774873,1102376.00,Training Awards - Postgraduates
BEIS,UKRI - BBSRC,10/07/2020,Training Awards - Postgraduates,FG - Accounts & Business Planning,University of Nottingham,98774874,850983.20,Training Awards - Postgraduates
BEIS,UKRI - BBSRC,10/07/2020,Training Awards - Postgraduates,FG - Accounts & Business Planning,University of Cambridge,98774875,1020376.00,Training Awards - Postgraduates
BEIS,UKRI - BBSRC,10/07/2020,Training Awards - Postgraduates,FG - Accounts & Business Planning,John Innes Centre,98774876,858983.00,Training Awards - Postgraduates
BEIS,UKRI - BBSRC,10/07/2020,Training Awards - Postgraduates,FG - Accounts & Business Planning,University of Warwick,98774877,891834.00,Training Awards - Postgraduates
BEIS,UKRI - BBSRC,10/07/2020,Training Awards - Postgraduates,FG - Accounts & Business Planning,University of Oxford,98774878,890149.00,Training Awards - Postgraduates
BEIS,UKRI - BBSRC,10/07/2020,Training Awards - Postgraduates,FG - Accounts & Business Planning,University of Leeds,98774879,808430.00,Training Awards - Postgraduates
BEIS,UKRI - BBSRC,10/07/2020,Training Awards - Postgraduates,FG - Accounts & Business Planning,University of Newcastle Upon Tyne,98774880,290600.00,Training Awards - Postgraduates
BEIS,UKRI - BBSRC,10/07/2020,Training Awards - Postgraduates,FG - Accounts & Business Planning,Imperial College London,98774881,580546.00,Training Awards - Postgraduates
BEIS,UKRI - BBSRC,10/07/2020,Training Awards - Postgraduates,FG - Accounts & Business Planning,The University of Manchester,98774882,534100.00,Training Awards - Postgraduates
BEIS,UKRI - BBSRC,10/07/2020,Training Awards - Postgraduates,FG - Accounts & Business Planning,University of Edinburgh,98774883,527362.88,Training Awards - Postgraduates
BEIS,UKRI - BBSRC,10/07/2020,Training Awards - Postgraduates,FG - Accounts & Business Planning,University of Bristol GRANT,98774884,572213.88,Training Awards - Postgraduates
BEIS,UKRI - BBSRC,10/07/2020,Training Awards - Postgraduates,FG - Accounts & Business Planning,University of Edinburgh,98774885,5483.18,Training Awards - Postgraduates
BEIS,UKRI - BBSRC,10/07/2020,Training Awards - Postgraduates,FG - Accounts & Business Planning,University of Oxford,98774886,10774.12,Training Awards - Postgraduates
BEIS,UKRI - BBSRC,10/07/2020,Training Awards - Postgraduates,FG - Accounts & Business Planning,King's College London,98774887,4953.94,Training Awards - Postgraduates
BEIS,UKRI - BBSRC,10/07/2020,Training Awards - Postgraduates,FG - Accounts & Business Planning,SRUC,98774888,4834.20,Training Awards - Postgraduates
BEIS,UKRI - BBSRC,10/07/2020,Training Awards - Postgraduates,FG - Accounts & Business Planning,University of Leeds,98774889,5483.18,Training Awards - Postgraduates
BEIS,UKRI - BBSRC,10/07/2020,Training Awards - Postgraduates,FG - Accounts & Business Planning,University of Oxford,98774890,5113.72,Training Awards - Postgraduates
BEIS,UKRI - BBSRC,10/07/2020,Training Awards - Postgraduates,FG - Accounts & Business Planning,The University of Manchester,98774891,6043.50,Training Awards - Postgraduates
BEIS,UKRI - BBSRC,10/07/2020,Training Awards - Postgraduates,FG - Accounts & Business Planning,University of Newcastle Upon Tyne,98774892,6043.50,Training Awards - Postgraduates
BEIS,UKRI - BBSRC,10/07/2020,Training Awards - Postgraduates,FG - Accounts & Business Planning,University of Surrey,98774893,5180.15,Training Awards - Postgraduates
BEIS,UKRI - BBSRC,10/07/2020,Training Awards - Postgraduates,FG - Accounts & Business Planning,University of Leicester,98774894,6043.50,Training Awards - Postgraduates
BEIS,UKRI - BBSRC,10/07/2020,Training Awards - Postgraduates,FG - Accounts & Business Planning,University of Surrey,98774895,4532.61,Training Awards - Postgraduates
BEIS,UKRI - BBSRC,10/07/2020,Training Awards - Postgraduates,FG - Accounts & Business Planning,King's College London,98774896,6543.50,Training Awards - Postgraduates
BEIS,UKRI - BBSRC,10/07/2020,Training Awards - Postgraduates,FG - Accounts & Business Planning,University of Edinburgh,98774897,6043.50,Training Awards - Postgraduates
BEIS,UKRI - BBSRC,10/07/2020,Training Awards - Postgraduates,FG - Accounts & Business Planning,University of Cambridge,98774898,6043.50,Training Awards - Postgraduates
BEIS,UKRI - BBSRC,10/07/2020,Training Awards - Postgraduates,FG - Accounts & Business Planning,University of Nottingham,98774899,5578.62,Training Awards - Postgraduates
BEIS,UKRI - BBSRC,10/07/2020,Training Awards - Postgraduates,FG - Accounts & Business Planning,Imperial College London,98774900,6543.50,Training Awards - Postgraduates
BEIS,UKRI - BBSRC,10/07/2020,Training Awards - Postgraduates,FG - Accounts & Business Planning,University of Southampton GRANT,98774901,6043.50,Training Awards - Postgraduates
BEIS,UKRI - BBSRC,10/07/2020,Training Awards - Postgraduates,FG - Accounts & Business Planning,University of Bath,98774902,6043.50,Training Awards - Postgraduates
BEIS,UKRI - BBSRC,10/07/2020,Training Awards - Postgraduates,FG - Accounts & Business Planning,National Institute For Agricultural Botany (NIAB),98774903,9744.35,Training Awards - Postgraduates
BEIS,UKRI - BBSRC,10/07/2020,Training Awards - Postgraduates,FG - Accounts & Business Planning,University of Exeter,98774904,3453.43,Training Awards - Postgraduates
BEIS,UKRI - BBSRC,10/07/2020,Training Awards - Postgraduates,FG - Accounts & Business Planning,University of Newcastle Upon Tyne,98774905,6043.50,Training Awards - Postgraduates
BEIS,UKRI - BBSRC,10/07/2020,Training Awards - Postgraduates,FG - Accounts & Business Planning,University of Cambridge,98774906,6043.50,Training Awards - Postgraduates
BEIS,UKRI - BBSRC,10/07/2020,Training Awards - Postgraduates,FG - Accounts & Business Planning,University of Oxford,98774907,6043.50,Training Awards - Postgraduates
BEIS,UKRI - BBSRC,10/07/2020,Training Awards - Postgraduates,FG - Accounts & Business Planning,The University of Manchester,98774908,6043.50,Training Awards - Postgraduates
BEIS,UKRI - BBSRC,10/07/2020,Training Awards - Postgraduates,FG - Accounts & Business Planning,University of Nottingham,98774909,6043.50,Training Awards - Postgraduates
BEIS,UKRI - BBSRC,10/07/2020,Training Awards - Postgraduates,FG - Accounts & Business Planning,University of Southampton GRANT,98774910,6043.50,Training Awards - Postgraduates
BEIS,UKRI - BBSRC,10/07/2020,Training Awards - Postgraduates,FG - Accounts & Business Planning,University of Nottingham,98774911,6043.50,Training Awards - Postgraduates
BEIS,UKRI - BBSRC,10/07/2020,Training Awards - Postgraduates,FG - Accounts & Business Planning,University of York,98774912,6043.50,Training Awards - Postgraduates
BEIS,UKRI - BBSRC,10/07/2020,Training Awards - Postgraduates,FG - Accounts & Business Planning,University of Reading,98774913,5288.06,Training Awards - Postgraduates
BEIS,UKRI - BBSRC,10/07/2020,Training Awards - Postgraduates,FG - Accounts & Business Planning,Brunel University London,98774914,11377.70,Training Awards - Postgraduates
BEIS,UKRI - BBSRC,10/07/2020,Training Awards - Postgraduates,FG - Accounts & Business Planning,University of Leeds,98774915,6043.50,Training Awards - Postgraduates
BEIS,UKRI - BBSRC,10/07/2020,Training Awards - Postgraduates,FG - Accounts & Business Planning,University of Oxford,98774916,5688.00,Training Awards - Postgraduates
BEIS,UKRI - BBSRC,10/07/2020,Training Awards - Postgraduates,FG - Accounts & Business Planning,University of Newcastle Upon Tyne,98774917,1428.58,Training Awards - Postgraduates
BEIS,UKRI - BBSRC,10/07/2020,Training Awards - Postgraduates,FG - Accounts & Business Planning,University of Cambridge,98774918,6043.50,Training Awards - Postgraduates
BEIS,UKRI - BBSRC,10/07/2020,Training Awards - Postgraduates,FG - Accounts & Business Planning,Cardiff University,98774919,6138.25,Training Awards - Postgraduates
BEIS,UKRI - BBSRC,10/07/2020,Training Awards - Postgraduates,FG - Accounts & Business Planning,The University of Manchester,98774920,6138.25,Training Awards - Postgraduates
BEIS,UKRI - BBSRC,10/07/2020,Training Awards - Postgraduates,FG - Accounts & Business Planning,University of York,98774921,5699.80,Training Awards - Postgraduates
BEIS,UKRI - BBSRC,10/07/2020,Training Awards - Postgraduates,FG - Accounts & Business Planning,University of Surrey,98774922,6138.25,Training Awards - Postgraduates
BEIS,UKRI - BBSRC,10/07/2020,Training Awards - Postgraduates,FG - Accounts & Business Planning,King's College London,98774923,6669.50,Training Awards - Postgraduates
BEIS,UKRI - BBSRC,10/07/2020,Training Awards - Postgraduates,FG - Accounts & Business Planning,University of Reading,98774924,6138.25,Training Awards - Postgraduates
BEIS,UKRI - BBSRC,10/07/2020,Training Awards - Postgraduates,FG - Accounts & Business Planning,University of Oxford,98774925,6043.50,Training Awards - Postgraduates
BEIS,UKRI - BBSRC,10/07/2020,Training Awards - Postgraduates,FG - Accounts & Business Planning,Quadram Institute Bioscience,98774926,6138.25,Training Awards - Postgraduates
BEIS,UKRI - BBSRC,10/07/2020,Training Awards - Postgraduates,FG - Accounts & Business Planning,University of Warwick,98774927,6138.25,Training Awards - Postgraduates
BEIS,UKRI - BBSRC,10/07/2020,Training Awards - Postgraduates,FG - Accounts & Business Planning,Lancaster University,98774928,5319.81,Training Awards - Postgraduates
BEIS,UKRI - BBSRC,10/07/2020,Training Awards - Postgraduates,FG - Accounts & Business Planning,The University of Manchester,98774929,6138.25,Training Awards - Postgraduates
BEIS,UKRI - BBSRC,10/07/2020,Training Awards - Postgraduates,FG - Accounts & Business Planning,University of Exeter,98774930,6138.25,Training Awards - Postgraduates
BEIS,UKRI - BBSRC,10/07/2020,Training Awards - Postgraduates,FG - Accounts & Business Planning,University of Edinburgh,98774931,6138.25,Training Awards - Postgraduates
BEIS,UKRI - BBSRC,10/07/2020,Training Awards - Postgraduates,FG - Accounts & Business Planning,Heriot Watt University,98774932,6138.25,Training Awards - Postgraduates
BEIS,UKRI - BBSRC,10/07/2020,Training Awards - Postgraduates,FG - Accounts & Business Planning,Abertay University,98774933,6138.25,Training Awards - Postgraduates
BEIS,UKRI - BBSRC,10/07/2020,Training Awards - Postgraduates,FG - Accounts & Business Planning,The University of Manchester,98774934,3069.13,Training Awards - Postgraduates
BEIS,UKRI - BBSRC,10/07/2020,Training Awards - Postgraduates,FG - Accounts & Business Planning,National Institute For Agricultural Botany (NIAB),98774935,6138.25,Training Awards - Postgraduates
BEIS,UKRI - BBSRC,10/07/2020,Training Awards - Postgraduates,FG - Accounts & Business Planning,Imperial College London,98774936,6638.25,Training Awards - Postgraduates
BEIS,UKRI - BBSRC,10/07/2020,Training Awards - Postgraduates,FG - Accounts & Business Planning,University of Cambridge,98774937,6138.25,Training Awards - Postgraduates
BEIS,UKRI - BBSRC,10/07/2020,Training Awards - Postgraduates,FG - Accounts & Business Planning,National Institute For Agricultural Botany (NIAB),98774938,6138.25,Training Awards - Postgraduates
BEIS,UKRI - BBSRC,10/07/2020,Training Awards - Postgraduates,FG - Accounts & Business Planning,University of Birmingham GRANT,98774939,6138.25,Training Awards - Postgraduates
BEIS,UKRI - BBSRC,10/07/2020,Training Awards - Postgraduates,FG - Accounts & Business Planning,Liverpool John Moores University,98774940,6138.25,Training Awards - Postgraduates
BEIS,UKRI - BBSRC,10/07/2020,Training Awards - Postgraduates,FG - Accounts & Business Planning,University of Exeter,98774941,6138.25,Training Awards - Postgraduates
BEIS,UKRI - BBSRC,10/07/2020,Training Awards - Postgraduates,FG - Accounts & Business Planning,Queen Mary University of London,98774942,6638.25,Training Awards - Postgraduates
BEIS,UKRI - BBSRC,10/07/2020,Training Awards - Postgraduates,FG - Accounts & Business Planning,University of Southampton GRANT,98774943,6043.50,Training Awards - Postgraduates
BEIS,UKRI - BBSRC,10/07/2020,Training Awards - Postgraduates,FG - Accounts & Business Planning,University of Warwick,98774944,4910.61,Training Awards - Postgraduates
BEIS,UKRI - BBSRC,10/07/2020,Training Awards - Postgraduates,FG - Accounts & Business Planning,University of Cambridge,98774945,6138.25,Training Awards - Postgraduates
BEIS,UKRI - BBSRC,10/07/2020,Training Awards - Postgraduates,FG - Accounts & Business Planning,University of Cambridge,98774946,6138.25,Training Awards - Postgraduates
BEIS,UKRI - BBSRC,10/07/2020,Training Awards - Postgraduates,FG - Accounts & Business Planning,University of Glasgow,98774947,6138.25,Training Awards - Postgraduates
BEIS,UKRI - BBSRC,10/07/2020,Training Awards - Postgraduates,FG - Accounts & Business Planning,University of Exeter,98774948,6138.25,Training Awards - Postgraduates
BEIS,UKRI - BBSRC,10/07/2020,Training Awards - Postgraduates,FG - Accounts & Business Planning,University of Cambridge,98774949,6138.25,Training Awards - Postgraduates
BEIS,UKRI - BBSRC,10/07/2020,Training Awards - Postgraduates,FG - Accounts & Business Planning,University of Reading,98774950,6138.25,Training Awards - Postgraduates
BEIS,UKRI - BBSRC,10/07/2020,Training Awards - Postgraduates,FG - Accounts & Business Planning,University of Southampton GRANT,98774951,6138.25,Training Awards - Postgraduates
BEIS,UKRI - BBSRC,10/07/2020,Training Awards - Postgraduates,FG - Accounts & Business Planning,Lancaster University,98774952,6138.25,Training Awards - Postgraduates
BEIS,UKRI - BBSRC,10/07/2020,Training Awards - Postgraduates,FG - Accounts & Business Planning,University of Sheffield,98774953,6138.25,Training Awards - Postgraduates
BEIS,UKRI - BBSRC,10/07/2020,Training Awards - Postgraduates,FG - Accounts & Business Planning,University of Liverpool,98774954,6138.25,Training Awards - Postgraduates
BEIS,UKRI - BBSRC,10/07/2020,Training Awards - Postgraduates,FG - Accounts & Business Planning,University of Liverpool,98774955,6138.25,Training Awards - Postgraduates
BEIS,UKRI - BBSRC,10/07/2020,Training Awards - Postgraduates,FG - Accounts & Business Planning,Queen Mary University of London,98774956,6638.25,Training Awards - Postgraduates
BEIS,UKRI - BBSRC,10/07/2020,Training Awards - Postgraduates,FG - Accounts & Business Planning,University of Leeds,98774957,5193.90,Training Awards - Postgraduates
BEIS,UKRI - BBSRC,10/07/2020,Training Awards - Postgraduates,FG - Accounts & Business Planning,University of Southampton GRANT,98774958,6138.25,Training Awards - Postgraduates
BEIS,UKRI - BBSRC,10/07/2020,Training Awards - Postgraduates,FG - Accounts & Business Planning,University of St Andrews,98774959,6138.25,Training Awards - Postgraduates
BEIS,UKRI - BBSRC,10/07/2020,Training Awards - Postgraduates,FG - Accounts & Business Planning,University of Leeds,98774960,6138.25,Training Awards - Postgraduates
BEIS,UKRI - BBSRC,10/07/2020,Training Awards - Postgraduates,FG - Accounts & Business Planning,University of Edinburgh,98774961,6138.25,Training Awards - Postgraduates
BEIS,UKRI - BBSRC,10/07/2020,Training Awards - Postgraduates,FG - Accounts & Business Planning,University of Edinburgh,98774962,6138.25,Training Awards - Postgraduates
BEIS,UKRI - BBSRC,10/07/2020,Training Awards - Postgraduates,FG - Accounts & Business Planning,University of Cambridge,98774963,6138.25,Training Awards - Postgraduates
BEIS,UKRI - BBSRC,10/07/2020,Training Awards - Postgraduates,FG - Accounts & Business Planning,University of Aberdeen,98774964,6138.25,Training Awards - Postgraduates
BEIS,UKRI - BBSRC,10/07/2020,Training Awards - Postgraduates,FG - Accounts & Business Planning,John Innes Centre,98774965,6138.25,Training Awards - Postgraduates
BEIS,UKRI - BBSRC,10/07/2020,Training Awards - Postgraduates,FG - Accounts & Business Planning,University of Newcastle Upon Tyne,98774966,6138.25,Training Awards - Postgraduates
BEIS,UKRI - BBSRC,10/07/2020,Training Awards - Postgraduates,FG - Accounts & Business Planning,University of Bristol GRANT,98774967,6138.25,Training Awards - Postgraduates
BEIS,UKRI - BBSRC,10/07/2020,Training Awards - Postgraduates,FG - Accounts & Business Planning,University of Bath,98774968,6138.25,Training Awards - Postgraduates
BEIS,UKRI - BBSRC,10/07/2020,Training Awards - Postgraduates,FG - Accounts & Business Planning,National Institute For Agricultural Botany (NIAB),98774969,4987.33,Training Awards - Postgraduates
BEIS,UKRI - BBSRC,10/07/2020,Training Awards - Postgraduates,FG - Accounts & Business Planning,National Institute For Agricultural Botany (NIAB),98774970,6138.25,Training Awards - Postgraduates
BEIS,UKRI - BBSRC,10/07/2020,Training Awards - Postgraduates,FG - Accounts & Business Planning,Imperial College London,98774971,6638.25,Training Awards - Postgraduates
BEIS,UKRI - BBSRC,10/07/2020,Training Awards - Postgraduates,FG - Accounts & Business Planning,Imperial College London,98774972,6638.25,Training Awards - Postgraduates
BEIS,UKRI - BBSRC,10/07/2020,Training Awards - Postgraduates,FG - Accounts & Business Planning,The University of Manchester,98774973,6138.25,Training Awards - Postgraduates
BEIS,UKRI - BBSRC,10/07/2020,Training Awards - Postgraduates,FG - Accounts & Business Planning,Imperial College London,98774974,6638.25,Training Awards - Postgraduates
BEIS,UKRI - BBSRC,10/07/2020,Training Awards - Postgraduates,FG - Accounts & Business Planning,University of Sheffield,98774975,6138.25,Training Awards - Postgraduates
BEIS,UKRI - BBSRC,10/07/2020,Training Awards - Postgraduates,FG - Accounts & Business Planning,University of Edinburgh,98774976,6138.25,Training Awards - Postgraduates
BEIS,UKRI - BBSRC,10/07/2020,Training Awards - Postgraduates,FG - Accounts & Business Planning,University of Cambridge,98774977,6138.25,Training Awards - Postgraduates
BEIS,UKRI - BBSRC,10/07/2020,Training Awards - Postgraduates,FG - Accounts & Business Planning,University of Edinburgh,98774978,6138.25,Training Awards - Postgraduates
BEIS,UKRI - BBSRC,10/07/2020,Training Awards - Postgraduates,FG - Accounts & Business Planning,Imperial College London,98774979,6638.25,Training Awards - Postgraduates
BEIS,UKRI - BBSRC,10/07/2020,Training Awards - Postgraduates,FG - Accounts & Business Planning,"Royal Holloway, University of London",98774980,6638.25,Training Awards - Postgraduates
BEIS,UKRI - BBSRC,10/07/2020,Training Awards - Postgraduates,FG - Accounts & Business Planning,"Royal Holloway, University of London",98774981,6638.25,Training Awards - Postgraduates
BEIS,UKRI - BBSRC,10/07/2020,Training Awards - Postgraduates,FG - Accounts & Business Planning,Imperial College London,98774982,6638.25,Training Awards - Postgraduates
BEIS,UKRI - BBSRC,10/07/2020,Training Awards - Postgraduates,FG - Accounts & Business Planning,Imperial College London,98774983,6263.25,Training Awards - Postgraduates
BEIS,UKRI - BBSRC,10/07/2020,Training Awards - Postgraduates,FG - Accounts & Business Planning,Imperial College London,98774984,6638.25,Training Awards - Postgraduates
BEIS,UKRI - BBSRC,10/07/2020,Training Awards - Postgraduates,FG - Accounts & Business Planning,Imperial College London,98774985,6638.25,Training Awards - Postgraduates
BEIS,UKRI - BBSRC,10/07/2020,Training Awards - Postgraduates,FG - Accounts & Business Planning,Imperial College London,98774986,6638.25,Training Awards - Postgraduates
BEIS,UKRI - BBSRC,10/07/2020,Training Awards - Postgraduates,FG - Accounts & Business Planning,Imperial College London,98774987,6638.25,Training Awards - Postgraduates
BEIS,UKRI - BBSRC,10/07/2020,Training Awards - Postgraduates,FG - Accounts & Business Planning,The University of Manchester,98774988,6138.25,Training Awards - Postgraduates
BEIS,UKRI - BBSRC,10/07/2020,Training Awards - Postgraduates,FG - Accounts & Business Planning,University of Warwick,98774989,6138.25,Training Awards - Postgraduates
BEIS,UKRI - BBSRC,10/07/2020,Training Awards - Postgraduates,FG - Accounts & Business Planning,University of Sheffield,98774990,6138.25,Training Awards - Postgraduates
BEIS,UKRI - BBSRC,10/07/2020,Training Awards - Postgraduates,FG - Accounts & Business Planning,University of Sheffield,98774991,6138.25,Training Awards - Postgraduates
BEIS,UKRI - BBSRC,10/07/2020,Training Awards - Postgraduates,FG - Accounts & Business Planning,University of Newcastle Upon Tyne,98774992,6138.25,Training Awards - Postgraduates
BEIS,UKRI - BBSRC,10/07/2020,Training Awards - Postgraduates,FG - Accounts & Business Planning,University of Sheffield,98774993,6138.25,Training Awards - Postgraduates
BEIS,UKRI - BBSRC,10/07/2020,Training Awards - Postgraduates,FG - Accounts & Business Planning,The University of Manchester,98774994,6138.25,Training Awards - Postgraduates
BEIS,UKRI - BBSRC,10/07/2020,Training Awards - Postgraduates,FG - Accounts & Business Planning,The University of Manchester,98774995,6138.25,Training Awards - Postgraduates
BEIS,UKRI - BBSRC,10/07/2020,Training Awards - Postgraduates,FG - Accounts & Business Planning,The University of Manchester,98774996,6138.25,Training Awards - Postgraduates
BEIS,UKRI - BBSRC,10/07/2020,Training Awards - Postgraduates,FG - Accounts & Business Planning,The University of Manchester,98774997,6138.25,Training Awards - Postgraduates
BEIS,UKRI - BBSRC,10/07/2020,Training Awards - Postgraduates,FG - Accounts & Business Planning,The University of Manchester,98774998,6138.25,Training Awards - Postgraduates
BEIS,UKRI - BBSRC,10/07/2020,Training Awards - Postgraduates,FG - Accounts & Business Planning,The University of Manchester,98774999,6138.25,Training Awards - Postgraduates
BEIS,UKRI - BBSRC,10/07/2020,Training Awards - Postgraduates,FG - Accounts & Business Planning,The University of Manchester,98775000,6138.25,Training Awards - Postgraduates
BEIS,UKRI - BBSRC,10/07/2020,Training Awards - Postgraduates,FG - Accounts & Business Planning,The University of Manchester,98775001,6138.25,Training Awards - Postgraduates
BEIS,UKRI - BBSRC,10/07/2020,Training Awards - Postgraduates,FG - Accounts & Business Planning,University of Oxford,98775002,6138.25,Training Awards - Postgraduates
BEIS,UKRI - BBSRC,10/07/2020,Training Awards - Postgraduates,FG - Accounts & Business Planning,The Pirbright Institute,98775003,6138.25,Training Awards - Postgraduates
BEIS,UKRI - BBSRC,10/07/2020,Training Awards - Postgraduates,FG - Accounts & Business Planning,University of Oxford,98775004,6138.25,Training Awards - Postgraduates
BEIS,UKRI - BBSRC,10/07/2020,Training Awards - Postgraduates,FG - Accounts & Business Planning,University of Cambridge,98775005,6138.25,Training Awards - Postgraduates
BEIS,UKRI - BBSRC,10/07/2020,Training Awards - Postgraduates,FG - Accounts & Business Planning,University College London,98775006,6638.25,Training Awards - Postgraduates
BEIS,UKRI - BBSRC,10/07/2020,Training Awards - Postgraduates,FG - Accounts & Business Planning,University College London,98775007,6638.25,Training Awards - Postgraduates
BEIS,UKRI - BBSRC,10/07/2020,Training Awards - Postgraduates,FG - Accounts & Business Planning,Queen Mary University of London,98775008,6638.25,Training Awards - Postgraduates
BEIS,UKRI - BBSRC,10/07/2020,Training Awards - Postgraduates,FG - Accounts & Business Planning,University College London,98775009,6638.25,Training Awards - Postgraduates
BEIS,UKRI - BBSRC,10/07/2020,Training Awards - Postgraduates,FG - Accounts & Business Planning,University of Reading,98775010,5729.04,Training Awards - Postgraduates
BEIS,UKRI - BBSRC,10/07/2020,Training Awards - Postgraduates,FG - Accounts & Business Planning,John Innes Centre,98775011,6138.25,Training Awards - Postgraduates
BEIS,UKRI - BBSRC,10/07/2020,Training Awards - Postgraduates,FG - Accounts & Business Planning,John Innes Centre,98775012,6138.25,Training Awards - Postgraduates
BEIS,UKRI - BBSRC,10/07/2020,Training Awards - Postgraduates,FG - Accounts & Business Planning,University of East Anglia,98775013,6138.25,Training Awards - Postgraduates
BEIS,UKRI - BBSRC,10/07/2020,Training Awards - Postgraduates,FG - Accounts & Business Planning,University of Leeds,98775014,6138.25,Training Awards - Postgraduates
BEIS,UKRI - BBSRC,10/07/2020,Training Awards - Postgraduates,FG - Accounts & Business Planning,University of Leeds,98775015,6138.25,Training Awards - Postgraduates
BEIS,UKRI - BBSRC,10/07/2020,Training Awards - Postgraduates,FG - Accounts & Business Planning,Royal Veterinary College,98775016,6638.25,Training Awards - Postgraduates
BEIS,UKRI - BBSRC,10/07/2020,Training Awards - Postgraduates,FG - Accounts & Business Planning,University of Sheffield,98775017,6138.25,Training Awards - Postgraduates
BEIS,UKRI - BBSRC,10/07/2020,Training Awards - Postgraduates,FG - Accounts & Business Planning,University of East Anglia,98775018,6138.25,Training Awards - Postgraduates
BEIS,UKRI - BBSRC,10/07/2020,Training Awards - Postgraduates,FG - Accounts & Business Planning,Oxford Brookes University,98775019,6138.25,Training Awards - Postgraduates
BEIS,UKRI - BBSRC,10/07/2020,Training Awards - Postgraduates,FG - Accounts & Business Planning,Quadram Institute Bioscience,98775020,6138.25,Training Awards - Postgraduates
BEIS,UKRI - BBSRC,10/07/2020,Training Awards - Postgraduates,FG - Accounts & Business Planning,University of Birmingham GRANT,98775021,6138.25,Training Awards - Postgraduates
BEIS,UKRI - BBSRC,10/07/2020,Training Awards - Postgraduates,FG - Accounts & Business Planning,University of Edinburgh,98775022,6138.25,Training Awards - Postgraduates
BEIS,UKRI - BBSRC,10/07/2020,Training Awards - Postgraduates,FG - Accounts & Business Planning,University of Edinburgh,98775023,6138.25,Training Awards - Postgraduates
BEIS,UKRI - BBSRC,10/07/2020,Training Awards - Postgraduates,FG - Accounts & Business Planning,University of Edinburgh,98775024,6138.25,Training Awards - Postgraduates
BEIS,UKRI - BBSRC,10/07/2020,Training Awards - Postgraduates,FG - Accounts & Business Planning,University of Birmingham GRANT,98775025,6138.25,Training Awards - Postgraduates
BEIS,UKRI - BBSRC,10/07/2020,Training Awards - Postgraduates,FG - Accounts & Business Planning,University of Warwick,98775026,6138.25,Training Awards - Postgraduates
BEIS,UKRI - BBSRC,10/07/2020,Training Awards - Postgraduates,FG - Accounts & Business Planning,University College London,98775027,6638.25,Training Awards - Postgraduates
BEIS,UKRI - BBSRC,10/07/2020,Training Awards - Postgraduates,FG - Accounts & Business Planning,University College London,98775028,6638.25,Training Awards - Postgraduates
BEIS,UKRI - BBSRC,10/07/2020,Training Awards - Postgraduates,FG - Accounts & Business Planning,University College London,98775029,6638.25,Training Awards - Postgraduates
BEIS,UKRI - BBSRC,10/07/2020,Training Awards - Postgraduates,FG - Accounts & Business Planning,The University of Manchester,98775030,6138.25,Training Awards - Postgraduates
BEIS,UKRI - BBSRC,10/07/2020,Training Awards - Postgraduates,FG - Accounts & Business Planning,University of Liverpool,98775031,6138.25,Training Awards - Postgraduates
BEIS,UKRI - BBSRC,10/07/2020,Training Awards - Postgraduates,FG - Accounts & Business Planning,University of Bristol GRANT,98775032,6138.25,Training Awards - Postgraduates
BEIS,UKRI - BBSRC,10/07/2020,Training Awards - Postgraduates,FG - Accounts & Business Planning,University of Nottingham,98775033,6138.25,Training Awards - Postgraduates
BEIS,UKRI - BBSRC,10/07/2020,Training Awards - Postgraduates,FG - Accounts & Business Planning,University of Nottingham,98775034,6138.25,Training Awards - Postgraduates
BEIS,UKRI - BBSRC,10/07/2020,Training Awards - Postgraduates,FG - Accounts & Business Planning,University of Nottingham,98775035,6138.25,Training Awards - Postgraduates
BEIS,UKRI - BBSRC,10/07/2020,Training Awards - Postgraduates,FG - Accounts & Business Planning,University of Durham,98775036,6138.25,Training Awards - Postgraduates
BEIS,UKRI - BBSRC,10/07/2020,Training Awards - Postgraduates,FG - Accounts & Business Planning,University of Nottingham,98775037,6138.25,Training Awards - Postgraduates
BEIS,UKRI - BBSRC,10/07/2020,Training Awards - Postgraduates,FG - Accounts & Business Planning,University of Nottingham,98775038,6138.25,Training Awards - Postgraduates
BEIS,UKRI - BBSRC,10/07/2020,Training Awards - Postgraduates,FG - Accounts & Business Planning,University of Nottingham,98775039,6138.25,Training Awards - Postgraduates
BEIS,UKRI - BBSRC,10/07/2020,Training Awards - Postgraduates,FG - Accounts & Business Planning,University of Durham,98775040,6138.25,Training Awards - Postgraduates
BEIS,UKRI - BBSRC,10/07/2020,Training Awards - Postgraduates,FG - Accounts & Business Planning,University of Leeds,98775041,6138.25,Training Awards - Postgraduates
BEIS,UKRI - BBSRC,10/07/2020,Training Awards - Postgraduates,FG - Accounts & Business Planning,University of Newcastle Upon Tyne,98775042,6138.25,Training Awards - Postgraduates
BEIS,UKRI - BBSRC,10/07/2020,Training Awards - Postgraduates,FG - Accounts & Business Planning,University of Liverpool,98775043,6138.25,Training Awards - Postgraduates
BEIS,UKRI - BBSRC,10/07/2020,Training Awards - Postgraduates,FG - Accounts & Business Planning,University of York,98775044,6138.25,Training Awards - Postgraduates
BEIS,UKRI - BBSRC,10/07/2020,Training Awards - Postgraduates,FG - Accounts & Business Planning,University of York,98775045,6138.25,Training Awards - Postgraduates
BEIS,UKRI - BBSRC,10/07/2020,Training Awards - Postgraduates,FG - Accounts & Business Planning,University of Nottingham,98775046,6138.25,Training Awards - Postgraduates
BEIS,UKRI - BBSRC,10/07/2020,Training Awards - Postgraduates,FG - Accounts & Business Planning,University of York,98775047,6138.25,Training Awards - Postgraduates
BEIS,UKRI - BBSRC,10/07/2020,Training Awards - Postgraduates,FG - Accounts & Business Planning,University of York,98775048,6138.25,Training Awards - Postgraduates
BEIS,UKRI - BBSRC,10/07/2020,Training Awards - Postgraduates,FG - Accounts & Business Planning,University of Oxford,98775049,6138.25,Training Awards - Postgraduates
BEIS,UKRI - BBSRC,10/07/2020,Training Awards - Postgraduates,FG - Accounts & Business Planning,University of Oxford,98775050,6138.25,Training Awards - Postgraduates
BEIS,UKRI - BBSRC,10/07/2020,Training Awards - Postgraduates,FG - Accounts & Business Planning,University of Nottingham,98775051,6138.25,Training Awards - Postgraduates
BEIS,UKRI - BBSRC,10/07/2020,Training Awards - Postgraduates,FG - Accounts & Business Planning,The Pirbright Institute,98775052,6138.25,Training Awards - Postgraduates
BEIS,UKRI - BBSRC,10/07/2020,Training Awards - Postgraduates,FG - Accounts & Business Planning,National Institute For Agricultural Botany (NIAB),98775053,6138.25,Training Awards - Postgraduates
BEIS,UKRI - BBSRC,10/07/2020,Training Awards - Postgraduates,FG - Accounts & Business Planning,University of Oxford,98775054,6138.25,Training Awards - Postgraduates
BEIS,UKRI - BBSRC,10/07/2020,Training Awards - Postgraduates,FG - Accounts & Business Planning,King's College London,98775055,6638.25,Training Awards - Postgraduates
BEIS,UKRI - BBSRC,10/07/2020,Training Awards - Postgraduates,FG - Accounts & Business Planning,University of Oxford,98775056,6138.25,Training Awards - Postgraduates
BEIS,UKRI - BBSRC,10/07/2020,Training Awards - Postgraduates,FG - Accounts & Business Planning,University of Sheffield,98775057,1334.29,Training Awards - Postgraduates
BEIS,UKRI - BBSRC,10/07/2020,Training Awards - Postgraduates,FG - Accounts & Business Planning,University of Glasgow,98775058,7799.00,Training Awards - Postgraduates
BEIS,UKRI - BBSRC,10/07/2020,Training Awards - Postgraduates,FG - Accounts & Business Planning,University of Edinburgh,98775059,5000.60,Training Awards - Postgraduates
BEIS,UKRI - BBSRC,10/07/2020,Training Awards - Postgraduates,FG - Accounts & Business Planning,University of Leeds,98775060,6189.63,Training Awards - Postgraduates
BEIS,UKRI - BBSRC,10/07/2020,Training Awards - Postgraduates,FG - Accounts & Business Planning,Imperial College London,98775061,6689.63,Training Awards - Postgraduates
BEIS,UKRI - BBSRC,10/07/2020,Training Awards - Postgraduates,FG - Accounts & Business Planning,University of Newcastle Upon Tyne,98775062,6189.63,Training Awards - Postgraduates
BEIS,UKRI - BBSRC,10/07/2020,Training Awards - Postgraduates,FG - Accounts & Business Planning,University of Southampton GRANT,98775063,6189.63,Training Awards - Postgraduates
BEIS,UKRI - BBSRC,10/07/2020,Training Awards - Postgraduates,FG - Accounts & Business Planning,University of Leeds,98775064,6189.63,Training Awards - Postgraduates
BEIS,UKRI - BBSRC,10/07/2020,Training Awards - Postgraduates,FG - Accounts & Business Planning,University of Bristol GRANT,98775065,6189.63,Training Awards - Postgraduates
BEIS,UKRI - BBSRC,10/07/2020,Training Awards - Postgraduates,FG - Accounts & Business Planning,University College London,98775066,6689.63,Training Awards - Postgraduates
BEIS,UKRI - BBSRC,10/07/2020,Training Awards - Postgraduates,FG - Accounts & Business Planning,University of Edinburgh,98775067,6189.63,Training Awards - Postgraduates
BEIS,UKRI - BBSRC,10/07/2020,Training Awards - Postgraduates,FG - Accounts & Business Planning,King's College London,98775068,6689.63,Training Awards - Postgraduates
BEIS,UKRI - BBSRC,10/07/2020,Training Awards - Postgraduates,FG - Accounts & Business Planning,University of Liverpool,98775069,6189.63,Training Awards - Postgraduates
BEIS,UKRI - BBSRC,10/07/2020,Training Awards - Postgraduates,FG - Accounts & Business Planning,University of Aberdeen,98775070,6189.63,Training Awards - Postgraduates
BEIS,UKRI - BBSRC,10/07/2020,Training Awards - Postgraduates,FG - Accounts & Business Planning,University of Nottingham,98775071,6189.63,Training Awards - Postgraduates
BEIS,UKRI - BBSRC,10/07/2020,Training Awards - Postgraduates,FG - Accounts & Business Planning,University of Glasgow,98775072,6189.63,Training Awards - Postgraduates
BEIS,UKRI - BBSRC,10/07/2020,Training Awards - Postgraduates,FG - Accounts & Business Planning,University of Edinburgh,98775073,6189.63,Training Awards - Postgraduates
BEIS,UKRI - BBSRC,10/07/2020,Training Awards - Postgraduates,FG - Accounts & Business Planning,Robert Gordon University,98775074,6189.63,Training Awards - Postgraduates
BEIS,UKRI - BBSRC,10/07/2020,Training Awards - Postgraduates,FG - Accounts & Business Planning,University of St Andrews,98775075,6189.63,Training Awards - Postgraduates
BEIS,UKRI - BBSRC,10/07/2020,Training Awards - Postgraduates,FG - Accounts & Business Planning,National Institute For Agricultural Botany (NIAB),98775076,6189.63,Training Awards - Postgraduates
BEIS,UKRI - BBSRC,10/07/2020,Training Awards - Postgraduates,FG - Accounts & Business Planning,Sheffield Hallam University,98775077,6189.63,Training Awards - Postgraduates
BEIS,UKRI - BBSRC,10/07/2020,Training Awards - Postgraduates,FG - Accounts & Business Planning,Imperial College London,98775078,6689.63,Training Awards - Postgraduates
BEIS,UKRI - BBSRC,10/07/2020,Training Awards - Postgraduates,FG - Accounts & Business Planning,University of Kent,98775079,6189.63,Training Awards - Postgraduates
BEIS,UKRI - BBSRC,10/07/2020,Training Awards - Postgraduates,FG - Accounts & Business Planning,Cardiff University,98775080,6189.63,Training Awards - Postgraduates
BEIS,UKRI - BBSRC,10/07/2020,Training Awards - Postgraduates,FG - Accounts & Business Planning,Cardiff University,98775081,6189.63,Training Awards - Postgraduates
BEIS,UKRI - BBSRC,10/07/2020,Training Awards - Postgraduates,FG - Accounts & Business Planning,University of Oxford,98775082,6189.63,Training Awards - Postgraduates
BEIS,UKRI - BBSRC,10/07/2020,Training Awards - Postgraduates,FG - Accounts & Business Planning,University of Oxford,98775083,6189.63,Training Awards - Postgraduates
BEIS,UKRI - BBSRC,10/07/2020,Training Awards - Postgraduates,FG - Accounts & Business Planning,University of Nottingham,98775084,6189.63,Training Awards - Postgraduates
BEIS,UKRI - BBSRC,10/07/2020,Training Awards - Postgraduates,FG - Accounts & Business Planning,University of Newcastle Upon Tyne,98775085,6189.63,Training Awards - Postgraduates
BEIS,UKRI - BBSRC,10/07/2020,Training Awards - Postgraduates,FG - Accounts & Business Planning,The University of Manchester,98775086,6189.63,Training Awards - Postgraduates
BEIS,UKRI - BBSRC,10/07/2020,Training Awards - Postgraduates,FG - Accounts & Business Planning,University of Leicester,98775087,6189.63,Training Awards - Postgraduates
BEIS,UKRI - BBSRC,10/07/2020,Training Awards - Postgraduates,FG - Accounts & Business Planning,University of Birmingham GRANT,98775088,6189.63,Training Awards - Postgraduates
BEIS,UKRI - BBSRC,10/07/2020,Training Awards - Postgraduates,FG - Accounts & Business Planning,University of Exeter,98775089,6189.63,Training Awards - Postgraduates
BEIS,UKRI - BBSRC,10/07/2020,Training Awards - Postgraduates,FG - Accounts & Business Planning,University of York,98775090,6189.63,Training Awards - Postgraduates
BEIS,UKRI - BBSRC,10/07/2020,Training Awards - Postgraduates,FG - Accounts & Business Planning,University of Strathclyde,98775091,6189.63,Training Awards - Postgraduates
BEIS,UKRI - BBSRC,10/07/2020,Training Awards - Postgraduates,FG - Accounts & Business Planning,University of Strathclyde,98775092,6189.63,Training Awards - Postgraduates
BEIS,UKRI - BBSRC,10/07/2020,Training Awards - Postgraduates,FG - Accounts & Business Planning,University of Sheffield,98775093,6189.63,Training Awards - Postgraduates
BEIS,UKRI - BBSRC,10/07/2020,Training Awards - Postgraduates,FG - Accounts & Business Planning,Heriot Watt University,98775094,6189.63,Training Awards - Postgraduates
BEIS,UKRI - BBSRC,10/07/2020,Training Awards - Postgraduates,FG - Accounts & Business Planning,National Institute For Agricultural Botany (NIAB),98775095,6189.63,Training Awards - Postgraduates
BEIS,UKRI - BBSRC,10/07/2020,Training Awards - Postgraduates,FG - Accounts & Business Planning,National Institute For Agricultural Botany (NIAB),98775096,6189.63,Training Awards - Postgraduates
BEIS,UKRI - BBSRC,10/07/2020,Training Awards - Postgraduates,FG - Accounts & Business Planning,University of Warwick,98775097,6189.63,Training Awards - Postgraduates
BEIS,UKRI - BBSRC,10/07/2020,Training Awards - Postgraduates,FG - Accounts & Business Planning,Lancaster University,98775098,6189.63,Training Awards - Postgraduates
BEIS,UKRI - BBSRC,10/07/2020,Training Awards - Postgraduates,FG - Accounts & Business Planning,University of Nottingham,98775099,6189.63,Training Awards - Postgraduates
BEIS,UKRI - BBSRC,10/07/2020,Training Awards - Postgraduates,FG - Accounts & Business Planning,University of Glasgow,98775100,6189.63,Training Awards - Postgraduates
BEIS,UKRI - BBSRC,10/07/2020,Training Awards - Postgraduates,FG - Accounts & Business Planning,University of Birmingham GRANT,98775101,6189.63,Training Awards - Postgraduates
BEIS,UKRI - BBSRC,10/07/2020,Training Awards - Postgraduates,FG - Accounts & Business Planning,University of Reading,98775102,6189.63,Training Awards - Postgraduates
BEIS,UKRI - BBSRC,10/07/2020,Training Awards - Postgraduates,FG - Accounts & Business Planning,The University of Manchester,98775103,4285.12,Training Awards - Postgraduates
BEIS,UKRI - BBSRC,10/07/2020,Training Awards - Postgraduates,FG - Accounts & Business Planning,University of Leeds,98775104,6189.63,Training Awards - Postgraduates
BEIS,UKRI - BBSRC,10/07/2020,Training Awards - Postgraduates,FG - Accounts & Business Planning,University of Cambridge,98775105,5501.89,Training Awards - Postgraduates
BEIS,UKRI - BBSRC,10/07/2020,Training Awards - Postgraduates,FG - Accounts & Business Planning,University of Reading,98775106,6189.63,Training Awards - Postgraduates
BEIS,UKRI - BBSRC,10/07/2020,Training Awards - Postgraduates,FG - Accounts & Business Planning,University of Bristol GRANT,98775107,6189.63,Training Awards - Postgraduates
BEIS,UKRI - BBSRC,10/07/2020,Training Awards - Postgraduates,FG - Accounts & Business Planning,Imperial College London,98775108,6689.63,Training Awards - Postgraduates
BEIS,UKRI - BBSRC,10/07/2020,Training Awards - Postgraduates,FG - Accounts & Business Planning,University of Sheffield,98775109,6189.63,Training Awards - Postgraduates
BEIS,UKRI - BBSRC,10/07/2020,Training Awards - Postgraduates,FG - Accounts & Business Planning,University of Warwick,98775110,6189.63,Training Awards - Postgraduates
BEIS,UKRI - BBSRC,10/07/2020,Training Awards - Postgraduates,FG - Accounts & Business Planning,University of Aberdeen,98775111,6189.63,Training Awards - Postgraduates
BEIS,UKRI - BBSRC,10/07/2020,Training Awards - Postgraduates,FG - Accounts & Business Planning,University of Edinburgh,98775112,6189.63,Training Awards - Postgraduates
BEIS,UKRI - BBSRC,10/07/2020,Training Awards - Postgraduates,FG - Accounts & Business Planning,University of East Anglia,98775113,6189.63,Training Awards - Postgraduates
BEIS,UKRI - BBSRC,10/07/2020,Training Awards - Postgraduates,FG - Accounts & Business Planning,University of Leicester,98775114,6138.25,Training Awards - Postgraduates
BEIS,UKRI - BBSRC,10/07/2020,Training Awards - Postgraduates,FG - Accounts & Business Planning,University of Nottingham,98775115,6189.63,Training Awards - Postgraduates
BEIS,UKRI - BBSRC,10/07/2020,Training Awards - Postgraduates,FG - Accounts & Business Planning,University of Aberdeen,98775116,6189.63,Training Awards - Postgraduates
BEIS,UKRI - BBSRC,10/07/2020,Training Awards - Postgraduates,FG - Accounts & Business Planning,University of Edinburgh,98775117,6189.63,Training Awards - Postgraduates
BEIS,UKRI - BBSRC,10/07/2020,Training Awards - Postgraduates,FG - Accounts & Business Planning,University of Edinburgh,98775118,6189.63,Training Awards - Postgraduates
BEIS,UKRI - BBSRC,10/07/2020,Training Awards - Postgraduates,FG - Accounts & Business Planning,University of York,98775119,6189.63,Training Awards - Postgraduates
BEIS,UKRI - BBSRC,10/07/2020,Training Awards - Postgraduates,FG - Accounts & Business Planning,Earlham Institute,98775120,6189.63,Training Awards - Postgraduates
BEIS,UKRI - BBSRC,10/07/2020,Training Awards - Postgraduates,FG - Accounts & Business Planning,University of Exeter,98775121,6189.63,Training Awards - Postgraduates
BEIS,UKRI - BBSRC,10/07/2020,Training Awards - Postgraduates,FG - Accounts & Business Planning,Earlham Institute,98775122,6189.63,Training Awards - Postgraduates
BEIS,UKRI - BBSRC,10/07/2020,Training Awards - Postgraduates,FG - Accounts & Business Planning,National Institute For Agricultural Botany (NIAB),98775123,6189.63,Training Awards - Postgraduates
BEIS,UKRI - BBSRC,10/07/2020,Training Awards - Postgraduates,FG - Accounts & Business Planning,John Innes Centre,98775124,6189.63,Training Awards - Postgraduates
BEIS,UKRI - BBSRC,10/07/2020,Training Awards - Postgraduates,FG - Accounts & Business Planning,University of Bath,98775125,6189.63,Training Awards - Postgraduates
BEIS,UKRI - BBSRC,10/07/2020,Training Awards - Postgraduates,FG - Accounts & Business Planning,King's College London,98775126,6689.63,Training Awards - Postgraduates
BEIS,UKRI - BBSRC,10/07/2020,Training Awards - Postgraduates,FG - Accounts & Business Planning,University College London,98775127,6689.63,Training Awards - Postgraduates
BEIS,UKRI - BBSRC,10/07/2020,Training Awards - Postgraduates,FG - Accounts & Business Planning,King's College London,98775128,8919.51,Training Awards - Postgraduates
BEIS,UKRI - BBSRC,10/07/2020,Training Awards - Postgraduates,FG - Accounts & Business Planning,University of Leeds,98775129,6189.63,Training Awards - Postgraduates
BEIS,UKRI - BBSRC,10/07/2020,Training Awards - Postgraduates,FG - Accounts & Business Planning,University College London,98775130,6689.63,Training Awards - Postgraduates
BEIS,UKRI - BBSRC,10/07/2020,Training Awards - Postgraduates,FG - Accounts & Business Planning,London School of Hygiene & Tropical Medicine,98775131,6689.63,Training Awards - Postgraduates
BEIS,UKRI - BBSRC,10/07/2020,Training Awards - Postgraduates,FG - Accounts & Business Planning,Queen Mary University of London,98775132,6243.66,Training Awards - Postgraduates
BEIS,UKRI - BBSRC,10/07/2020,Training Awards - Postgraduates,FG - Accounts & Business Planning,University of Cambridge,98775133,6189.63,Training Awards - Postgraduates
BEIS,UKRI - BBSRC,10/07/2020,Training Awards - Postgraduates,FG - Accounts & Business Planning,University of Cambridge,98775134,6189.63,Training Awards - Postgraduates
BEIS,UKRI - BBSRC,10/07/2020,Training Awards - Postgraduates,FG - Accounts & Business Planning,University of Oxford,98775135,6189.63,Training Awards - Postgraduates
BEIS,UKRI - BBSRC,10/07/2020,Training Awards - Postgraduates,FG - Accounts & Business Planning,University of Oxford,98775136,6189.63,Training Awards - Postgraduates
BEIS,UKRI - BBSRC,10/07/2020,Training Awards - Postgraduates,FG - Accounts & Business Planning,University of Oxford,98775137,6189.63,Training Awards - Postgraduates
BEIS,UKRI - BBSRC,10/07/2020,Training Awards - Postgraduates,FG - Accounts & Business Planning,University of Oxford,98775138,6189.63,Training Awards - Postgraduates
BEIS,UKRI - BBSRC,10/07/2020,Training Awards - Postgraduates,FG - Accounts & Business Planning,University of Cambridge,98775139,6189.63,Training Awards - Postgraduates
BEIS,UKRI - BBSRC,10/07/2020,Training Awards - Postgraduates,FG - Accounts & Business Planning,National Institute For Agricultural Botany (NIAB),98775140,6189.63,Training Awards - Postgraduates
BEIS,UKRI - BBSRC,10/07/2020,Training Awards - Postgraduates,FG - Accounts & Business Planning,University of Edinburgh,98775141,8252.85,Training Awards - Postgraduates
BEIS,UKRI - BBSRC,10/07/2020,Training Awards - Postgraduates,FG - Accounts & Business Planning,Babraham Institute,98775142,6267.44,Training Awards - Postgraduates
BEIS,UKRI - BBSRC,10/07/2020,Training Awards - Postgraduates,FG - Accounts & Business Planning,The University of Manchester,98775143,6267.44,Training Awards - Postgraduates
BEIS,UKRI - BBSRC,10/07/2020,Training Awards - Postgraduates,FG - Accounts & Business Planning,University of Nottingham,98775144,6267.44,Training Awards - Postgraduates
BEIS,UKRI - BBSRC,10/07/2020,Training Awards - Postgraduates,FG - Accounts & Business Planning,University of Birmingham GRANT,98775145,6267.44,Training Awards - Postgraduates
BEIS,UKRI - BBSRC,10/07/2020,Training Awards - Postgraduates,FG - Accounts & Business Planning,Imperial College London,98775146,6767.44,Training Awards - Postgraduates
BEIS,UKRI - BBSRC,10/07/2020,Training Awards - Postgraduates,FG - Accounts & Business Planning,University of Edinburgh,98775147,6267.44,Training Awards - Postgraduates
BEIS,UKRI - BBSRC,10/07/2020,Training Awards - Postgraduates,FG - Accounts & Business Planning,Keele University,98775148,6267.44,Training Awards - Postgraduates
BEIS,UKRI - BBSRC,10/07/2020,Training Awards - Postgraduates,FG - Accounts & Business Planning,Imperial College London,98775149,6767.44,Training Awards - Postgraduates
BEIS,UKRI - BBSRC,10/07/2020,Training Awards - Postgraduates,FG - Accounts & Business Planning,University of Sheffield,98775150,6267.44,Training Awards - Postgraduates
BEIS,UKRI - BBSRC,10/07/2020,Training Awards - Postgraduates,FG - Accounts & Business Planning,University of York,98775151,6267.44,Training Awards - Postgraduates
BEIS,UKRI - BBSRC,10/07/2020,Training Awards - Postgraduates,FG - Accounts & Business Planning,University of Bristol GRANT,98775152,6267.44,Training Awards - Postgraduates
BEIS,UKRI - BBSRC,10/07/2020,Training Awards - Postgraduates,FG - Accounts & Business Planning,Rothamsted Research Ltd,98775153,6267.44,Training Awards - Postgraduates
BEIS,UKRI - BBSRC,10/07/2020,Training Awards - Postgraduates,FG - Accounts & Business Planning,Rothamsted Research Ltd,98775153,6267.44,Training Awards - Postgraduates
BEIS,UKRI - BBSRC,10/07/2020,Training Awards - Postgraduates,FG - Accounts & Business Planning,University of Cambridge,98775154,6267.44,Training Awards - Postgraduates
BEIS,UKRI - BBSRC,10/07/2020,Training Awards - Postgraduates,FG - Accounts & Business Planning,University of Nottingham,98775155,6267.44,Training Awards - Postgraduates
BEIS,UKRI - BBSRC,10/07/2020,Training Awards - Postgraduates,FG - Accounts & Business Planning,The University of Manchester,98775156,6267.44,Training Awards - Postgraduates
BEIS,UKRI - BBSRC,10/07/2020,Training Awards - Postgraduates,FG - Accounts & Business Planning,University of Hertfordshire,98775157,6267.44,Training Awards - Postgraduates
BEIS,UKRI - BBSRC,10/07/2020,Training Awards - Postgraduates,FG - Accounts & Business Planning,University of Liverpool,98775158,6267.44,Training Awards - Postgraduates
BEIS,UKRI - BBSRC,10/07/2020,Training Awards - Postgraduates,FG - Accounts & Business Planning,University of Durham,98775159,6267.44,Training Awards - Postgraduates
BEIS,UKRI - BBSRC,10/07/2020,Training Awards - Postgraduates,FG - Accounts & Business Planning,University of Leeds,98775160,6267.44,Training Awards - Postgraduates
BEIS,UKRI - BBSRC,10/07/2020,Training Awards - Postgraduates,FG - Accounts & Business Planning,University College London,98775161,6767.44,Training Awards - Postgraduates
BEIS,UKRI - BBSRC,10/07/2020,Training Awards - Postgraduates,FG - Accounts & Business Planning,University College London,98775162,6767.44,Training Awards - Postgraduates
BEIS,UKRI - BBSRC,10/07/2020,Training Awards - Postgraduates,FG - Accounts & Business Planning,University of Glasgow,98775163,6267.44,Training Awards - Postgraduates
BEIS,UKRI - BBSRC,10/07/2020,Training Awards - Postgraduates,FG - Accounts & Business Planning,The University of Manchester,98775164,6267.44,Training Awards - Postgraduates
BEIS,UKRI - BBSRC,10/07/2020,Training Awards - Postgraduates,FG - Accounts & Business Planning,University of Cambridge,98775165,6267.44,Training Awards - Postgraduates
BEIS,UKRI - BBSRC,10/07/2020,Training Awards - Postgraduates,FG - Accounts & Business Planning,University of Southampton GRANT,98775166,6267.44,Training Awards - Postgraduates
BEIS,UKRI - BBSRC,10/07/2020,Training Awards - Postgraduates,FG - Accounts & Business Planning,Queen's University Belfast GRANT,98775167,6267.44,Training Awards - Postgraduates
BEIS,UKRI - BBSRC,10/07/2020,Training Awards - Postgraduates,FG - Accounts & Business Planning,University of Glasgow,98775168,6267.44,Training Awards - Postgraduates
BEIS,UKRI - BBSRC,10/07/2020,Training Awards - Postgraduates,FG - Accounts & Business Planning,European Bioinformatics Institute,98775169,6267.44,Training Awards - Postgraduates
BEIS,UKRI - BBSRC,10/07/2020,Training Awards - Postgraduates,FG - Accounts & Business Planning,University of Reading,98775170,6267.44,Training Awards - Postgraduates
BEIS,UKRI - BBSRC,10/07/2020,Training Awards - Postgraduates,FG - Accounts & Business Planning,University of Glasgow,98775171,6267.44,Training Awards - Postgraduates
BEIS,UKRI - BBSRC,10/07/2020,Training Awards - Postgraduates,FG - Accounts & Business Planning,University of Southampton GRANT,98775172,6267.44,Training Awards - Postgraduates
BEIS,UKRI - BBSRC,10/07/2020,Training Awards - Postgraduates,FG - Accounts & Business Planning,University of York,98775173,6267.44,Training Awards - Postgraduates
BEIS,UKRI - BBSRC,10/07/2020,Training Awards - Postgraduates,FG - Accounts & Business Planning,University of Exeter,98775174,6267.44,Training Awards - Postgraduates
BEIS,UKRI - BBSRC,10/07/2020,Training Awards - Postgraduates,FG - Accounts & Business Planning,Queen Mary University of London,98775175,6767.44,Training Awards - Postgraduates
BEIS,UKRI - BBSRC,10/07/2020,Training Awards - Postgraduates,FG - Accounts & Business Planning,University of Birmingham GRANT,98775176,6267.44,Training Awards - Postgraduates
BEIS,UKRI - BBSRC,10/07/2020,Training Awards - Postgraduates,FG - Accounts & Business Planning,Cardiff University,98775177,6267.44,Training Awards - Postgraduates
BEIS,UKRI - BBSRC,10/07/2020,Training Awards - Postgraduates,FG - Accounts & Business Planning,University of Nottingham,98775178,6267.44,Training Awards - Postgraduates
BEIS,UKRI - BBSRC,10/07/2020,Training Awards - Postgraduates,FG - Accounts & Business Planning,The University of Manchester,98775179,6267.44,Training Awards - Postgraduates
BEIS,UKRI - BBSRC,10/07/2020,Training Awards - Postgraduates,FG - Accounts & Business Planning,University of Leeds,98775180,6267.44,Training Awards - Postgraduates
BEIS,UKRI - BBSRC,10/07/2020,Training Awards - Postgraduates,FG - Accounts & Business Planning,Sheffield Hallam University,98775181,6267.44,Training Awards - Postgraduates
BEIS,UKRI - BBSRC,10/07/2020,Training Awards - Postgraduates,FG - Accounts & Business Planning,King's College London,98775182,6767.44,Training Awards - Postgraduates
BEIS,UKRI - BBSRC,10/07/2020,Training Awards - Postgraduates,FG - Accounts & Business Planning,University of Edinburgh,98775183,6267.44,Training Awards - Postgraduates
BEIS,UKRI - BBSRC,10/07/2020,Training Awards - Postgraduates,FG - Accounts & Business Planning,University of Edinburgh,98775183,6267.44,Training Awards - Postgraduates
BEIS,UKRI - BBSRC,10/07/2020,Training Awards - Postgraduates,FG - Accounts & Business Planning,University of Edinburgh,98775183,6267.44,Training Awards - Postgraduates
BEIS,UKRI - BBSRC,10/07/2020,Training Awards - Postgraduates,FG - Accounts & Business Planning,University of Edinburgh,98775183,6267.44,Training Awards - Postgraduates
BEIS,UKRI - BBSRC,10/07/2020,Training Awards - Postgraduates,FG - Accounts & Business Planning,University of Edinburgh,98775184,6267.44,Training Awards - Postgraduates
BEIS,UKRI - BBSRC,10/07/2020,Training Awards - Postgraduates,FG - Accounts & Business Planning,University of Edinburgh,98775184,6267.44,Training Awards - Postgraduates
BEIS,UKRI - BBSRC,10/07/2020,Training Awards - Postgraduates,FG - Accounts & Business Planning,University of Edinburgh,98775184,6267.44,Training Awards - Postgraduates
BEIS,UKRI - BBSRC,10/07/2020,Training Awards - Postgraduates,FG - Accounts & Business Planning,University of Edinburgh,98775184,6267.44,Training Awards - Postgraduates
BEIS,UKRI - BBSRC,10/07/2020,Training Awards - Postgraduates,FG - Accounts & Business Planning,Lancaster University,98775185,6267.44,Training Awards - Postgraduates
BEIS,UKRI - BBSRC,10/07/2020,Training Awards - Postgraduates,FG - Accounts & Business Planning,University of Newcastle Upon Tyne,98775186,6267.44,Training Awards - Postgraduates
BEIS,UKRI - BBSRC,10/07/2020,Training Awards - Postgraduates,FG - Accounts & Business Planning,University of Strathclyde,98775187,6267.44,Training Awards - Postgraduates
BEIS,UKRI - BBSRC,10/07/2020,Training Awards - Postgraduates,FG - Accounts & Business Planning,The University of Manchester,98775188,6267.44,Training Awards - Postgraduates
BEIS,UKRI - BBSRC,10/07/2020,Training Awards - Postgraduates,FG - Accounts & Business Planning,The Scottish Association for Marine Science (SAMS Group),98775189,6267.44,Training Awards - Postgraduates
BEIS,UKRI - BBSRC,10/07/2020,Training Awards - Postgraduates,FG - Accounts & Business Planning,University of Sheffield,98775190,6267.44,Training Awards - Postgraduates
BEIS,UKRI - BBSRC,10/07/2020,Training Awards - Postgraduates,FG - Accounts & Business Planning,The University of Manchester,98775191,6267.44,Training Awards - Postgraduates
BEIS,UKRI - BBSRC,10/07/2020,Training Awards - Postgraduates,FG - Accounts & Business Planning,University of York,98775192,6267.44,Training Awards - Postgraduates
BEIS,UKRI - BBSRC,10/07/2020,Training Awards - Postgraduates,FG - Accounts & Business Planning,University of Cambridge,98775193,6267.44,Training Awards - Postgraduates
BEIS,UKRI - BBSRC,10/07/2020,Training Awards - Postgraduates,FG - Accounts & Business Planning,University of Edinburgh,98775194,6267.44,Training Awards - Postgraduates
BEIS,UKRI - BBSRC,10/07/2020,Training Awards - Postgraduates,FG - Accounts & Business Planning,University of Sheffield,98775195,6267.44,Training Awards - Postgraduates
BEIS,UKRI - BBSRC,10/07/2020,Training Awards - Postgraduates,FG - Accounts & Business Planning,University of Newcastle Upon Tyne,98775196,6267.44,Training Awards - Postgraduates
BEIS,UKRI - BBSRC,10/07/2020,Training Awards - Postgraduates,FG - Accounts & Business Planning,King's College London,98775197,6767.44,Training Awards - Postgraduates
BEIS,UKRI - BBSRC,10/07/2020,Training Awards - Postgraduates,FG - Accounts & Business Planning,Lancaster University,98775198,6267.44,Training Awards - Postgraduates
BEIS,UKRI - BBSRC,10/07/2020,Training Awards - Postgraduates,FG - Accounts & Business Planning,Lancaster University,98775199,6267.44,Training Awards - Postgraduates
BEIS,UKRI - BBSRC,10/07/2020,Training Awards - Postgraduates,FG - Accounts & Business Planning,Lancaster University,98775200,6267.44,Training Awards - Postgraduates
BEIS,UKRI - BBSRC,10/07/2020,Training Awards - Postgraduates,FG - Accounts & Business Planning,University of Strathclyde,98775201,6267.44,Training Awards - Postgraduates
BEIS,UKRI - BBSRC,10/07/2020,Training Awards - Postgraduates,FG - Accounts & Business Planning,University of Liverpool,98775202,6267.44,Training Awards - Postgraduates
BEIS,UKRI - BBSRC,10/07/2020,Training Awards - Postgraduates,FG - Accounts & Business Planning,"Royal Holloway, University of London",98775203,6767.44,Training Awards - Postgraduates
BEIS,UKRI - BBSRC,10/07/2020,Training Awards - Postgraduates,FG - Accounts & Business Planning,University of Reading,98775204,6267.44,Training Awards - Postgraduates
BEIS,UKRI - BBSRC,10/07/2020,Training Awards - Postgraduates,FG - Accounts & Business Planning,University of Exeter,98775205,6267.44,Training Awards - Postgraduates
BEIS,UKRI - BBSRC,10/07/2020,Training Awards - Postgraduates,FG - Accounts & Business Planning,University of Liverpool,98775206,6267.44,Training Awards - Postgraduates
BEIS,UKRI - BBSRC,10/07/2020,Training Awards - Postgraduates,FG - Accounts & Business Planning,Lancaster University,98775207,6267.44,Training Awards - Postgraduates
BEIS,UKRI - BBSRC,10/07/2020,Training Awards - Postgraduates,FG - Accounts & Business Planning,University of Reading,98775208,6267.44,Training Awards - Postgraduates
BEIS,UKRI - BBSRC,10/07/2020,Training Awards - Postgraduates,FG - Accounts & Business Planning,University of Nottingham,98775209,6267.44,Training Awards - Postgraduates
BEIS,UKRI - BBSRC,10/07/2020,Training Awards - Postgraduates,FG - Accounts & Business Planning,Lancaster University,98775210,6267.44,Training Awards - Postgraduates
BEIS,UKRI - BBSRC,10/07/2020,Training Awards - Postgraduates,FG - Accounts & Business Planning,University College London,98775211,6767.44,Training Awards - Postgraduates
BEIS,UKRI - BBSRC,10/07/2020,Training Awards - Postgraduates,FG - Accounts & Business Planning,National Institute For Agricultural Botany (NIAB),98775212,6267.44,Training Awards - Postgraduates
BEIS,UKRI - BBSRC,10/07/2020,Training Awards - Postgraduates,FG - Accounts & Business Planning,National Institute For Agricultural Botany (NIAB),98775213,6267.44,Training Awards - Postgraduates
BEIS,UKRI - BBSRC,10/07/2020,Training Awards - Postgraduates,FG - Accounts & Business Planning,National Institute For Agricultural Botany (NIAB),98775214,6267.44,Training Awards - Postgraduates
BEIS,UKRI - BBSRC,10/07/2020,Training Awards - Postgraduates,FG - Accounts & Business Planning,National Institute For Agricultural Botany (NIAB),98775215,6267.44,Training Awards - Postgraduates
BEIS,UKRI - BBSRC,10/07/2020,Training Awards - Postgraduates,FG - Accounts & Business Planning,National Institute For Agricultural Botany (NIAB),98775216,6267.44,Training Awards - Postgraduates
BEIS,UKRI - BBSRC,10/07/2020,Training Awards - Postgraduates,FG - Accounts & Business Planning,University of Edinburgh,98775217,6224.53,Training Awards - Postgraduates
BEIS,UKRI - BBSRC,10/07/2020,Training Awards - Postgraduates,FG - Accounts & Business Planning,National Institute For Agricultural Botany (NIAB),98775218,6267.44,Training Awards - Postgraduates
BEIS,UKRI - BBSRC,10/07/2020,Training Awards - Postgraduates,FG - Accounts & Business Planning,University of Nottingham,98775219,6267.44,Training Awards - Postgraduates
BEIS,UKRI - BBSRC,10/07/2020,Training Awards - Postgraduates,FG - Accounts & Business Planning,University of Warwick,98775220,6267.44,Training Awards - Postgraduates
BEIS,UKRI - BBSRC,10/07/2020,Training Awards - Postgraduates,FG - Accounts & Business Planning,University of Cambridge,98775221,6267.44,Training Awards - Postgraduates
BEIS,UKRI - BBSRC,10/07/2020,Training Awards - Postgraduates,FG - Accounts & Business Planning,University of Durham,98775222,6267.44,Training Awards - Postgraduates
BEIS,UKRI - BBSRC,10/07/2020,Training Awards - Postgraduates,FG - Accounts & Business Planning,University of Nottingham,98775223,6267.44,Training Awards - Postgraduates
BEIS,UKRI - BBSRC,10/07/2020,Training Awards - Postgraduates,FG - Accounts & Business Planning,University of Nottingham,98775223,6267.44,Training Awards - Postgraduates
BEIS,UKRI - BBSRC,10/07/2020,Training Awards - Postgraduates,FG - Accounts & Business Planning,University of Nottingham,98775223,6267.44,Training Awards - Postgraduates
BEIS,UKRI - BBSRC,10/07/2020,Training Awards - Postgraduates,FG - Accounts & Business Planning,University of Nottingham,98775223,6267.44,Training Awards - Postgraduates
BEIS,UKRI - BBSRC,10/07/2020,Training Awards - Postgraduates,FG - Accounts & Business Planning,The University of Manchester,98775224,6267.44,Training Awards - Postgraduates
BEIS,UKRI - BBSRC,10/07/2020,Training Awards - Postgraduates,FG - Accounts & Business Planning,The University of Manchester,98775224,6267.44,Training Awards - Postgraduates
BEIS,UKRI - BBSRC,10/07/2020,Training Awards - Postgraduates,FG - Accounts & Business Planning,The University of Manchester,98775224,6267.44,Training Awards - Postgraduates
BEIS,UKRI - BBSRC,10/07/2020,Training Awards - Postgraduates,FG - Accounts & Business Planning,University of Newcastle Upon Tyne,98775225,24896.00,Training Awards - Postgraduates
BEIS,UKRI - BBSRC,10/07/2020,Training Awards - Postgraduates,FG - Accounts & Business Planning,University of Newcastle Upon Tyne,98775225,24896.00,Training Awards - Postgraduates
BEIS,UKRI - BBSRC,10/07/2020,Training Awards - Postgraduates,FG - Accounts & Business Planning,University of Leeds,98775226,24905.00,Training Awards - Postgraduates
BEIS,UKRI - BBSRC,10/07/2020,Training Awards - Postgraduates,FG - Accounts & Business Planning,University of Leeds,98775226,24905.00,Training Awards - Postgraduates
BEIS,UKRI - BBSRC,10/07/2020,Training Awards - Postgraduates,FG - Accounts & Business Planning,Rothamsted Research Ltd,98775227,19351.25,Training Awards - Postgraduates
BEIS,UKRI - BBSRC,10/07/2020,Training Awards - Postgraduates,FG - Accounts & Business Planning,Rothamsted Research Ltd,98775227,19351.25,Training Awards - Postgraduates
BEIS,UKRI - BBSRC,10/07/2020,Training Awards - Postgraduates,FG - Accounts & Business Planning,University College London,98775826,6338.41,Training Awards - Postgraduates
BEIS,UKRI - BBSRC,10/07/2020,Training Awards - Postgraduates,FG - Accounts & Business Planning,University of Birmingham GRANT,98775827,1370.34,Training Awards - Postgraduates
BEIS,UKRI - BBSRC,10/07/2020,Training Awards - Postgraduates,FG - Accounts & Business Planning,Quadram Institute Bioscience,98775828,-10779.29,Training Awards - Postgraduates
BEIS,UKRI - BBSRC,10/07/2020,Training Awards - Postgraduates,FG - Accounts & Business Planning,Babraham Institute,98775829,4622.25,Training Awards - Postgraduates
BEIS,UKRI - BBSRC,10/07/2020,Training Awards - Postgraduates,FG - Accounts & Business Planning,University College London,98775830,3660.66,Training Awards - Postgraduates
BEIS,UKRI - BBSRC,10/07/2020,Training Awards - Postgraduates,FG - Accounts & Business Planning,University of Birmingham GRANT,98775831,5940.20,Training Awards - Postgraduates
BEIS,UKRI - BBSRC,10/07/2020,Training Awards - Postgraduates,FG - Accounts & Business Planning,University of Durham,98775832,2231.22,Training Awards - Postgraduates
BEIS,UKRI - BBSRC,10/07/2020,Training Awards - Postgraduates,FG - Accounts & Business Planning,University of Warwick,98775833,2597.71,Training Awards - Postgraduates
BEIS,UKRI - BBSRC,10/07/2020,Training Awards - Postgraduates,FG - Accounts & Business Planning,University of Chester,98775834,1978.46,Training Awards - Postgraduates
BEIS,UKRI - BBSRC,10/07/2020,Training Awards - Postgraduates,FG - Accounts & Business Planning,University College London,98775835,4668.79,Training Awards - Postgraduates
BEIS,UKRI - BBSRC,10/07/2020,Training Awards - Postgraduates,FG - Accounts & Business Planning,University College London,98775836,5333.01,Training Awards - Postgraduates
BEIS,UKRI - BBSRC,10/07/2020,Training Awards - Postgraduates,FG - Accounts & Business Planning,Imperial College London,98775837,6440.20,Training Awards - Postgraduates
BEIS,UKRI - BBSRC,10/07/2020,Training Awards - Postgraduates,FG - Accounts & Business Planning,University of Reading,98775838,69.41,Training Awards - Postgraduates
BEIS,UKRI - BBSRC,10/07/2020,Training Awards - Postgraduates,FG - Accounts & Business Planning,University of Bristol GRANT,98775839,4510.08,Training Awards - Postgraduates
BEIS,UKRI - BBSRC,10/07/2020,Training Awards - Postgraduates,FG - Accounts & Business Planning,University of Edinburgh,98775840,3000.00,Training Awards - Postgraduates
BEIS,UKRI - BBSRC,10/07/2020,Training Awards - Postgraduates,FG - Accounts & Business Planning,University of Newcastle Upon Tyne,98775841,4930.09,Training Awards - Postgraduates
BEIS,UKRI - BBSRC,10/07/2020,Training Awards - Postgraduates,FG - Accounts & Business Planning,John Innes Centre,98775842,5416.02,Training Awards - Postgraduates
BEIS,UKRI - BBSRC,10/07/2020,Training Awards - Postgraduates,FG - Accounts & Business Planning,University College London,98775843,8993.23,Training Awards - Postgraduates
BEIS,UKRI - BBSRC,10/07/2020,Training Awards - Postgraduates,FG - Accounts & Business Planning,Imperial College London,98775844,-20608.40,Training Awards - Postgraduates
BEIS,UKRI - BBSRC,10/07/2020,Non-staff travel and subsistance,Innovation and Skills Group CDSU,Unspecified,98780006,49.70,Non-staff travel and subsistance
BEIS,UKRI - BBSRC,10/07/2020,Research Institutes - Capital Grants: Major Works,Estates - Projects,EMBL (European Molecular Biology Laboratory),98780501,238980.72,Research Institutes - Capital Grants: Major Works
BEIS,UKRI - BBSRC,13/07/2020,Research Institutes - Capital Grants: Major Works,Estates - Projects,EMBL (European Molecular Biology Laboratory),98780252,12000.00,Research Institutes - Capital Grants: Major Works
BEIS,UKRI - BBSRC,13/07/2020,Research Grant Expenditure,SPF W1 EMBL EBI,EMBL (European Molecular Biology Laboratory),98780253,11458.20,Research Grant Expenditure
BEIS,UKRI - BBSRC,13/07/2020,T&S UK - Other Charges,Innovation and Skills Group CDSU,Unspecified,98780961,95.78,T&S UK - Other Charges
BEIS,UKRI - BBSRC,14/07/2020,Recruitment Costs,PDG - Director,Onefix Recruitment Ltd,98778354,1179.60,Recruitment Costs
BEIS,UKRI - BBSRC,14/07/2020,Training Awards - Postgraduates,Innovation and Skills Group,UKRI - Economic & Social Research Council,98778650,66972.50,Training Awards - Postgraduates
BEIS,UKRI - BBSRC,14/07/2020,Unspecified,Balance Sheet,HM Revenue & Customs,98779363,2150.46,PAYE Payable Salaries
BEIS,UKRI - BBSRC,14/07/2020,Unspecified,Balance Sheet,HM Revenue & Customs,98779364,13.98,NI Payable Salaries
BEIS,UKRI - BBSRC,14/07/2020,Unspecified,FG - Accounts & Business Planning,HM Revenue & Customs,98779365,33.00,Apprenticeship Levy
BEIS,UKRI - BBSRC,14/07/2020,Unspecified,Balance Sheet,HM Revenue & Customs,98779781,65682.80,PAYE Payable Salaries
BEIS,UKRI - BBSRC,14/07/2020,Unspecified,Balance Sheet,HM Revenue & Customs,98779782,4302.00,Student Loans
BEIS,UKRI - BBSRC,14/07/2020,Unspecified,Balance Sheet,HM Revenue & Customs,98779783,91395.29,NI Payable Salaries
BEIS,UKRI - BBSRC,14/07/2020,Unspecified,FG - Accounts & Business Planning,HM Revenue & Customs,98779784,2358.00,Apprenticeship Levy
BEIS,UKRI - BBSRC,14/07/2020,Doctoral Training Accounts,FG - Accounts & Business Planning,UKRI - Engineering & Physical Sciences Research Council,98780639,64003.31,Doctoral Training Accounts
BEIS,UKRI - BBSRC,14/07/2020,Research Institutes - Capital Grants: Major Works,JIC,John Innes Centre,98781306,55387.67,Research Institutes - Capital Grants: Major Works
BEIS,UKRI - BBSRC,14/07/2020,Other Programme Costs,Daphne Jackson Trust,Daphne Jackson Trust,98781659,760000.00,Other Programme Costs
BEIS,UKRI - BBSRC,15/07/2020,Voluntary Deductions,Balance Sheet,St Elizabeth’s Centre,98779366,570.83,Voluntary Deductions
BEIS,UKRI - BBSRC,15/07/2020,Union Deductions,Balance Sheet,PCS Union,98779785,73.90,Union Deductions
BEIS,UKRI - BBSRC,15/07/2020,Unspecified,Balance Sheet,Unspecified,98779787,24123.85,Ees Pension Deductions - JSS
BEIS,UKRI - BBSRC,15/07/2020,Unspecified,Balance Sheet,Unspecified,98779788,94191.91,Ers Pension Deductions - JSS
BEIS,UKRI - BBSRC,15/07/2020,Unspecified,Balance Sheet,Scottish Widows Life Assurance,98779789,446.70,Partnership Pension Deductions
BEIS,UKRI - BBSRC,15/07/2020,Unspecified,Balance Sheet,Scottish Widows Life Assurance,98779790,10.00,Other Pension Deductions
BEIS,UKRI - BBSRC,15/07/2020,Unspecified,Balance Sheet,Cabinet Office RM Shared Services,98779791,12.83,Ers Pension Deductions - JSS
BEIS,UKRI - BBSRC,15/07/2020,Unspecified,Balance Sheet,Cabinet Office RM Shared Services,98779792,6345.90,Ees Pension Deductions - MyCSP
BEIS,UKRI - BBSRC,15/07/2020,Unspecified,Balance Sheet,Cabinet Office RM Shared Services,98779793,31885.13,Ers Pension Deductions - MyCSP
BEIS,UKRI - BBSRC,15/07/2020,Voluntary Deductions,Balance Sheet,BHCA (Services) Ltd,98779794,23.80,Voluntary Deductions
BEIS,UKRI - BBSRC,15/07/2020,Voluntary Deductions,Balance Sheet,Ramsden Fund,98779795,50.00,Voluntary Deductions
BEIS,UKRI - BBSRC,15/07/2020,T&S UK - Other Charges,Innovation and Skills Group,Unspecified,98782687,212.42,T&S UK - Other Charges
BEIS,UKRI - BBSRC,16/07/2020,Postage & Courier Services,JBOS - Post Room,Fedex Express UK Transportation Ltd,98741398,294.10,Postage & Courier Services
BEIS,UKRI - BBSRC,16/07/2020,Postage & Courier Services,JBOS - Post Room,Fedex Express UK Transportation Ltd,98780895,-294.10,Postage & Courier Services
BEIS,UKRI - BBSRC,16/07/2020,Postage & Courier Services,JBOS - Post Room,Fedex Express UK Transportation Ltd,98780912,-533.52,Postage & Courier Services
BEIS,UKRI - BBSRC,16/07/2020,Other Programme Costs,Innovation and Skills Group CDSU,NNFCC Ltd,98781990,4665.60,Other Programme Costs
BEIS,UKRI - BBSRC,16/07/2020,Postage & Courier Services,JBOS - Post Room,Fedex Express UK Transportation Ltd,98782059,533.52,Postage & Courier Services
BEIS,UKRI - BBSRC,16/07/2020,Research Grant Expenditure,SPF W1 EMBL EBI,EMBL (European Molecular Biology Laboratory),98782694,149850.00,Research Grant Expenditure
BEIS,UKRI - BBSRC,16/07/2020,Corporate Events,CIMG - Director,Calder Conference Ltd,98782703,15489.60,Corporate Events
BEIS,UKRI - BBSRC,20/07/2020,Unspecified,FG - Estates,CUSHMAN & WAKEFIELD DEBENHAM TIE LEUNG LTD,98739105,70600.80,Legal & Professional Services
BEIS,UKRI - BBSRC,20/07/2020,Unspecified,FG - Estates,CUSHMAN & WAKEFIELD DEBENHAM TIE LEUNG LTD,98782909,-70600.80,Legal & Professional Services
BEIS,UKRI - BBSRC,21/07/2020,Research Grant Expenditure,Science Group,UKRI - Engineering & Physical Sciences Research Council,98772371,-37500.00,Research Grant Expenditure
BEIS,UKRI - BBSRC,21/07/2020,Research Grant Expenditure,Science Group,UKRI - Engineering & Physical Sciences Research Council,98773048,37500.00,Research Grant Expenditure
BEIS,UKRI - BBSRC,21/07/2020,Research Institutes - Competitive Strategic Grant,JIC,John Innes Centre,98775288,21499.99,Research Institutes - Competitive Strategic Grant
BEIS,UKRI - BBSRC,21/07/2020,Research Institutes - Competitive Strategic Grant,JIC,John Innes Centre,98775288,499916.52,Research Institutes - Competitive Strategic Grant
BEIS,UKRI - BBSRC,21/07/2020,Research Institutes - Competitive Strategic Grant,JIC,John Innes Centre,98775288,65333.31,Research Institutes - Competitive Strategic Grant
BEIS,UKRI - BBSRC,21/07/2020,Research Institutes - Competitive Strategic Grant,JIC,John Innes Centre,98775288,513249.85,Research Institutes - Competitive Strategic Grant
BEIS,UKRI - BBSRC,21/07/2020,Research Institutes - Competitive Strategic Grant,JIC,John Innes Centre,98775288,7083.33,Research Institutes - Competitive Strategic Grant
BEIS,UKRI - BBSRC,21/07/2020,Research Institutes - Competitive Strategic Grant,Babraham Institute,Babraham Institute,98775759,352459.91,Research Institutes - Competitive Strategic Grant
BEIS,UKRI - BBSRC,21/07/2020,Research Institutes - Competitive Strategic Grant,Babraham Institute,Babraham Institute,98775759,48750.01,Research Institutes - Competitive Strategic Grant
BEIS,UKRI - BBSRC,21/07/2020,Research Institutes - Competitive Strategic Grant,Babraham Institute,Babraham Institute,98775759,395666.75,Research Institutes - Competitive Strategic Grant
BEIS,UKRI - BBSRC,21/07/2020,Research Institutes - Competitive Strategic Grant,Babraham Institute,Babraham Institute,98775759,5833.33,Research Institutes - Competitive Strategic Grant
BEIS,UKRI - BBSRC,21/07/2020,Research Institutes - Competitive Strategic Grant,TGAC,Earlham Institute,98775929,167372.13,Research Institutes - Competitive Strategic Grant
BEIS,UKRI - BBSRC,21/07/2020,Research Institutes - Competitive Strategic Grant,TGAC,Earlham Institute,98775929,78195.44,Research Institutes - Competitive Strategic Grant
BEIS,UKRI - BBSRC,21/07/2020,Research Institutes - Competitive Strategic Grant,TGAC,Earlham Institute,98775929,41249.97,Research Institutes - Competitive Strategic Grant
BEIS,UKRI - BBSRC,21/07/2020,Research Institutes - Competitive Strategic Grant,TGAC,Earlham Institute,98775929,33333.31,Research Institutes - Competitive Strategic Grant
BEIS,UKRI - BBSRC,21/07/2020,Research Institutes - Competitive Strategic Grant,TGAC,Earlham Institute,98775929,117765.49,Research Institutes - Competitive Strategic Grant
BEIS,UKRI - BBSRC,21/07/2020,Research Institutes - Competitive Strategic Grant,TGAC,Earlham Institute,98775929,2916.66,Research Institutes - Competitive Strategic Grant
BEIS,UKRI - BBSRC,21/07/2020,Research Institutes - Competitive Strategic Grant,IFR,Quadram Institute Bioscience,98775956,23130.89,Research Institutes - Competitive Strategic Grant
BEIS,UKRI - BBSRC,21/07/2020,Research Institutes - Competitive Strategic Grant,IFR,Quadram Institute Bioscience,98775956,344143.33,Research Institutes - Competitive Strategic Grant
BEIS,UKRI - BBSRC,21/07/2020,Research Institutes - Competitive Strategic Grant,IFR,Quadram Institute Bioscience,98775956,46083.29,Research Institutes - Competitive Strategic Grant
BEIS,UKRI - BBSRC,21/07/2020,Research Institutes - Competitive Strategic Grant,IFR,Quadram Institute Bioscience,98775956,265775.16,Research Institutes - Competitive Strategic Grant
BEIS,UKRI - BBSRC,21/07/2020,Research Institutes - Competitive Strategic Grant,IFR,Quadram Institute Bioscience,98775956,5833.33,Research Institutes - Competitive Strategic Grant
BEIS,UKRI - BBSRC,21/07/2020,Research Institutes - Competitive Strategic Grant,IBERS,Aberystwyth University,98775959,86360.99,Research Institutes - Competitive Strategic Grant
BEIS,UKRI - BBSRC,21/07/2020,Research Institutes - Competitive Strategic Grant,IBERS,Aberystwyth University,98775959,46980.67,Research Institutes - Competitive Strategic Grant
BEIS,UKRI - BBSRC,21/07/2020,Research Institutes - Competitive Strategic Grant,IBERS,Aberystwyth University,98775959,2916.67,Research Institutes - Competitive Strategic Grant
BEIS,UKRI - BBSRC,21/07/2020,Research Institutes - Capital Grants: Major Works,IFR,Quadram Institute Bioscience,98775961,121433.25,Research Institutes - Capital Grants: Major Works
BEIS,UKRI - BBSRC,21/07/2020,Research Institutes - Competitive Strategic Grant,EBRC (Roslin),University of Edinburgh,98777287,277179.92,Research Institutes - Competitive Strategic Grant
BEIS,UKRI - BBSRC,21/07/2020,Research Institutes - Competitive Strategic Grant,EBRC (Roslin),University of Edinburgh,98777287,206087.50,Research Institutes - Competitive Strategic Grant
BEIS,UKRI - BBSRC,21/07/2020,Research Institutes - Competitive Strategic Grant,EBRC (Roslin),University of Edinburgh,98777287,5833.33,Research Institutes - Competitive Strategic Grant
BEIS,UKRI - BBSRC,21/07/2020,Research Institutes - Capital Grants: Major Works,EBRC (Roslin),University of Edinburgh,98778615,50000.00,Research Institutes - Capital Grants: Major Works
BEIS,UKRI - BBSRC,21/07/2020,Research Institutes - Competitive Strategic Grant,Pirbright,The Pirbright Institute,98779745,816143.92,Research Institutes - Competitive Strategic Grant
BEIS,UKRI - BBSRC,21/07/2020,Research Institutes - Competitive Strategic Grant,Pirbright,The Pirbright Institute,98779745,233969.59,Research Institutes - Competitive Strategic Grant
BEIS,UKRI - BBSRC,21/07/2020,Research Institutes - Competitive Strategic Grant,Pirbright,The Pirbright Institute,98779745,33329.00,Research Institutes - Competitive Strategic Grant
BEIS,UKRI - BBSRC,21/07/2020,Research Institutes - Competitive Strategic Grant,Pirbright,The Pirbright Institute,98779745,199807.36,Research Institutes - Competitive Strategic Grant
BEIS,UKRI - BBSRC,21/07/2020,Research Institutes - Competitive Strategic Grant,Pirbright,The Pirbright Institute,98779745,4166.13,Research Institutes - Competitive Strategic Grant
BEIS,UKRI - BBSRC,21/07/2020,Research Grant Expenditure,Science Group,UKRI - Engineering & Physical Sciences Research Council,98782541,19521.08,Research Grant Expenditure
BEIS,UKRI - BBSRC,21/07/2020,Research Grant Expenditure,Science Group,UKRI - Engineering & Physical Sciences Research Council,98782541,6990.74,Research Grant Expenditure
BEIS,UKRI - BBSRC,21/07/2020,Institute Grant Expenditure,Rothamsted Research,Rothamsted Research Ltd,98783651,49250.00,Institute Grant Expenditure
BEIS,UKRI - BBSRC,21/07/2020,Conferences & Seminars,Science Group,John Innes Centre,98783879,-6800.00,Conferences & Seminars
BEIS,UKRI - BBSRC,21/07/2020,Other Programme Costs,FG - Accounts & Business Planning,Rothamsted Research Ltd,98783937,50000.00,Other Programme Costs
BEIS,UKRI - BBSRC,21/07/2020,Research Institutes - Competitive Strategic Grant,Rothamsted Research,Rothamsted Research Ltd,98784033,111253.33,Research Institutes - Competitive Strategic Grant
BEIS,UKRI - BBSRC,21/07/2020,Research Institutes - Competitive Strategic Grant,Rothamsted Research,Rothamsted Research Ltd,98784033,418416.67,Research Institutes - Competitive Strategic Grant
BEIS,UKRI - BBSRC,21/07/2020,Research Institutes - Competitive Strategic Grant,Rothamsted Research,Rothamsted Research Ltd,98784033,64666.67,Research Institutes - Competitive Strategic Grant
BEIS,UKRI - BBSRC,21/07/2020,Research Institutes - Competitive Strategic Grant,Rothamsted Research,Rothamsted Research Ltd,98784033,197000.00,Research Institutes - Competitive Strategic Grant
BEIS,UKRI - BBSRC,21/07/2020,Research Institutes - Competitive Strategic Grant,Rothamsted Research,Rothamsted Research Ltd,98784033,7083.33,Research Institutes - Competitive Strategic Grant
BEIS,UKRI - BBSRC,22/07/2020,Research Grant Expenditure,FG - Accounts & Business Planning,University of Glasgow,98782047,7763.91,Research Grant Expenditure
BEIS,UKRI - BBSRC,22/07/2020,Other Programme Costs,FG - Estates,Rothamsted Research Ltd,98782058,156639.96,Other Programme Costs
BEIS,UKRI - BBSRC,22/07/2020,Research Institutes - Capital Grants: Major Works,Pirbright,The Pirbright Institute,98783399,18026.40,Research Institutes - Capital Grants: Major Works
BEIS,UKRI - BBSRC,22/07/2020,Research Institutes - Capital Grants: Major Works,Pirbright,The Pirbright Institute,98783401,1612419.81,Research Institutes - Capital Grants: Major Works
BEIS,UKRI - BBSRC,22/07/2020,Research Grant Expenditure,FG - Accounts & Business Planning,Imperial College London,98784071,1802.50,Research Grant Expenditure
BEIS,UKRI - BBSRC,22/07/2020,Recruitment Costs,PDG - Director,Warwick University Services Ltd,98784359,300.00,Recruitment Costs
BEIS,UKRI - BBSRC,22/07/2020,Research Grant Expenditure,FG - Accounts & Business Planning,Imperial College London,98784603,27292.79,Research Grant Expenditure
BEIS,UKRI - BBSRC,22/07/2020,T&S UK - Other Charges,Innovation and Skills Group CDSU,Unspecified,98784983,207.60,T&S UK - Other Charges
BEIS,UKRI - BBSRC,23/07/2020,Non-staff travel and subsistance,Innovation and Skills Group CDSU,Unspecified,98785083,50.00,Non-staff travel and subsistance
BEIS,UKRI - BBSRC,23/07/2020,Research Institutes - Capital Grants: Minor Works,TGAC,Rothamsted Research Ltd,98785492,3102.54,Research Institutes - Capital Grants: Minor Works
BEIS,UKRI - BBSRC,23/07/2020,Research Grant Expenditure,FG - Accounts & Business Planning,University of Oxford,98785606,4571.61,Research Grant Expenditure
BEIS,UKRI - BBSRC,24/07/2020,Recruitment Costs,PDG - Director,Onefix Recruitment Ltd,98785261,450.00,Recruitment Costs
BEIS,UKRI - BBSRC,24/07/2020,Research Grant Expenditure,SPF W1 EMBL EBI,EMBL (European Molecular Biology Laboratory),98785793,4912.20,Research Grant Expenditure
BEIS,UKRI - BBSRC,24/07/2020,Rates,JBOS - Maintenance,Swindon Borough Council,98786442,64000.00,Rates
BEIS,UKRI - BBSRC,27/07/2020,Voluntary Deductions,Balance Sheet,Swindon Office Sports and Social Club,98779786,56.00,Voluntary Deductions
BEIS,UKRI - BBSRC,27/07/2020,Research Grant Expenditure,FG - Accounts & Business Planning,London School of Hygiene & Tropical Medicine,98785403,8305.45,Research Grant Expenditure
BEIS,UKRI - BBSRC,27/07/2020,Dep't of Environ Food & Rural Affairs (DEFRA),Pirbright,The Pirbright Institute,98785831,6701.00,Dep't of Environ Food & Rural Affairs (DEFRA)
BEIS,UKRI - BBSRC,27/07/2020,Dep't of Environ Food & Rural Affairs (DEFRA),Pirbright,The Pirbright Institute,98785832,42275.00,Dep't of Environ Food & Rural Affairs (DEFRA)
BEIS,UKRI - BBSRC,27/07/2020,Research Institutes - Capital Grants: Minor Works,Rothamsted Research,Rothamsted Research Ltd,98785968,3514.94,Research Institutes - Capital Grants: Minor Works
BEIS,UKRI - BBSRC,27/07/2020,Research Institutes - Capital Grants: Minor Works,Rothamsted Research,Rothamsted Research Ltd,98785969,4718.16,Research Institutes - Capital Grants: Minor Works
BEIS,UKRI - BBSRC,27/07/2020,T&S UK - Other Charges,Innovation and Skills Group,Unspecified,98786089,116.00,T&S UK - Other Charges
BEIS,UKRI - BBSRC,27/07/2020,T&S UK - Other Charges,Innovation and Skills Group,Unspecified,98786090,67.99,T&S UK - Other Charges
BEIS,UKRI - BBSRC,28/07/2020,Other services,Science Group – Admin Function,UKRI - Engineering & Physical Sciences Research Council,98782538,372443.85,Other services
BEIS,UKRI - BBSRC,28/07/2020,Research Grant Expenditure,Research: Strategic,UKRI - Medical Research Council,98785242,4201.29,Research Grant Expenditure
BEIS,UKRI - BBSRC,28/07/2020,T&S UK - Other Charges,FG - Estates,Unspecified,98786340,3.65,T&S UK - Other Charges
BEIS,UKRI - BBSRC,28/07/2020,T&S UK - Subsistence,FG - Estates,Unspecified,98786340,11.83,T&S UK - Subsistence
BEIS,UKRI - BBSRC,28/07/2020,T&S UK - Vehicle Hire,FG - Estates,Unspecified,98786340,29.25,T&S UK - Vehicle Hire
BEIS,UKRI - BBSRC,28/07/2020,Research Grant Expenditure,SPF W1 EMBL EBI,EMBL (European Molecular Biology Laboratory),98786969,1198.64,Research Grant Expenditure
BEIS,UKRI - BBSRC,29/07/2020,Recruitment Costs,PDG - Director,Warwick University Services Ltd,98787591,300.00,Recruitment Costs
BEIS,UKRI - BBSRC,30/07/2020,Dep't of Environ Food & Rural Affairs (DEFRA),Pirbright,The Pirbright Institute,98785829,317203.00,Dep't of Environ Food & Rural Affairs (DEFRA)
BEIS,UKRI - BBSRC,30/07/2020,Dep't of Environ Food & Rural Affairs (DEFRA),Pirbright,The Pirbright Institute,98785834,338821.00,Dep't of Environ Food & Rural Affairs (DEFRA)
BEIS,UKRI - BBSRC,31/07/2020,Research Institutes - Capital Grants: Minor Works,Rothamsted Research,Rothamsted Research Ltd,98785970,28506.00,Research Institutes - Capital Grants: Minor Works
BEIS,UKRI - BBSRC,31/07/2020,Books Professional Journals & Guides,CE - CPS,The Pirbright Institute,98788724,1790.72,Books Professional Journals & Guides
BEIS,UKRI - BBSRC,31/07/2020,Fees (Including College Members),Science Group – Admin Function,Unspecified,98788780,340.00,Fees (Including College Members)
BEIS,UKRI - BBSRC,31/07/2020,Fees (Including College Members),Science Group – Admin Function,Unspecified,98788781,170.00,Fees (Including College Members)
BEIS,UKRI - BBSRC,31/07/2020,Fees (Including College Members),Science Group – Admin Function,Unspecified,98788782,340.00,Fees (Including College Members)
BEIS,UKRI - BBSRC,31/07/2020,Fees (Including College Members),Science Group – Admin Function,Unspecified,98788783,340.00,Fees (Including College Members)
BEIS,UKRI - BBSRC,31/07/2020,Fees (Including College Members),Science Group – Admin Function,Unspecified,98788784,340.00,Fees (Including College Members)
BEIS,UKRI - BBSRC,31/07/2020,Fees (Including College Members),Science Group – Admin Function,Unspecified,98788785,340.00,Fees (Including College Members)
BEIS,UKRI - BBSRC,31/07/2020,Research Grant Expenditure,FG - Accounts & Business Planning,EMBL (European Molecular Biology Laboratory),98788903,15855.31,Research Grant Expenditure
BEIS,UKRI - BBSRC,31/07/2020,T&S UK - Other Charges,Innovation and Skills Group CDSU,Unspecified,98788910,362.82,T&S UK - Other Charges
BEIS,UKRI - UKRI,01/07/2020,Unspecified,UKRI - JRS,Alexander Mann Solutions Ltd,98766434,1332.00,Contract Staff
BEIS,UKRI - UKRI,01/07/2020,Unspecified,UKRI - Funding Service,Hays Specialist Recruitment Ltd,98767513,3270.89,Contract Staff
BEIS,UKRI - UKRI,01/07/2020,Recruitment Costs,UKRI - Executive Group,Alexander Mann Solutions Ltd,98770354,32767.48,Recruitment Costs
BEIS,UKRI - UKRI,01/07/2020,Unspecified,UKRI - JRS,Alexander Mann Solutions Ltd,98771117,3423.12,Contract Staff
BEIS,UKRI - UKRI,01/07/2020,Unspecified,UKRI - JRS,Alexander Mann Solutions Ltd,98771120,1554.00,Contract Staff
BEIS,UKRI - EPSRC,01/07/2020,T&S UK - Other Charges,Programme Delivery Physical Sciences,Unspecified,98771176,182.06,T&S UK - Other Charges
BEIS,UKRI - UKRI,01/07/2020,Recruitment Costs,UKRI People and Organisation Development,Onefix Recruitment Ltd,98772118,906.00,Recruitment Costs
BEIS,UKRI - UKRI,01/07/2020,Unspecified,UKRI - EU Underwrite,Hays Specialist Recruitment Ltd,98772414,427.68,Agency Staff
BEIS,UKRI - UKRI,01/07/2020,Unspecified,UKRI - JRS,Alexander Mann Solutions Ltd,98773682,2220.00,Contract Staff
BEIS,UKRI - UKRI,01/07/2020,Unspecified,UKRI - JRS,Alexander Mann Solutions Ltd,98773695,2738.50,Contract Staff
BEIS,UKRI - UKRI,01/07/2020,Health & Safety (inc. Medicals & Opticians),UKRI - UK CDR,Unspecified,98774293,70.00,Health & Safety (inc. Medicals & Opticians)
BEIS,UKRI - UKRI,01/07/2020,Unspecified,UKRI - EU Underwrite,Hays Specialist Recruitment Ltd,98774417,39172.02,Agency Staff
BEIS,UKRI - UKRI,01/07/2020,Unspecified,UKRI - Strategic Finance Business Partners,Hays Specialist Recruitment Ltd,98774417,35708.11,Agency Staff
BEIS,UKRI - UKRI,01/07/2020,Unspecified,UKRI - Governance,Unspecified,98774534,12000.00,Legal & Professional Services
BEIS,UKRI - UKRI,01/07/2020,Marketing & PR,UKRI - Communication and Engagement,Maia Films Ltd,98774551,12000.00,Marketing & PR
BEIS,UKRI - UKRI,01/07/2020,Research Grant Expenditure,UKRI - Public Engagement,Helix Research and Evaluation Ltd,98775436,5975.00,Research Grant Expenditure
BEIS,UKRI - UKRI,01/07/2020,Recruitment Costs,UKRI People and Organisation Development,Agenda Resource Management Ltd,98775476,56.11,Recruitment Costs
BEIS,UKRI - UKRI,01/07/2020,Unspecified,UKRI - Funding Assurance,The Office for Students,98775505,147244.76,Legal & Professional Services
BEIS,UKRI - UKRI,01/07/2020,Unspecified,UKRI - Funding Assurance,The Office for Students,98775505,99041.26,Legal & Professional Services
BEIS,UKRI - UKRI,01/07/2020,UK - Professional Memberships & Subscriptions,UKRI - Risk and Counter Fraud,The Institute Of Risk Management,98775526,150.00,UK - Professional Memberships & Subscriptions
BEIS,UKRI - UKRI,01/07/2020,Mobile Phone Costs,UKRI - Digital Data and Technology BAU Costs,Telefonica UK Ltd (O2),98775539,2054.95,Mobile Phone Costs
BEIS,UKRI - UKRI,01/07/2020,Mobile Phone Costs,UKRI - Digital Data and Technology BAU Costs,Telefonica UK Ltd (O2),98775541,6.00,Mobile Phone Costs
BEIS,UKRI - UKRI,01/07/2020,Mobile Phone Costs,UKRI - Digital Data and Technology BAU Costs,Telefonica UK Ltd (O2),98775544,1748.42,Mobile Phone Costs
BEIS,UKRI - UKRI,01/07/2020,Mobile Phone Costs,UKRI - Digital Data and Technology BAU Costs,Telefonica UK Ltd (O2),98775546,1092.40,Mobile Phone Costs
BEIS,UKRI - UKRI,01/07/2020,Mobile Phone Costs,UKRI - Digital Data and Technology BAU Costs,Telefonica UK Ltd (O2),98775550,4542.56,Mobile Phone Costs
BEIS,UKRI - UKRI,01/07/2020,Mobile Phone Costs,UKRI - Digital Data and Technology BAU Costs,Telefonica UK Ltd (O2),98775551,3373.13,Mobile Phone Costs
BEIS,UKRI - UKRI,01/07/2020,T&S UK - Other Charges,UKRI - Management Reporting,Unspecified,98775574,100.00,T&S UK - Other Charges
BEIS,UKRI - Research England,01/07/2020,T&S UK - Other Charges,RE - Knowledge Exchange,Unspecified,98775575,20.98,T&S UK - Other Charges
BEIS,UKRI - UKRI,01/07/2020,UK - Professional Memberships & Subscriptions,UKRI Strategic HR Business Partners,Unspecified,98775579,163.00,UK - Professional Memberships & Subscriptions
BEIS,UKRI - UKRI,01/07/2020,T&S UK - Other Charges,UKRI - International,Unspecified,98775580,2178.00,T&S UK - Other Charges
BEIS,UKRI - UKRI,01/07/2020,T&S UK - Public Transport,UKRI - International,Unspecified,98775580,16.40,T&S UK - Public Transport
BEIS,UKRI - UKRI,01/07/2020,T&S UK - Public Transport,UKRI - International,Unspecified,98775580,167.28,T&S UK - Public Transport
BEIS,UKRI - UKRI,02/07/2020,T&S UK - Subsistence,UKRI - Strategy,Unspecified,98695406,5.48,T&S UK - Subsistence
BEIS,UKRI - UKRI,02/07/2020,T&S UK - Subsistence,UKRI - Strategy,Unspecified,98695406,19.13,T&S UK - Subsistence
BEIS,UKRI - UKRI,02/07/2020,T&S UK - Subsistence,UKRI - Strategy,Unspecified,98695406,5.00,T&S UK - Subsistence
BEIS,UKRI - UKRI,02/07/2020,Hardware/Software Maintenance,UKRI - Digital Data and Technology Recharges,Oracle Corporation UK Ltd,98743647,16692.10,Hardware/Software Maintenance
BEIS,UKRI - Research England,02/07/2020,Meetings & Catering,RE - Research,Calder Conference Ltd,98747915,1400.00,Meetings & Catering
BEIS,UKRI - Research England,02/07/2020,Meetings & Catering,RE - Research,Calder Conference Ltd,98747915,75.00,Meetings & Catering
BEIS,UKRI - Research England,02/07/2020,Unspecified,RE - Operations and Private Office,RAND Europe Community Interest Company,98749754,33290.02,Legal & Professional Services
BEIS,UKRI - UKRI,02/07/2020,Staff Training,UKRI - Communications External Affairs,DELIB Ltd,98750816,1440.00,Staff Training
BEIS,UKRI - UKRI,02/07/2020,Unspecified,UKRI - Digital Data and Technology BAU Costs,Chakray UK Ltd,98754444,3000.00,IT Cloud Services
BEIS,UKRI - UKRI,02/07/2020,Computer Hardware,UKRI People and Organisation Development,Dell Corporation Ltd,98772632,3337.52,Computer Hardware
BEIS,UKRI - UKRI,02/07/2020,Computer Hardware,UKRI People and Organisation Development,Dell Corporation Ltd,98772657,343.80,Computer Hardware
BEIS,UKRI - EPSRC,02/07/2020,Recharges From Councils - General,SPF - Digital Technology OpEx,Technology Strategy Board (Innovate UK),98773336,-35000.00,Recharges From Councils - General
BEIS,UKRI - EPSRC,02/07/2020,Recharges From Councils - General,SPF - Digital Technology OpEx,Technology Strategy Board (Innovate UK),98773338,35000.00,Recharges From Councils - General
BEIS,UKRI - UKRI,02/07/2020,Advertising & Promotion,UKRI - Communications Content,CASS Productions Ltd,98774104,1800.00,Advertising & Promotion
BEIS,UKRI - UKRI,02/07/2020,Unspecified,Open Access,Alma Economics Ltd,98774519,27600.00,Legal & Professional Services
BEIS,UKRI - UKRI,02/07/2020,Unspecified,UKRI - Overseas Office India,Foreign & Commonwealth Office,98774685,-1848.00,Secondments
BEIS,UKRI - UKRI,02/07/2020,Mobile Phone Costs,UKRI - Overseas Office India,Foreign & Commonwealth Office,98774692,43.83,Mobile Phone Costs
BEIS,UKRI - UKRI,02/07/2020,Unspecified,UKRI - Overseas Office India,Foreign & Commonwealth Office,98774692,4669.49,Secondments
BEIS,UKRI - UKRI,02/07/2020,Marketing & PR,UKRI - Communications Web and Intranet Service,Derek Holmes T/A Derek Holmes Media,98774721,1562.50,Marketing & PR
BEIS,UKRI - EPSRC,02/07/2020,Staff Training,EPSRC Corporate Services,Swindon and Gloucestershire Mind,98774727,1530.00,Staff Training
BEIS,UKRI - UKRI,02/07/2020,Meetings & Catering,UKRI - Communications External Affairs,Brenda Grant and Peter Walker T/A Vista Events,98774746,4655.97,Meetings & Catering
BEIS,UKRI - UKRI,02/07/2020,Staff Training,UKRI - Project Management Office,Global Edulink Ltd,98774751,1278.00,Staff Training
BEIS,UKRI - UKRI,02/07/2020,Marketing & PR,UKRI - External Communications,Cision Group Ltd,98774768,5260.00,Marketing & PR
BEIS,UKRI - UKRI,02/07/2020,Marketing & PR,UKRI - External Communications,Cision Group Ltd,98774769,5260.00,Marketing & PR
BEIS,UKRI - UKRI,02/07/2020,Marketing & PR,UKRI - External Communications,Cision Group Ltd,98774782,5260.00,Marketing & PR
BEIS,UKRI - UKRI,02/07/2020,Marketing & PR,UKRI - External Communications,Cision Group Ltd,98774784,5260.00,Marketing & PR
BEIS,UKRI - UKRI,02/07/2020,Mobile Phone Costs,UKRI - Overseas Office China,Foreign & Commonwealth Office,98774806,63.33,Mobile Phone Costs
BEIS,UKRI - UKRI,02/07/2020,Unspecified,UKRI - Overseas Office China,Foreign & Commonwealth Office,98774806,48730.82,Secondments
BEIS,UKRI - UKRI,02/07/2020,Translation Services,UKRI - Overseas Office China,Foreign & Commonwealth Office,98774806,53.86,Translation Services
BEIS,UKRI - UKRI,02/07/2020,Recharges From Councils - General,UKRI - Communication and Engagement,Technology Strategy Board (Innovate UK),98774811,671234.06,Recharges From Councils - General
BEIS,UKRI - UKRI,02/07/2020,Recharges From Councils - General,UKRI - Communication and Engagement,Technology Strategy Board (Innovate UK),98774811,97007.73,Recharges From Councils - General
BEIS,UKRI - EPSRC,02/07/2020,Fees (Including College Members),Programme Delivery Energy,Unspecified,98774815,80.00,Fees (Including College Members)
BEIS,UKRI - EPSRC,02/07/2020,Non-staff travel and subsistance,Business Improvement,Unspecified,98774816,128.27,Non-staff travel and subsistance
BEIS,UKRI - EPSRC,02/07/2020,Fees (Including College Members),Business Improvement,Unspecified,98774817,320.00,Fees (Including College Members)
BEIS,UKRI - EPSRC,02/07/2020,Fees (Including College Members),Business Improvement,Unspecified,98774818,160.00,Fees (Including College Members)
BEIS,UKRI - EPSRC,02/07/2020,Fees (Including College Members),Business Improvement,Unspecified,98774819,320.00,Fees (Including College Members)
BEIS,UKRI - UKRI,02/07/2020,Unspecified,UKRI - Management Reporting,Hays Specialist Recruitment Ltd,98774831,228.76,Contract Staff
BEIS,UKRI - UKRI,02/07/2020,Unspecified,UKRI - GCRF Delivery,Hays Specialist Recruitment Ltd,98774847,7224.86,Agency Staff
BEIS,UKRI - UKRI,02/07/2020,Unspecified,UKRI - GCRF Delivery,Hays Specialist Recruitment Ltd,98774850,645.58,Agency Staff
BEIS,UKRI - UKRI,02/07/2020,Unspecified,UKRI - GCRF Delivery,Hays Specialist Recruitment Ltd,98774852,645.58,Agency Staff
BEIS,UKRI - EPSRC,02/07/2020,T&S UK - Other Charges,EDI and People,Unspecified,98774855,143.94,T&S UK - Other Charges
BEIS,UKRI - UKRI,02/07/2020,UK - Professional Memberships & Subscriptions,UKRI People and Organisation Development,Unspecified,98774857,122.25,UK - Professional Memberships & Subscriptions
BEIS,UKRI - UKRI,02/07/2020,T&S UK - Other Charges,UKRI - Digital Data and Technology BAU Costs,Unspecified,98774858,118.98,T&S UK - Other Charges
BEIS,UKRI - UKRI,02/07/2020,T&S UK - Other Charges,UKRI - JSS,Unspecified,98774859,7.80,T&S UK - Other Charges
BEIS,UKRI - UKRI,02/07/2020,UK - Professional Memberships & Subscriptions,UKRI Strategic HR Business Partners,Unspecified,98774861,163.00,UK - Professional Memberships & Subscriptions
BEIS,UKRI - EPSRC,02/07/2020,Telecoms - Calls Fax & internet Costs,Governance and Planning,Unspecified,98774862,4.16,Telecoms - Calls Fax & internet Costs
BEIS,UKRI - UKRI,02/07/2020,UK - Professional Memberships & Subscriptions,UKRI Strategic HR Business Partners,Unspecified,98774863,163.00,UK - Professional Memberships & Subscriptions
BEIS,UKRI - Research England,02/07/2020,Council & Committee Honoraria,RE - Research Excellence Framework (REF),University of Bristol,98775601,250.00,Council & Committee Honoraria
BEIS,UKRI - UKRI,02/07/2020,Unspecified,UKRI - Digital Data and Technology Project Costs,TMI Systems Ltd,98775602,7635.60,Legal & Professional Services
BEIS,UKRI - UKRI,02/07/2020,Unspecified,UKRI - GCRF Challenge Leaders,University of Bristol,98775604,14063.65,Secondments
BEIS,UKRI - Research England,02/07/2020,Council & Committee Honoraria,RE - Research Excellence Framework (REF),Queen Margaret University Edinburgh,98775608,250.00,Council & Committee Honoraria
BEIS,UKRI - EPSRC,02/07/2020,Other Programme Costs,Archer,UOE (HPCX) Ltd,98775609,337323.60,Other Programme Costs
BEIS,UKRI - UKRI,02/07/2020,Fees (Including College Members),UKRI - GCRF Delivery,Unspecified,98775613,160.00,Fees (Including College Members)
BEIS,UKRI - UKRI,02/07/2020,Fees (Including College Members),UKRI - GCRF Delivery,Unspecified,98775614,160.00,Fees (Including College Members)
BEIS,UKRI - UKRI,02/07/2020,Fees (Including College Members),UKRI - GCRF Delivery,Unspecified,98775615,160.00,Fees (Including College Members)
BEIS,UKRI - EPSRC,02/07/2020,Other Programme Costs,Archer,UOE (HPCX) Ltd,98775616,0.34,Other Programme Costs
BEIS,UKRI - EPSRC,02/07/2020,Other Programme Costs,Archer,UOE (HPCX) Ltd,98775616,172734.79,Other Programme Costs
BEIS,UKRI - EPSRC,02/07/2020,Other Programme Costs,Archer,UOE (HPCX) Ltd,98775616,0.07,Other Programme Costs
BEIS,UKRI - UKRI,02/07/2020,Other Bought In Services,UKRI - BEIS ODA,Jonathan Spaull T/A Jonathan Spaull Photography,98775635,4719.62,Other Bought In Services
BEIS,UKRI - UKRI,02/07/2020,Mobile Phone Costs,UKRI - Digital Data and Technology Recharges,Telefonica UK Ltd (O2),98775696,3837.36,Mobile Phone Costs
BEIS,UKRI - UKRI,02/07/2020,Mobile Phone Costs,UKRI - Digital Data and Technology Recharges,Telefonica UK Ltd (O2),98775703,251.02,Mobile Phone Costs
BEIS,UKRI - UKRI,02/07/2020,Mobile Phone Costs,UKRI - Digital Data and Technology Recharges,Telefonica UK Ltd (O2),98775708,1776.10,Mobile Phone Costs
BEIS,UKRI - EPSRC,02/07/2020,Fellowships,Energy Energy,The Royal Society,98775761,25822.35,Fellowships
BEIS,UKRI - EPSRC,02/07/2020,Fellowships,NC Physical Sciences,The Royal Society,98775761,24858.70,Fellowships
BEIS,UKRI - UKRI,02/07/2020,Building Rents,UKRI - Overseas Office China,Foreign & Commonwealth Office,98775765,17973.58,Building Rents
BEIS,UKRI - UKRI,02/07/2020,Building Rents,UKRI - Overseas Office India,Foreign & Commonwealth Office,98775765,38619.29,Building Rents
BEIS,UKRI - UKRI,02/07/2020,Building Rents,UKRI - Overseas Office USA,Foreign & Commonwealth Office,98775765,36739.42,Building Rents
BEIS,UKRI - EPSRC,02/07/2020,Other Programme Costs,NC Infrastructure,University of Edinburgh,98775768,25000.00,Other Programme Costs
BEIS,UKRI - EPSRC,02/07/2020,Other Programme Costs,Archer,University of Edinburgh,98775771,181339.19,Other Programme Costs
BEIS,UKRI - EPSRC,02/07/2020,Fellowships,Manufacturing Manufacturing,The Royal Society,98775775,7495.70,Fellowships
BEIS,UKRI - EPSRC,02/07/2020,Fellowships,NC Engineering,The Royal Society,98775775,4997.13,Fellowships
BEIS,UKRI - EPSRC,02/07/2020,Fellowships,NC Physical Sciences,The Royal Society,98775775,27001.47,Fellowships
BEIS,UKRI - EPSRC,02/07/2020,Fellowships,NC Physical Sciences,The Royal Society,98775775,12492.84,Fellowships
BEIS,UKRI - EPSRC,02/07/2020,Fellowships,NC Physical Sciences,The Royal Society,98775775,0.01,Fellowships
BEIS,UKRI - EPSRC,03/07/2020,T&S UK - Subsistence,Materials OpEx,Unspecified,98724684,24.60,T&S UK - Subsistence
BEIS,UKRI - EPSRC,03/07/2020,T&S UK - Subsistence,Materials OpEx,Unspecified,98724684,4.99,T&S UK - Subsistence
BEIS,UKRI - EPSRC,03/07/2020,Meetings & Catering,Directors and Deputy Directors,Swindon Borough Council,98749477,78.00,Meetings & Catering
BEIS,UKRI - EPSRC,03/07/2020,Meetings & Catering,EPSRC Corporate Services,Swindon Borough Council,98749477,1010.94,Meetings & Catering
BEIS,UKRI - UKRI,03/07/2020,Marketing & PR,Covid-19 website,Unspecified,98763866,-2400.00,Marketing & PR
BEIS,UKRI - UKRI,03/07/2020,Marketing & PR,Covid-19 website,Unspecified,98763870,1575.00,Marketing & PR
BEIS,UKRI - UKRI,03/07/2020,Marketing & PR,Covid-19 website,Unspecified,98770136,1125.00,Marketing & PR
BEIS,UKRI - EPSRC,03/07/2020,Unspecified,Balance Sheet,Standard Life Assurance Ltd,98773333,3426.95,Partnership Pension Deductions
BEIS,UKRI - EPSRC,03/07/2020,Fellowships,Energy Energy,The Royal Society,98775230,12510.79,Fellowships
BEIS,UKRI - EPSRC,03/07/2020,Fellowships,NC ICT,The Royal Society,98775230,12510.79,Fellowships
BEIS,UKRI - EPSRC,03/07/2020,Meetings & Catering,Business Improvement,Calder Conference Ltd,98775320,390.00,Meetings & Catering
BEIS,UKRI - EPSRC,03/07/2020,Meetings & Catering,Programme Delivery Engineering,Calder Conference Ltd,98775321,390.00,Meetings & Catering
BEIS,UKRI - EPSRC,03/07/2020,Meetings & Catering,Business Improvement,Calder Conference Ltd,98775322,390.00,Meetings & Catering
BEIS,UKRI - UKRI,03/07/2020,Meetings & Catering,UKRI - GCRF Challenge Leaders,Calder Conference Ltd,98775331,1955.00,Meetings & Catering
BEIS,UKRI - EPSRC,03/07/2020,Staff Training,Directors and Deputy Directors,BRIDGEBUILDERS STG LTD,98775392,408.00,Staff Training
BEIS,UKRI - EPSRC,03/07/2020,Non-staff travel and subsistance,Business Improvement,Unspecified,98775394,48.15,Non-staff travel and subsistance
BEIS,UKRI - EPSRC,03/07/2020,Fees (Including College Members),Business Improvement,Unspecified,98775395,320.00,Fees (Including College Members)
BEIS,UKRI - EPSRC,03/07/2020,Fees (Including College Members),Business Improvement,Unspecified,98775396,320.00,Fees (Including College Members)
BEIS,UKRI - EPSRC,03/07/2020,Non-staff travel and subsistance,Business Improvement,Unspecified,98775397,179.64,Non-staff travel and subsistance
BEIS,UKRI - EPSRC,03/07/2020,Fees (Including College Members),Business Improvement,Unspecified,98775398,160.00,Fees (Including College Members)
BEIS,UKRI - EPSRC,03/07/2020,Fees (Including College Members),Programme Delivery Manufacturing,Unspecified,98775399,160.00,Fees (Including College Members)
BEIS,UKRI - EPSRC,03/07/2020,Fees (Including College Members),Programme Delivery Manufacturing,Unspecified,98775400,160.00,Fees (Including College Members)
BEIS,UKRI - EPSRC,03/07/2020,Fees (Including College Members),Programme Delivery Manufacturing,Unspecified,98775401,160.00,Fees (Including College Members)
BEIS,UKRI - EPSRC,03/07/2020,Fees (Including College Members),Programme Delivery Manufacturing,Unspecified,98775402,160.00,Fees (Including College Members)
BEIS,UKRI - EPSRC,03/07/2020,Fees (Including College Members),Programme Delivery Manufacturing,Unspecified,98775403,160.00,Fees (Including College Members)
BEIS,UKRI - EPSRC,03/07/2020,Fees (Including College Members),Programme Delivery Manufacturing,Unspecified,98775404,160.00,Fees (Including College Members)
BEIS,UKRI - EPSRC,03/07/2020,Fees (Including College Members),Programme Delivery Physical Sciences,Unspecified,98775405,160.00,Fees (Including College Members)
BEIS,UKRI - EPSRC,03/07/2020,Fees (Including College Members),Materials OpEx,Unspecified,98775406,80.00,Fees (Including College Members)
BEIS,UKRI - EPSRC,03/07/2020,Fees (Including College Members),Programme Delivery Physical Sciences,Unspecified,98775407,160.00,Fees (Including College Members)
BEIS,UKRI - UKRI,03/07/2020,Health & Safety (inc. Medicals & Opticians),UKRI - Health and Safety,AM Health & Safety Ltd,98775778,540.00,Health & Safety (inc. Medicals & Opticians)
BEIS,UKRI - UKRI,03/07/2020,Staff Training,UKRI - Funds for International Collaboration,The Colour Works International Limited,98775927,303.12,Staff Training
BEIS,UKRI - UKRI,03/07/2020,Unspecified,"UKRI People, Policies and Management",Department for Business Energy & Industrial Strategy,98775938,11769.47,Secondments
BEIS,UKRI - UKRI,03/07/2020,Consumables,UKRI - JRS,Premier Paper Group Ltd,98775960,36.25,Consumables
BEIS,UKRI - UKRI,03/07/2020,Unspecified,"UKRI People, Policies and Management",UK Atomic Energy Authority (UKAEA),98775964,59.41,Legal & Professional Services
BEIS,UKRI - UKRI,03/07/2020,Recruitment Costs,UKRI People and Organisation Development,Onefix Recruitment Ltd,98775979,150.00,Recruitment Costs
BEIS,UKRI - EPSRC,03/07/2020,Education Fees & Study Materials,EPSRC Corporate Services,Unspecified,98775992,1000.00,Education Fees & Study Materials
BEIS,UKRI - UKRI,03/07/2020,Recruitment Costs,UKRI People and Organisation Development,PERRETT LAVER LTD,98776031,20160.00,Recruitment Costs
BEIS,UKRI - UKRI,03/07/2020,Consumables,UKRI - JRS,Kennedy Grinding Ltd,98776055,32.40,Consumables
BEIS,UKRI - UKRI,03/07/2020,Mechanical & Electrical Maintenance,UKRI - Estates,AR Electrical (Swindon) Ltd,98776056,2160.00,Mechanical & Electrical Maintenance
BEIS,UKRI - Research England,03/07/2020,Council & Committee Honoraria,RE - Research Excellence Framework (REF),Cardiff University,98776060,3000.00,Council & Committee Honoraria
BEIS,UKRI - UKRI,03/07/2020,T&S UK - Other Charges,UKRI - International,Unspecified,98776134,148.98,T&S UK - Other Charges
BEIS,UKRI - UKRI,03/07/2020,UK - Professional Memberships & Subscriptions,UKRI People and Organisation Development,Unspecified,98776135,163.00,UK - Professional Memberships & Subscriptions
BEIS,UKRI - Research England,03/07/2020,T&S UK - Other Charges,RE - Research Excellence Framework (REF),Unspecified,98776137,33.87,T&S UK - Other Charges
BEIS,UKRI - EPSRC,03/07/2020,T&S UK - Other Charges,Programme Delivery Engineering,Unspecified,98776138,335.09,T&S UK - Other Charges
BEIS,UKRI - UKRI,03/07/2020,T&S UK - Other Charges,UKRI - International,Unspecified,98776139,255.99,T&S UK - Other Charges
BEIS,UKRI - UKRI,03/07/2020,T&S UK - Other Charges,"UKRI People, Policies and Management",Unspecified,98776141,143.88,T&S UK - Other Charges
BEIS,UKRI - UKRI,03/07/2020,IT / Computing Support Services,UKRI - Digital Data and Technology BAU Costs,MAYTECH COMMUNICATIONS LTD,98776447,3206.40,IT / Computing Support Services
BEIS,UKRI - UKRI,03/07/2020,Recruitment Costs,UKRI People and Organisation Development,Egon Zehnder Ltd,98776462,15600.00,Recruitment Costs
BEIS,UKRI - Research England,06/07/2020,Other Programme Costs,RE - Research,The Office for Students,98735246,7073.86,Other Programme Costs
BEIS,UKRI - UKRI,06/07/2020,Grounds Maintenance,UKRI - JBOS,ISS Mediclean Ltd,98737670,3300.49,Grounds Maintenance
BEIS,UKRI - UKRI,06/07/2020,Mechanical & Electrical Maintenance,UKRI - JBOS,ISS Mediclean Ltd,98738464,3927.32,Mechanical & Electrical Maintenance
BEIS,UKRI - UKRI,06/07/2020,Non-Capital Building Construction,UKRI - JBOS,ISS Mediclean Ltd,98738466,13560.80,Non-Capital Building Construction
BEIS,UKRI - UKRI,06/07/2020,Health & Safety (inc. Medicals & Opticians),UKRI - Health and Safety,AM Health & Safety Ltd,98750831,60.00,Health & Safety (inc. Medicals & Opticians)
BEIS,UKRI - UKRI,06/07/2020,Health & Safety (inc. Medicals & Opticians),UKRI - JBOS,AM Health & Safety Ltd,98750831,192.00,Health & Safety (inc. Medicals & Opticians)
BEIS,UKRI - UKRI,06/07/2020,T&S UK - Other Charges,"UKRI People, Policies and Management",Unspecified,98767888,119.99,T&S UK - Other Charges
BEIS,UKRI - UKRI,06/07/2020,Telecoms - Non Capital Hardware Costs,UKRI - Digital Data and Technology BAU Costs,Telefonica UK Ltd (O2),98771101,410.40,Telecoms - Non Capital Hardware Costs
BEIS,UKRI - UKRI,06/07/2020,T&S UK - Other Charges,UKRI - Information Governance,Unspecified,98771813,290.21,T&S UK - Other Charges
BEIS,UKRI - UKRI,06/07/2020,Recruitment Costs,UKRI - Strategic Finance Business Partners,Agenda Resource Management Ltd,98773800,171.80,Recruitment Costs
BEIS,UKRI - UKRI,06/07/2020,Recruitment Costs,UKRI - Strategic Finance Business Partners,Agenda Resource Management Ltd,98773801,171.80,Recruitment Costs
BEIS,UKRI - UKRI,06/07/2020,Recruitment Costs,UKRI People and Organisation Development,Agenda Resource Management Ltd,98774432,154.86,Recruitment Costs
BEIS,UKRI - UKRI,06/07/2020,Recruitment Costs,UKRI People and Organisation Development,Agenda Resource Management Ltd,98774432,40.77,Recruitment Costs
BEIS,UKRI - UKRI,06/07/2020,Recruitment Costs,UKRI People and Organisation Development,Agenda Resource Management Ltd,98774433,153.91,Recruitment Costs
BEIS,UKRI - UKRI,06/07/2020,Recruitment Costs,UKRI People and Organisation Development,Agenda Resource Management Ltd,98774434,153.91,Recruitment Costs
BEIS,UKRI - UKRI,06/07/2020,Recruitment Costs,UKRI People and Organisation Development,Agenda Resource Management Ltd,98774435,153.91,Recruitment Costs
BEIS,UKRI - UKRI,06/07/2020,Recruitment Costs,UKRI People and Organisation Development,Agenda Resource Management Ltd,98774437,153.91,Recruitment Costs
BEIS,UKRI - EPSRC,06/07/2020,Recruitment Costs,EPSRC Corporate Services,Agenda Resource Management Ltd,98774438,153.91,Recruitment Costs
BEIS,UKRI - UKRI,06/07/2020,Recruitment Costs,UKRI People and Organisation Development,Agenda Resource Management Ltd,98774439,153.91,Recruitment Costs
BEIS,UKRI - UKRI,06/07/2020,Recruitment Costs,UKRI - Private Office,Agenda Resource Management Ltd,98774442,97.80,Recruitment Costs
BEIS,UKRI - UKRI,06/07/2020,Recruitment Costs,UKRI People and Organisation Development,Agenda Resource Management Ltd,98774443,153.91,Recruitment Costs
BEIS,UKRI - EPSRC,06/07/2020,Recruitment Costs,EPSRC Corporate Services,Agenda Resource Management Ltd,98774444,153.91,Recruitment Costs
BEIS,UKRI - EPSRC,06/07/2020,Recruitment Costs,EPSRC Corporate Services,Agenda Resource Management Ltd,98774445,153.91,Recruitment Costs
BEIS,UKRI - UKRI,06/07/2020,Marketing & PR,UKRI - Communication and Engagement,Maia Films Ltd,98774686,12000.00,Marketing & PR
BEIS,UKRI - Research England,06/07/2020,Council & Committee Honoraria,RE - Research Excellence Framework (REF),University of Southampton,98775285,250.00,Council & Committee Honoraria
BEIS,UKRI - EPSRC,06/07/2020,Recruitment Costs,EPSRC Corporate Services,Agenda Resource Management Ltd,98775496,153.91,Recruitment Costs
BEIS,UKRI - UKRI,06/07/2020,Staff Training,UKRI - Procurement and Commercial,MARVELLOUS MINDS LTD,98776122,960.00,Staff Training
BEIS,UKRI - UKRI,06/07/2020,T&S UK - Vehicle Hire,UKRI - Strategic Finance Business Partners,Enterprise Rent-A-Car UK Ltd,98776349,15.58,T&S UK - Vehicle Hire
BEIS,UKRI - UKRI,06/07/2020,T&S UK - Vehicle Hire,UKRI - Strategic Finance Business Partners,Enterprise Rent-A-Car UK Ltd,98776349,77.91,T&S UK - Vehicle Hire
BEIS,UKRI - UKRI,06/07/2020,Unspecified,UKRI - Management Reporting,Alexander Mann Solutions Ltd,98776352,1260.12,Agency Staff
BEIS,UKRI - UKRI,06/07/2020,Unspecified,UKRI - Digital Data and Technology Project Costs,Alexander Mann Solutions Ltd,98776366,3387.66,Contract Staff
BEIS,UKRI - UKRI,06/07/2020,Unspecified,UKRI - Management Reporting,Alexander Mann Solutions Ltd,98776368,902.35,Agency Staff
BEIS,UKRI - UKRI,06/07/2020,Unspecified,UKRI - Financial Accounting,Alexander Mann Solutions Ltd,98776369,2771.70,Contract Staff
BEIS,UKRI - Research England,06/07/2020,Recruitment Costs,RE - Operations and Private Office,Warwick University Services Ltd,98776437,250.00,Recruitment Costs
BEIS,UKRI - UKRI,06/07/2020,Mechanical & Electrical Maintenance,UKRI - JBOS,ISS Mediclean Ltd,98776599,-3927.32,Mechanical & Electrical Maintenance
BEIS,UKRI - UKRI,06/07/2020,Non-Capital Building Construction,UKRI - JBOS,ISS Mediclean Ltd,98776601,-13560.80,Non-Capital Building Construction
BEIS,UKRI - UKRI,06/07/2020,Printing & Stationery,UKRI - JRS,Gemini Print Southern Ltd,98776604,558.00,Printing & Stationery
BEIS,UKRI - UKRI,06/07/2020,Grounds Maintenance,UKRI - JBOS,ISS Mediclean Ltd,98776605,-3300.49,Grounds Maintenance
BEIS,UKRI - UKRI,06/07/2020,Unspecified,UKRI - JRS,Alexander Mann Solutions Ltd,98776644,2738.50,Contract Staff
BEIS,UKRI - UKRI,06/07/2020,Unspecified,UKRI - Funding Service,Alexander Mann Solutions Ltd,98776668,2992.80,Contract Staff
BEIS,UKRI - UKRI,06/07/2020,Unspecified,UKRI - Funding Service,Alexander Mann Solutions Ltd,98776669,4619.52,Contract Staff
BEIS,UKRI - UKRI,06/07/2020,Unspecified,UKRI - Human Resources Support,Alexander Mann Solutions Ltd,98776671,2771.70,Contract Staff
BEIS,UKRI - UKRI,06/07/2020,Consultancy Services,UKRI - Governance,Alexander Mann Solutions Ltd,98776677,2520.24,Consultancy Services
BEIS,UKRI - EPSRC,06/07/2020,Recruitment Costs,EPSRC Corporate Services,Quest Partnership Ltd,98776731,1856.40,Recruitment Costs
BEIS,UKRI - UKRI,06/07/2020,Marketing & PR,UKRI - Transformation,The Fifth Business (Scotland) Ltd,98776764,11490.00,Marketing & PR
BEIS,UKRI - UKRI,06/07/2020,T&S UK - Other Charges,UKRI - Digital Data and Technology BAU Costs,Unspecified,98776845,44.48,T&S UK - Other Charges
BEIS,UKRI - UKRI,06/07/2020,UK - Professional Memberships & Subscriptions,"UKRI People, Policies and Management",Unspecified,98776848,163.00,UK - Professional Memberships & Subscriptions
BEIS,UKRI - UKRI,06/07/2020,Unspecified,Sciencewise,School of International Futures Ltd,98777669,14898.00,Legal & Professional Services
BEIS,UKRI - UKRI,07/07/2020,T&S UK - Subsistence,UKRI - GCRF Delivery,Unspecified,98699717,24.50,T&S UK - Subsistence
BEIS,UKRI - UKRI,07/07/2020,T&S UK - Other Charges,UKRI - Project Management Office,Unspecified,98729837,151.44,T&S UK - Other Charges
BEIS,UKRI - UKRI,07/07/2020,Consultancy Services,UKRI - Estates,Turner & Townsend Project Management Ltd,98739081,8445.07,Consultancy Services
BEIS,UKRI - UKRI,07/07/2020,Unspecified,UKRI - Estates,Turner & Townsend Project Management Ltd,98739081,2496.77,Legal & Professional Services
BEIS,UKRI - UKRI,07/07/2020,Computer Software,UKRI - Digital Data and Technology BAU Costs,Digital Science & Research Solutions Inc,98772415,159088.75,Computer Software
BEIS,UKRI - UKRI,07/07/2020,Unspecified,UKRI - Estates,Hays Specialist Recruitment Ltd,98773103,3097.25,Agency Staff
BEIS,UKRI - UKRI,07/07/2020,Unspecified,UKRI - Estates,Hays Specialist Recruitment Ltd,98773106,2744.28,Agency Staff
BEIS,UKRI - UKRI,07/07/2020,Unspecified,UKRI - Estates,Hays Specialist Recruitment Ltd,98773178,2744.28,Agency Staff
BEIS,UKRI - UKRI,07/07/2020,Corporate Events,UKRI - International Communications,"J and S Audio Visual Communications, LLC dba BAV Services",98773922,6177.78,Corporate Events
BEIS,UKRI - UKRI,07/07/2020,Corporate Events,UKRI - International Communications,"J and S Audio Visual Communications, LLC dba BAV Services",98773922,485.59,Corporate Events
BEIS,UKRI - UKRI,07/07/2020,Corporate Events,UKRI - International Communications,"J and S Audio Visual Communications, LLC dba BAV Services",98773922,350.71,Corporate Events
BEIS,UKRI - UKRI,07/07/2020,Computer Software Licences,UKRI - Risk and Counter Fraud,Datatank Ltd,98774566,9994.80,Computer Software Licences
BEIS,UKRI - UKRI,07/07/2020,Recruitment Costs,UKRI People and Organisation Development,Agenda Resource Management Ltd,98774681,153.91,Recruitment Costs
BEIS,UKRI - UKRI,07/07/2020,Recruitment Costs,UKRI People and Organisation Development,Agenda Resource Management Ltd,98774682,153.91,Recruitment Costs
BEIS,UKRI - UKRI,07/07/2020,Fees (Including College Members),UKRI - GCRF Delivery,Unspecified,98774687,160.00,Fees (Including College Members)
BEIS,UKRI - UKRI,07/07/2020,Fees (Including College Members),UKRI - GCRF Delivery,Unspecified,98774688,159.49,Fees (Including College Members)
BEIS,UKRI - UKRI,07/07/2020,Fees (Including College Members),UKRI - GCRF Delivery,Unspecified,98774689,162.30,Fees (Including College Members)
BEIS,UKRI - UKRI,07/07/2020,Advertising & Promotion,UKRI - Communications Content,Martin Ince Communications Ltd,98775440,450.00,Advertising & Promotion
BEIS,UKRI - UKRI,07/07/2020,Recharges From Councils - General,UKRI - GCRF Challenge Leaders,UKRI - Economic & Social Research Council,98775619,6638.91,Recharges From Councils - General
BEIS,UKRI - UKRI,07/07/2020,Recharges From Councils - General,UKRI - GCRF Challenge Leaders,UKRI - Economic & Social Research Council,98775620,6597.24,Recharges From Councils - General
BEIS,UKRI - UKRI,07/07/2020,Recharges From Councils - General,UKRI - GCRF Challenge Leaders,UKRI - Economic & Social Research Council,98775624,6597.24,Recharges From Councils - General
BEIS,UKRI - UKRI,07/07/2020,Recharges From Councils - General,UKRI - GCRF Challenge Leaders,UKRI - Economic & Social Research Council,98775625,5211.33,Recharges From Councils - General
BEIS,UKRI - UKRI,07/07/2020,Recharges From Councils - General,UKRI - GCRF Challenge Leaders,UKRI - Economic & Social Research Council,98775627,6597.24,Recharges From Councils - General
BEIS,UKRI - UKRI,07/07/2020,Recharges From Councils - General,UKRI - Overseas Office India,UKRI - Economic & Social Research Council,98775629,14237.91,Recharges From Councils - General
BEIS,UKRI - UKRI,07/07/2020,Fees (Including College Members),UKRI - GCRF Delivery,Unspecified,98775743,159.47,Fees (Including College Members)
BEIS,UKRI - UKRI,07/07/2020,Non-staff travel and subsistance,UKRI - GCRF Challenge Leaders,Unspecified,98775744,166.22,Non-staff travel and subsistance
BEIS,UKRI - UKRI,07/07/2020,Non-staff travel and subsistance,UKRI - GCRF Challenge Leaders,Unspecified,98775745,280.20,Non-staff travel and subsistance
BEIS,UKRI - UKRI,07/07/2020,Advertising & Promotion,UKRI - Communications Content,Impact Media Specialists Ltd,98776175,1740.00,Advertising & Promotion
BEIS,UKRI - UKRI,07/07/2020,Computer Software Licences,UKRI - Digital Data and Technology BAU Costs,New Relic Inc.,98776359,33687.53,Computer Software Licences
BEIS,UKRI - UKRI,07/07/2020,Unspecified,"UKRI People, Policies and Management",Alexander Mann Solutions Ltd,98776363,11212.81,Agency Staff
BEIS,UKRI - UKRI,07/07/2020,Computer Software Licences,UKRI - Digital Data and Technology Recharges,Phoenix Software Ltd,98776475,252.77,Computer Software Licences
BEIS,UKRI - UKRI,07/07/2020,Unspecified,"UKRI People, Policies and Management",Alexander Mann Solutions Ltd,98776670,5700.00,Agency Staff
BEIS,UKRI - UKRI,07/07/2020,Unspecified,"UKRI People, Policies and Management",Alexander Mann Solutions Ltd,98776674,9000.00,Agency Staff
BEIS,UKRI - UKRI,07/07/2020,Staff Training,"UKRI People, Policies and Management",Pearn Kandola LLP,98776874,1560.00,Staff Training
BEIS,UKRI - UKRI,07/07/2020,Staff Training,"UKRI People, Policies and Management",Pearn Kandola LLP,98776875,1560.00,Staff Training
BEIS,UKRI - UKRI,07/07/2020,Unspecified,UKRI - GCRF Challenge Leaders,Institute of Development Studies,98776881,6050.57,Secondments
BEIS,UKRI - UKRI,07/07/2020,Non-staff travel and subsistance,UKRI - Global Engagement,Corporate Travel Management (North) Ltd,98776882,2.50,Non-staff travel and subsistance
BEIS,UKRI - UKRI,07/07/2020,Non-staff travel and subsistance,UKRI - Global Engagement,Corporate Travel Management (North) Ltd,98776882,483.70,Non-staff travel and subsistance
BEIS,UKRI - UKRI,07/07/2020,Non-staff travel and subsistance,UKRI - Global Engagement,Corporate Travel Management (North) Ltd,98776882,2.50,Non-staff travel and subsistance
BEIS,UKRI - UKRI,07/07/2020,Non-staff travel and subsistance,UKRI - Global Engagement,Corporate Travel Management (North) Ltd,98776882,521.00,Non-staff travel and subsistance
BEIS,UKRI - UKRI,07/07/2020,T&S Overseas - Accommodation,UKRI - Human Resources Support,Corporate Travel Management (North) Ltd,98776882,0.80,T&S Overseas - Accommodation
BEIS,UKRI - UKRI,07/07/2020,T&S Overseas - Accommodation,UKRI - Human Resources Support,Corporate Travel Management (North) Ltd,98776882,179.43,T&S Overseas - Accommodation
BEIS,UKRI - UKRI,07/07/2020,T&S Overseas - Accommodation,UKRI - Human Resources Support,Corporate Travel Management (North) Ltd,98776882,0.80,T&S Overseas - Accommodation
BEIS,UKRI - UKRI,07/07/2020,T&S Overseas - Accommodation,UKRI - Human Resources Support,Corporate Travel Management (North) Ltd,98776882,156.92,T&S Overseas - Accommodation
BEIS,UKRI - UKRI,07/07/2020,T&S Overseas - Accommodation,UKRI - Human Resources Support,Corporate Travel Management (North) Ltd,98776882,0.80,T&S Overseas - Accommodation
BEIS,UKRI - UKRI,07/07/2020,T&S Overseas - Accommodation,UKRI - Human Resources Support,Corporate Travel Management (North) Ltd,98776882,179.43,T&S Overseas - Accommodation
BEIS,UKRI - UKRI,07/07/2020,T&S Overseas - Accommodation,UKRI - Human Resources Support,Corporate Travel Management (North) Ltd,98776882,0.48,T&S Overseas - Accommodation
BEIS,UKRI - UKRI,07/07/2020,T&S Overseas - Accommodation,UKRI - Private Office,Corporate Travel Management (North) Ltd,98776882,0.80,T&S Overseas - Accommodation
BEIS,UKRI - UKRI,07/07/2020,T&S Overseas - Accommodation,UKRI - Private Office,Corporate Travel Management (North) Ltd,98776882,153.63,T&S Overseas - Accommodation
BEIS,UKRI - UKRI,07/07/2020,T&S Overseas - Accommodation,UKRI - Private Office,Corporate Travel Management (North) Ltd,98776882,0.16,T&S Overseas - Accommodation
BEIS,UKRI - UKRI,07/07/2020,T&S Overseas - Flights,UKRI - Strategic Finance Business Partners,Corporate Travel Management (North) Ltd,98776882,2.50,T&S Overseas - Flights
BEIS,UKRI - UKRI,07/07/2020,T&S Overseas - Flights,UKRI - Strategic Finance Business Partners,Corporate Travel Management (North) Ltd,98776882,194.74,T&S Overseas - Flights
BEIS,UKRI - UKRI,07/07/2020,T&S Overseas - Flights,UKRI Strategic HR Business Partners,Corporate Travel Management (North) Ltd,98776882,3.50,T&S Overseas - Flights
BEIS,UKRI - UKRI,07/07/2020,T&S Overseas - Flights,UKRI Strategic HR Business Partners,Corporate Travel Management (North) Ltd,98776882,1788.00,T&S Overseas - Flights
BEIS,UKRI - UKRI,07/07/2020,T&S Overseas - Flights,UKRI Strategic HR Business Partners,Corporate Travel Management (North) Ltd,98776882,3.50,T&S Overseas - Flights
BEIS,UKRI - UKRI,07/07/2020,T&S Overseas - Flights,UKRI Strategic HR Business Partners,Corporate Travel Management (North) Ltd,98776882,1788.00,T&S Overseas - Flights
BEIS,UKRI - UKRI,07/07/2020,T&S UK - Accommodation,UKRI - Risk and Counter Fraud,Corporate Travel Management (North) Ltd,98776882,0.80,T&S UK - Accommodation
BEIS,UKRI - UKRI,07/07/2020,T&S UK - Accommodation,UKRI - Risk and Counter Fraud,Corporate Travel Management (North) Ltd,98776882,0.16,T&S UK - Accommodation
BEIS,UKRI - UKRI,07/07/2020,T&S UK - Accommodation,UKRI - Digital Data and Technology BAU Costs,Corporate Travel Management (North) Ltd,98776882,0.80,T&S UK - Accommodation
BEIS,UKRI - UKRI,07/07/2020,T&S UK - Accommodation,UKRI - Digital Data and Technology BAU Costs,Corporate Travel Management (North) Ltd,98776882,0.27,T&S UK - Accommodation
BEIS,UKRI - UKRI,07/07/2020,T&S UK - Accommodation,UKRI - Digital Data and Technology BAU Costs,Corporate Travel Management (North) Ltd,98776882,70.00,T&S UK - Accommodation
BEIS,UKRI - UKRI,07/07/2020,T&S UK - Accommodation,UKRI - Digital Data and Technology BAU Costs,Corporate Travel Management (North) Ltd,98776882,0.80,T&S UK - Accommodation
BEIS,UKRI - UKRI,07/07/2020,T&S UK - Accommodation,UKRI - Digital Data and Technology BAU Costs,Corporate Travel Management (North) Ltd,98776882,152.11,T&S UK - Accommodation
BEIS,UKRI - UKRI,07/07/2020,T&S UK - Accommodation,UKRI - Digital Data and Technology BAU Costs,Corporate Travel Management (North) Ltd,98776882,0.37,T&S UK - Accommodation
BEIS,UKRI - UKRI,07/07/2020,T&S UK - Accommodation,UKRI - Financial Accounting,Corporate Travel Management (North) Ltd,98776882,0.80,T&S UK - Accommodation
BEIS,UKRI - UKRI,07/07/2020,T&S UK - Accommodation,UKRI - Financial Accounting,Corporate Travel Management (North) Ltd,98776882,42.08,T&S UK - Accommodation
BEIS,UKRI - UKRI,07/07/2020,T&S UK - Accommodation,UKRI - Financial Accounting,Corporate Travel Management (North) Ltd,98776882,0.16,T&S UK - Accommodation
BEIS,UKRI - UKRI,07/07/2020,T&S UK - Accommodation,UKRI - Strategic Finance Business Partners,Corporate Travel Management (North) Ltd,98776882,0.80,T&S UK - Accommodation
BEIS,UKRI - UKRI,07/07/2020,T&S UK - Accommodation,UKRI - Strategic Finance Business Partners,Corporate Travel Management (North) Ltd,98776882,42.08,T&S UK - Accommodation
BEIS,UKRI - UKRI,07/07/2020,T&S UK - Accommodation,UKRI - Strategic Finance Business Partners,Corporate Travel Management (North) Ltd,98776882,2.00,T&S UK - Accommodation
BEIS,UKRI - UKRI,07/07/2020,T&S UK - Accommodation,UKRI - Strategic Finance Business Partners,Corporate Travel Management (North) Ltd,98776882,4730.00,T&S UK - Accommodation
BEIS,UKRI - UKRI,07/07/2020,T&S UK - Accommodation,UKRI - Strategic Finance Business Partners,Corporate Travel Management (North) Ltd,98776882,0.80,T&S UK - Accommodation
BEIS,UKRI - UKRI,07/07/2020,T&S UK - Accommodation,UKRI - Strategic Finance Business Partners,Corporate Travel Management (North) Ltd,98776882,70.00,T&S UK - Accommodation
BEIS,UKRI - UKRI,07/07/2020,T&S UK - Accommodation,UKRI - Strategic Finance Business Partners,Corporate Travel Management (North) Ltd,98776882,0.80,T&S UK - Accommodation
BEIS,UKRI - UKRI,07/07/2020,T&S UK - Accommodation,UKRI - Strategic Finance Business Partners,Corporate Travel Management (North) Ltd,98776882,0.88,T&S UK - Accommodation
BEIS,UKRI - UKRI,07/07/2020,T&S UK - Accommodation,UKRI - Strategy,Corporate Travel Management (North) Ltd,98776882,2.25,T&S UK - Accommodation
BEIS,UKRI - UKRI,07/07/2020,T&S UK - Accommodation,"UKRI People, Policies and Management",Corporate Travel Management (North) Ltd,98776882,0.80,T&S UK - Accommodation
BEIS,UKRI - UKRI,07/07/2020,T&S UK - Accommodation,"UKRI People, Policies and Management",Corporate Travel Management (North) Ltd,98776882,115.25,T&S UK - Accommodation
BEIS,UKRI - UKRI,07/07/2020,T&S UK - Accommodation,"UKRI People, Policies and Management",Corporate Travel Management (North) Ltd,98776882,0.16,T&S UK - Accommodation
BEIS,UKRI - UKRI,07/07/2020,T&S UK - Accommodation,UKRI Strategic HR Business Partners,Corporate Travel Management (North) Ltd,98776882,0.80,T&S UK - Accommodation
BEIS,UKRI - UKRI,07/07/2020,T&S UK - Accommodation,UKRI Strategic HR Business Partners,Corporate Travel Management (North) Ltd,98776882,160.00,T&S UK - Accommodation
BEIS,UKRI - UKRI,07/07/2020,T&S UK - Accommodation,UKRI Strategic HR Business Partners,Corporate Travel Management (North) Ltd,98776882,1.00,T&S UK - Accommodation
BEIS,UKRI - UKRI,07/07/2020,T&S UK - Accommodation,UKRI Strategic HR Business Partners,Corporate Travel Management (North) Ltd,98776882,18.00,T&S UK - Accommodation
BEIS,UKRI - UKRI,07/07/2020,T&S UK - Accommodation,UKRI Strategic HR Business Partners,Corporate Travel Management (North) Ltd,98776882,0.36,T&S UK - Accommodation
BEIS,UKRI - EPSRC,07/07/2020,Non-staff travel and subsistance,Programme Delivery ICT,Unspecified,98776884,215.71,Non-staff travel and subsistance
BEIS,UKRI - EPSRC,07/07/2020,Fees (Including College Members),Governance and Planning,Unspecified,98776885,160.00,Fees (Including College Members)
BEIS,UKRI - EPSRC,07/07/2020,Fees (Including College Members),Programme Delivery Manufacturing,Unspecified,98776886,160.00,Fees (Including College Members)
BEIS,UKRI - UKRI,07/07/2020,Photocopy Costs,UKRI - JRS,Kodak Ltd,98776891,1586.52,Photocopy Costs
BEIS,UKRI - UKRI,07/07/2020,Hardware/Software Maintenance,UKRI - JRS,Canon (UK) Ltd,98776897,250.04,Hardware/Software Maintenance
BEIS,UKRI - UKRI,07/07/2020,Postage & Courier Services,UKRI - JBOS,Unspecified,98776900,1046.48,Postage & Courier Services
BEIS,UKRI - UKRI,07/07/2020,Unspecified,UKRI - JRS,Martin Ince Communications Ltd,98777006,1650.00,Patents/ Non Computer Licences
BEIS,UKRI - UKRI,07/07/2020,Advertising & Promotion,UKRI - Communications Content,Nucco Brain Studio Ltd,98777064,1740.00,Advertising & Promotion
BEIS,UKRI - Research England,07/07/2020,Council & Committee Honoraria,RE - Research Excellence Framework (REF),Goldsmiths College University of London,98777071,1050.01,Council & Committee Honoraria
BEIS,UKRI - Research England,07/07/2020,Council & Committee Honoraria,RE - Research Excellence Framework (REF),Goldsmiths College University of London,98777073,1750.02,Council & Committee Honoraria
BEIS,UKRI - EPSRC,07/07/2020,Fees (Including College Members),Programme Delivery Infrastructure,Unspecified,98777117,400.00,Fees (Including College Members)
